{"text_format":"2","workbook":"xlsx","n_sheets":1,"sheets":["Перечень"],"not_rendered":{"charts":0,"images":0,"macros":0,"external_links":0,"defined_names":20,"comments":0,"pivot_tables":0},"unopened":[],"bounds":{"document_bytes":16777216,"sheet_cells":100000,"run_cost":"one","rows_first":2000,"rows_last":500,"rows_between":2000,"halvings":0,"cell_chars":16384,"cell_head_chars":4096},"cells_cut":0,"cells_raw":0,"read":"whole","date_system":"1900"}

{"sheet":"Перечень","index":0,"n_rows":2946,"n_cols":10,"rows_kept":2946,"cut":false,"hidden":false,"merged":[[2713,0,2715,0],[2713,1,2715,1],[2713,2,2715,2],[2713,6,2713,9],[2711,6,2711,9],[2714,6,2714,9],[2715,6,2715,9],[2710,0,2712,0],[2710,1,2712,1],[2710,2,2712,2],[2710,6,2710,9],[2712,6,2712,9],[2767,0,2770,0],[2767,1,2770,1],[2767,2,2770,2],[2767,6,2767,9],[2768,6,2768,9],[2769,6,2769,9],[2770,6,2770,9],[2716,0,2719,0],[2716,1,2719,1],[2716,2,2719,2],[2716,6,2716,9],[2717,6,2717,9],[2718,6,2718,9],[2719,6,2719,9],[2720,0,2723,0],[2720,1,2723,1],[2720,2,2723,2],[2720,6,2720,9],[2721,6,2721,9],[2722,6,2722,9],[2920,6,2920,9],[2921,6,2921,9],[2922,6,2922,9],[2923,6,2923,9],[2924,6,2924,9],[2925,6,2925,9],[2926,6,2926,9],[2903,0,2904,0],[2903,1,2904,1],[2903,2,2904,2],[2903,6,2903,9],[2904,6,2904,9],[2905,0,2906,0],[2905,1,2906,1],[2905,2,2906,2],[2905,6,2905,9],[2906,6,2906,9],[2907,0,2907,9],[2909,6,2909,9],[2910,6,2910,9],[2911,6,2911,9],[2912,6,2912,9],[2913,6,2913,9],[2914,6,2914,9],[2899,1,2900,1],[2899,2,2900,2],[2899,6,2899,9],[2900,6,2900,9],[2901,0,2902,0],[2901,1,2902,1],[2901,2,2902,2],[2901,6,2901,9],[2902,6,2902,9],[2915,0,2916,0],[2915,1,2916,1],[2915,2,2916,2],[2915,6,2915,9],[2916,6,2916,9],[2917,6,2917,9],[2918,6,2918,9],[2919,6,2919,9],[2908,6,2908,9],[2887,1,2888,1],[2887,2,2888,2],[2887,6,2887,9],[2888,6,2888,9],[2889,0,2890,0],[2889,1,2890,1],[2889,2,2890,2],[2889,6,2889,9],[2890,6,2890,9],[2891,0,2892,0],[2891,1,2892,1],[2891,2,2892,2],[2891,6,2891,9],[2892,6,2892,9],[2893,0,2894,0],[2893,1,2894,1],[2893,2,2894,2],[2893,6,2893,9],[2894,6,2894,9],[2895,0,2896,0],[2895,1,2896,1],[2895,2,2896,2],[2895,6,2895,9],[2896,6,2896,9],[2897,0,2898,0],[2897,1,2898,1],[2897,2,2898,2],[2897,6,2897,9],[2898,6,2898,9],[2899,0,2900,0],[2879,0,2880,0],[2879,1,2880,1],[2879,2,2880,2],[2879,6,2879,9],[2880,6,2880,9],[2881,0,2882,0],[2881,1,2882,1],[2881,2,2882,2],[2881,6,2881,9],[2882,6,2882,9],[2883,0,2884,0],[2883,1,2884,1],[2883,2,2884,2],[2883,6,2883,9],[2884,6,2884,9],[2885,0,2886,0],[2885,1,2886,1],[2885,2,2886,2],[2885,6,2885,9],[2886,6,2886,9],[2887,0,2888,0],[2871,0,2872,0],[2871,1,2872,1],[2871,2,2872,2],[2871,6,2871,9],[2872,6,2872,9],[2873,0,2874,0],[2873,1,2874,1],[2873,2,2874,2],[2873,6,2873,9],[2874,6,2874,9],[2875,0,2876,0],[2875,1,2876,1],[2875,2,2876,2],[2875,6,2875,9],[2876,6,2876,9],[2877,0,2878,0],[2877,1,2878,1],[2877,2,2878,2],[2877,6,2877,9],[2878,6,2878,9],[2863,0,2864,0],[2863,1,2864,1],[2863,2,2864,2],[2863,6,2863,9],[2864,6,2864,9],[2865,0,2866,0],[2865,1,2866,1],[2865,2,2866,2],[2865,6,2865,9],[2866,6,2866,9],[2867,0,2868,0],[2867,1,2868,1],[2867,2,2868,2],[2867,6,2867,9],[2868,6,2868,9],[2869,0,2870,0],[2869,1,2870,1],[2869,2,2870,2],[2869,6,2869,9],[2870,6,2870,9],[2855,0,2856,0],[2855,1,2856,1],[2855,2,2856,2],[2855,6,2855,9],[2856,6,2856,9],[2857,0,2858,0],[2857,1,2858,1],[2857,2,2858,2],[2857,6,2857,9],[2858,6,2858,9],[2859,0,2860,0],[2859,1,2860,1],[2859,2,2860,2],[2859,6,2859,9],[2860,6,2860,9],[2861,0,2862,0],[2861,1,2862,1],[2861,2,2862,2],[2861,6,2861,9],[2862,6,2862,9],[2847,0,2848,0],[2847,1,2848,1],[2847,2,2848,2],[2847,6,2847,9],[2848,6,2848,9],[2849,0,2850,0],[2849,1,2850,1],[2849,2,2850,2],[2849,6,2849,9],[2850,6,2850,9],[2851,0,2852,0],[2851,1,2852,1],[2851,2,2852,2],[2851,6,2851,9],[2852,6,2852,9],[2853,0,2854,0],[2853,1,2854,1],[2853,2,2854,2],[2853,6,2853,9],[2854,6,2854,9],[2839,0,2840,0],[2839,1,2840,1],[2839,2,2840,2],[2839,6,2839,9],[2840,6,2840,9],[2841,0,2842,0],[2841,1,2842,1],[2841,2,2842,2],[2841,6,2841,9],[2842,6,2842,9],[2843,0,2844,0],[2843,1,2844,1],[2843,2,2844,2],[2843,6,2843,9],[2844,6,2844,9],[2845,0,2846,0],[2845,1,2846,1],[2845,2,2846,2],[2845,6,2845,9],[2846,6,2846,9],[2831,0,2832,0],[2831,1,2832,1],[2831,2,2832,2],[2831,6,2831,9],[2832,6,2832,9],[2833,0,2834,0],[2833,1,2834,1],[2833,2,2834,2],[2833,6,2833,9],[2834,6,2834,9],[2835,0,2836,0],[2835,1,2836,1],[2835,2,2836,2],[2835,6,2835,9],[2836,6,2836,9],[2837,0,2838,0],[2837,1,2838,1],[2837,2,2838,2],[2837,6,2837,9],[2838,6,2838,9],[2823,0,2824,0],[2823,1,2824,1],[2823,2,2824,2],[2823,6,2823,9],[2824,6,2824,9],[2825,0,2826,0],[2825,1,2826,1],[2825,2,2826,2],[2825,6,2825,9],[2826,6,2826,9],[2827,0,2828,0],[2827,1,2828,1],[2827,2,2828,2],[2827,6,2827,9],[2828,6,2828,9],[2829,0,2830,0],[2829,1,2830,1],[2829,2,2830,2],[2829,6,2829,9],[2830,6,2830,9],[2814,0,2814,9],[2815,0,2816,0],[2815,1,2816,1],[2815,2,2816,2],[2815,6,2815,9],[2816,6,2816,9],[2817,0,2818,0],[2817,1,2818,1],[2817,2,2818,2],[2817,6,2817,9],[2818,6,2818,9],[2819,0,2820,0],[2819,1,2820,1],[2819,2,2820,2],[2819,6,2819,9],[2820,6,2820,9],[2821,0,2822,0],[2821,1,2822,1],[2821,2,2822,2],[2821,6,2821,9],[2822,6,2822,9],[2523,0,2524,0],[2523,1,2524,1],[2523,2,2524,2],[2523,6,2523,9],[2524,6,2524,9],[2525,6,2525,9],[1832,2,1833,2],[1832,1,1833,1],[1832,0,1833,0],[2507,0,2508,0],[2507,1,2508,1],[2507,2,2508,2],[2508,6,2508,9],[2509,0,2510,0],[2509,1,2510,1],[2509,2,2510,2],[2511,0,2512,0],[2511,1,2512,1],[2511,2,2512,2],[2513,0,2514,0],[2513,1,2514,1],[2513,2,2514,2],[2516,0,2516,9],[2518,6,2518,9],[2519,0,2522,0],[2519,1,2522,1],[2519,2,2522,2],[2519,6,2519,9],[2520,6,2520,9],[2521,6,2521,9],[2522,6,2522,9],[2423,1,2424,1],[2427,0,2428,0],[2427,1,2428,1],[2427,2,2428,2],[2429,0,2430,0],[2429,1,2430,1],[2429,2,2430,2],[2433,0,2438,0],[2433,1,2438,1],[2433,2,2438,2],[2440,0,2441,0],[2440,1,2441,1],[2440,2,2441,2],[2175,0,2178,0],[2175,1,2178,1],[2175,2,2178,2],[2179,0,2181,0],[2179,1,2181,1],[2179,2,2181,2],[2182,0,2187,0],[2182,1,2187,1],[2182,2,2187,2],[2188,0,2191,0],[2188,1,2191,1],[2188,2,2191,2],[2192,0,2194,0],[2192,1,2194,1],[2192,2,2194,2],[2195,0,2196,0],[2197,0,2199,0],[2197,1,2199,1],[2197,2,2199,2],[2317,0,2320,0],[2091,6,2091,9],[2092,6,2092,9],[2104,6,2104,9],[2105,6,2105,9],[2106,6,2106,9],[2103,6,2103,9],[2101,6,2101,9],[2102,6,2102,9],[2099,6,2099,9],[2100,6,2100,9],[2097,6,2097,9],[2098,6,2098,9],[2093,6,2093,9],[2423,2,2424,2],[2425,0,2426,0],[2425,1,2426,1],[2425,2,2426,2],[2094,6,2094,9],[2095,6,2095,9],[2096,6,2096,9],[2101,0,2103,0],[2101,1,2103,1],[2101,2,2103,2],[2104,0,2110,0],[2104,1,2110,1],[2104,2,2110,2],[2116,6,2116,9],[2117,6,2117,9],[2115,6,2115,9],[2111,6,2111,9],[2112,6,2112,9],[2113,6,2113,9],[2068,0,2069,0],[2068,1,2069,1],[2068,2,2069,2],[2070,0,2074,0],[2070,1,2074,1],[2070,2,2074,2],[2063,6,2063,9],[2064,6,2064,9],[2061,6,2061,9],[2062,6,2062,9],[2057,6,2057,9],[2058,6,2058,9],[2059,6,2059,9],[2060,6,2060,9],[2195,1,2196,1],[2195,2,2196,2],[2078,0,2080,0],[2078,1,2080,1],[2078,2,2080,2],[2078,6,2078,9],[2079,6,2079,9],[2081,0,2086,0],[2081,1,2086,1],[2081,2,2086,2],[2087,0,2089,0],[2087,1,2089,1],[2087,2,2089,2],[2093,0,2097,0],[2093,1,2097,1],[2093,2,2097,2],[2099,0,2100,0],[2099,1,2100,1],[2025,0,2026,0],[2025,1,2026,1],[2025,2,2026,2],[2025,6,2025,9],[1998,6,1998,9],[1999,6,1999,9],[1996,6,1996,9],[1997,6,1997,9],[1994,6,1994,9],[1995,6,1995,9],[1992,6,1992,9],[1993,6,1993,9],[1990,6,1990,9],[1991,6,1991,9],[1988,6,1988,9],[1989,6,1989,9],[2010,6,2010,9],[2002,6,2002,9],[2003,6,2003,9],[2000,6,2000,9],[2001,6,2001,9],[2022,6,2022,7],[2022,8,2022,9],[2021,6,2021,7],[2021,8,2021,9],[2020,6,2020,7],[2020,8,2020,9],[2019,6,2019,7],[2019,8,2019,9],[2018,6,2018,7],[2013,0,2014,0],[2013,1,2014,1],[2013,2,2014,2],[2013,6,2013,7],[2013,8,2013,9],[2015,6,2015,9],[2016,0,2024,0],[2016,1,2024,1],[2016,2,2024,2],[2016,6,2016,7],[2016,8,2016,9],[1960,0,1974,0],[1960,1,1974,1],[1960,2,1974,2],[1960,6,1960,7],[1960,8,1960,9],[1962,6,1962,7],[1962,8,1962,9],[1963,6,1963,7],[1961,6,1961,7],[1961,8,1961,9],[1970,6,1970,7],[1970,8,1970,9],[1969,6,1969,7],[1969,8,1969,9],[1963,8,1963,9],[1964,6,1964,7],[1964,8,1964,9],[1984,6,1984,9],[1985,6,1985,9],[1981,6,1981,9],[1982,6,1982,9],[1980,6,1980,9],[1983,6,1983,9],[1912,6,1912,9],[1913,6,1913,9],[1944,6,1944,9],[1942,6,1942,9],[1943,6,1943,9],[1920,0,1925,0],[1920,1,1925,1],[1920,2,1925,2],[1926,0,1932,0],[1926,1,1932,1],[1951,0,1955,0],[1951,1,1955,1],[1951,2,1955,2],[1924,6,1924,9],[1925,6,1925,9],[1923,6,1923,9],[1916,2,1919,2],[1619,6,1619,9],[1620,0,1621,0],[1620,1,1621,1],[1620,2,1621,2],[1620,6,1620,9],[1621,6,1621,9],[1622,6,1622,9],[1623,6,1623,9],[1624,0,1625,0],[1624,1,1625,1],[1624,2,1625,2],[1624,6,1624,9],[1625,6,1625,9],[1626,6,1626,9],[1627,6,1627,9],[1608,6,1608,7],[1608,8,1608,9],[1609,6,1609,9],[1610,0,1611,0],[1610,1,1611,1],[1610,2,1611,2],[1610,6,1610,9],[1611,6,1611,9],[1612,0,1616,0],[1612,1,1616,1],[1612,2,1616,2],[1612,6,1612,9],[1613,6,1613,9],[1614,6,1614,9],[1615,6,1615,9],[1616,6,1616,9],[1617,0,1618,0],[1617,1,1618,1],[1617,2,1618,2],[1617,6,1617,9],[1618,6,1618,9],[1602,0,1604,0],[1602,1,1604,1],[1602,2,1604,2],[1602,6,1602,7],[1602,8,1602,9],[1603,6,1603,7],[1603,8,1603,9],[1604,6,1604,7],[1604,8,1604,9],[1605,0,1607,0],[1605,1,1607,1],[1605,2,1607,2],[1605,6,1605,7],[1605,8,1605,9],[1606,6,1606,7],[1606,8,1606,9],[1607,6,1607,7],[1607,8,1607,9],[1588,6,1588,9],[1589,0,1599,0],[1589,1,1599,1],[1589,2,1599,2],[1589,6,1589,9],[1590,6,1590,9],[1591,6,1591,9],[1592,6,1592,9],[1593,6,1593,9],[1594,6,1594,9],[1595,6,1595,9],[1596,6,1596,9],[1597,6,1597,9],[1598,6,1598,9],[1599,6,1599,9],[1600,0,1600,9],[1601,6,1601,9],[1577,6,1577,9],[1578,6,1578,9],[1579,6,1579,9],[1580,6,1580,9],[1581,0,1582,0],[1581,1,1582,1],[1581,2,1582,2],[1581,6,1581,9],[1582,6,1582,9],[1583,6,1583,9],[1584,6,1584,9],[1585,0,1586,0],[1585,1,1586,1],[1585,2,1586,2],[1585,6,1585,9],[1586,6,1586,9],[1587,6,1587,9],[1479,0,1489,0],[1479,1,1489,1],[1479,2,1489,2],[1490,0,1491,0],[1490,1,1491,1],[1490,2,1491,2],[1492,0,1493,0],[1492,1,1493,1],[1492,2,1493,2],[1565,0,1568,0],[1565,1,1568,1],[1565,2,1568,2],[1565,6,1565,9],[1566,6,1566,9],[1567,6,1567,9],[1568,6,1568,9],[1488,6,1488,9],[1489,6,1489,9],[1486,6,1486,9],[1487,6,1487,9],[1484,6,1484,9],[1485,6,1485,9],[1480,6,1480,9],[1481,6,1481,9],[1482,6,1482,9],[1483,6,1483,9],[1499,6,1499,9],[1500,6,1500,9],[1497,6,1497,9],[1498,6,1498,9],[1494,6,1494,9],[1495,6,1495,9],[1445,0,1475,0],[1445,1,1475,1],[1445,2,1475,2],[1240,0,1245,0],[1240,1,1245,1],[1240,2,1245,2],[1264,0,1266,0],[1264,1,1266,1],[1264,2,1266,2],[1268,0,1269,0],[1268,1,1269,1],[1268,2,1269,2],[1307,0,1308,0],[1307,1,1308,1],[1307,2,1308,2],[1311,0,1317,0],[1476,0,1478,0],[1476,1,1478,1],[1476,2,1478,2],[1311,1,1317,1],[1311,2,1317,2],[1329,0,1330,0],[1340,0,1347,0],[1340,1,1347,1],[1340,2,1347,2],[1390,0,1391,0],[1390,1,1391,1],[1390,2,1391,2],[1361,0,1362,0],[1361,1,1362,1],[1361,2,1362,2],[1363,0,1368,0],[1139,0,1142,0],[1139,1,1142,1],[1139,2,1142,2],[1087,0,1096,0],[1087,1,1096,1],[1087,2,1096,2],[1144,0,1145,0],[1144,1,1145,1],[1144,2,1145,2],[1146,0,1152,0],[1146,1,1152,1],[1146,2,1152,2],[1153,0,1154,0],[1153,1,1154,1],[1153,2,1154,2],[1155,0,1162,0],[1155,1,1162,1],[1155,2,1162,2],[899,1,903,1],[899,2,903,2],[904,0,913,0],[904,1,913,1],[904,2,913,2],[1044,0,1048,0],[1044,1,1048,1],[1044,2,1048,2],[1049,0,1081,0],[1049,1,1081,1],[1049,2,1081,2],[1082,0,1083,0],[1082,1,1083,1],[1082,2,1083,2],[1084,0,1085,0],[1084,1,1085,1],[1084,2,1085,2],[943,0,946,0],[943,1,946,1],[943,2,946,2],[46,6,46,9],[47,6,47,9],[874,0,875,0],[874,1,875,1],[874,2,875,2],[877,0,878,0],[877,1,878,1],[877,2,878,2],[880,0,884,0],[880,1,884,1],[880,2,884,2],[886,0,896,0],[886,1,896,1],[886,2,896,2],[7,6,7,9],[8,6,8,9],[9,6,9,9],[10,6,10,9],[11,6,11,9],[12,6,12,9],[60,0,62,0],[63,0,65,0],[63,1,65,1],[66,0,68,0],[66,1,68,1],[60,1,62,1],[23,0,34,0],[23,1,34,1],[22,6,22,7],[22,8,22,9],[13,6,13,9],[14,6,14,9],[63,2,65,2],[63,6,63,9],[64,6,65,9],[54,0,56,0],[54,1,56,1],[54,2,56,2],[54,7,54,9],[55,6,55,9],[56,7,56,9],[49,6,49,9],[50,6,50,7],[50,8,50,9],[51,0,53,0],[51,1,53,1],[51,2,53,2],[51,7,51,9],[52,6,52,9],[53,7,53,9],[35,1,41,1],[35,2,41,2],[35,6,35,9],[36,6,36,9],[37,6,37,9],[38,6,38,9],[39,6,39,9],[40,6,40,9],[41,6,41,9],[23,2,34,2],[23,6,23,9],[17,6,17,9],[18,6,18,9],[6,0,6,9],[7,0,22,0],[7,1,22,1],[7,2,22,2],[24,6,24,9],[25,6,25,9],[26,6,26,9],[27,6,27,9],[28,6,28,9],[29,6,29,9],[15,6,15,9],[16,6,16,9],[48,6,48,9],[87,6,87,7],[87,8,87,9],[30,6,30,9],[31,6,31,9],[32,6,32,9],[33,6,33,9],[34,6,34,7],[34,8,34,9],[82,6,82,7],[82,8,82,9],[0,8,0,9],[1,0,1,9],[2,0,4,0],[2,1,4,1],[2,2,4,2],[2,3,2,9],[3,3,4,3],[3,4,3,5],[3,6,3,9],[42,0,50,0],[42,1,50,1],[42,2,50,2],[42,6,42,9],[43,6,43,9],[44,6,44,9],[45,6,45,9],[19,6,19,9],[20,6,20,9],[21,6,21,7],[21,8,21,9],[35,0,41,0],[75,1,77,1],[75,2,77,2],[75,6,75,9],[76,6,77,9],[69,0,71,0],[69,1,71,1],[69,2,71,2],[69,6,69,9],[70,6,71,9],[72,0,74,0],[72,1,74,1],[72,2,74,2],[72,6,72,9],[73,6,74,9],[67,6,68,9],[79,0,82,0],[79,1,82,1],[79,2,82,2],[79,6,79,7],[79,8,79,9],[80,3,81,3],[80,4,81,4],[80,5,81,5],[80,6,80,7],[80,8,80,9],[81,6,81,7],[81,8,81,9],[89,8,89,9],[90,6,90,7],[60,2,62,2],[60,6,60,9],[61,6,61,9],[62,6,62,9],[57,0,59,0],[57,1,59,1],[57,2,59,2],[57,7,57,9],[58,6,58,9],[59,7,59,9],[84,6,84,7],[84,8,84,9],[85,3,86,3],[85,4,86,4],[85,5,86,5],[85,6,85,7],[85,8,85,9],[86,6,86,7],[86,8,86,9],[83,0,87,0],[83,1,87,1],[83,2,87,2],[83,3,84,3],[83,4,84,4],[83,5,84,5],[83,6,83,7],[83,8,83,9],[66,2,68,2],[66,6,66,9],[75,0,77,0],[97,6,97,7],[97,8,97,9],[98,0,100,0],[98,1,100,1],[98,2,100,2],[98,6,98,7],[98,8,98,9],[99,6,99,7],[99,8,99,9],[100,6,100,7],[94,6,94,7],[94,8,94,9],[95,6,95,7],[95,8,95,9],[96,6,96,7],[96,8,96,9],[90,8,90,9],[91,6,91,7],[91,8,91,9],[92,6,92,7],[92,8,92,9],[93,0,97,0],[93,1,97,1],[93,2,97,2],[93,6,93,7],[93,8,93,9],[88,0,92,0],[88,1,92,1],[88,2,92,2],[88,6,88,7],[88,8,88,9],[89,6,89,7],[104,6,104,7],[104,8,104,9],[105,6,105,7],[105,8,105,9],[106,0,108,0],[106,1,108,1],[106,6,106,7],[106,8,106,9],[107,6,107,7],[107,8,107,9],[100,8,100,9],[101,0,105,0],[101,1,105,1],[101,2,105,2],[101,6,101,7],[101,8,101,9],[102,6,102,7],[102,8,102,9],[103,6,103,7],[103,8,103,9],[115,6,115,7],[115,8,115,9],[116,6,116,7],[116,8,116,9],[117,6,117,7],[117,8,117,9],[112,0,118,0],[112,1,118,1],[112,2,114,2],[112,6,112,7],[112,8,112,9],[113,6,113,7],[113,8,113,9],[114,6,114,7],[114,8,114,9],[115,2,118,2],[108,6,108,7],[108,8,108,9],[109,0,111,0],[109,1,111,1],[109,6,109,7],[109,8,109,9],[110,6,110,7],[110,8,110,9],[111,6,111,7],[111,8,111,9],[123,0,124,0],[123,1,124,1],[123,2,124,2],[123,6,123,7],[123,8,123,9],[124,6,124,7],[124,8,124,9],[121,0,122,0],[121,1,122,1],[121,2,122,2],[121,6,121,7],[121,8,121,9],[122,6,122,7],[122,8,122,9],[118,6,118,7],[118,8,118,9],[119,0,120,0],[119,1,120,1],[119,2,120,2],[119,6,119,7],[119,8,119,9],[120,6,120,7],[120,8,120,9],[132,6,132,7],[132,8,132,9],[129,0,129,9],[130,6,130,9],[127,0,128,0],[127,1,128,1],[127,2,128,2],[127,6,127,7],[127,8,127,9],[128,6,128,7],[128,8,128,9],[125,0,126,0],[125,1,126,1],[125,2,126,2],[125,6,125,7],[125,8,125,9],[126,6,126,7],[126,8,126,9],[134,6,134,7],[134,8,134,9],[133,0,134,0],[133,1,134,1],[133,2,134,2],[133,6,133,7],[133,8,133,9],[264,6,264,9],[265,6,265,9],[262,6,262,9],[263,6,263,9],[260,6,260,9],[261,6,261,9],[258,6,258,9],[259,6,259,9],[236,6,236,9],[237,6,237,9],[256,6,256,9],[257,6,257,9],[254,6,254,9],[255,6,255,9],[252,6,252,9],[253,6,253,9],[250,6,250,9],[251,6,251,9],[248,6,248,9],[247,6,247,9],[244,6,244,9],[245,6,245,9],[242,6,242,9]],"merged_total":5119,"flags":["merged_cut"]}
[{"$nulls":8},"Приложение \nк распоряжению администрации\nМосковского района Санкт-Петербурга\n                                                                                                                                                                                                                                                 от ____________________ №________"]
["ПЕРЕЧЕНЬ\nотдельных видов товаров, работ, услуг, в отношении которых определяются требования к их потребительским свойствам\n(в том числе характеристикам качества) и иным характеристикам (в том числе предельные цены товаров, работ, услуг)"]
["№ п/п","Код по ОКПД2","Наименование отдельного вида товаров, работ, услуг","Требования к потребительским свойствам (в том числе характеристикам качества) и иным характеристикам (в том числе предельные цены) отдельных видов товаров, работ, услуг"]
[null,null,null,"Характеристика","Единица измерения",null,"Значение характеристики"]
[{"$nulls":4},"Код по ОКЕИ","Наименование","Для государственных гражданских служащих государственных органов Санкт-Петербурга, относящихся к категории «руководители», руководителя органа управления территориальным государственным внебюджетным фондом, руководителей унитарных предприятий \nСанкт-Петербурга","Для руководителей казенных и бюджетных учреждений","Для иных должностей","Без учета категорий и (или) групп должностей работников государственных учреждений"]
[1,2,3,4,5,6,7,8,9,10]
["1. Отдельные виды товаров, работ, услуг, включенные в перечень отдельных видов товаров, работ, услуг, предусмотренный в приложении № 2 к Правилам определения требований к закупаемым заказчиками отдельным видам товаров, работ, услуг (в том числе предельных цен товаров, работ, услуг), утвержденным постановлением Правительства Российской Федерации от 02.09.2015 № 927"]
[1,"26.20.11","Компьютеры портативные массой не более 10 кг, такие как ноутбуки, планшетные компьютеры, карманные компьютеры, в том числе совмещающие функции мобильного телефонного аппарата, электронные записные книжки и аналогичная компьютерная техника. Пояснение по требуемой продукции: ноутбуки, планшетные компьютеры","Размер и тип экрана","*","*","*"]
[null,null,null,"Вес","*","*","*"]
[null,null,null,"Тип процессора","*","*","*"]
[null,null,null,"Частота процессора","*","*","*"]
[null,null,null,"Размер оперативной памяти","*","*","*"]
[null,null,null,"Объем накопителя","*","*","*"]
[null,null,null,"Тип жесткого диска","*","*","*"]
[null,null,null,"Оптический привод","*","*","*"]
[null,null,null,"Наличие модулей Wi-Fi, Bluetooth","*","*","*"]
[null,null,null,"Поддержки 3G (UMTS)","*","*","*"]
[null,null,null,"Тип видеоадаптера","*","*","*"]
[null,null,null,"Время работы","*","*","*"]
[null,null,null,"Операционная система","*","*","*"]
[null,null,null,"Предустановленное программное обеспечение","*","*","*"]
[null,null,null,"Предельная цена на ноутбук","*","*","В соответствии с пунктом 521 настоящего Перечня \n(не более 100 тыс.)",null,"В соответствии с пунктом 521 настоящего Перечня \n(не более 80 тыс.)"]
[null,null,null,"Предельная цена на планшетный компьютер","*","*","В соответствии с пунктом 522 настоящего Перечня \n(не более 60 тыс.)",null,"В соответствии с пунктом 522 настоящего Перечня \n(не более 50 тыс.)"]
[2,"26.20.15","Машины вычислительные электронные цифровые прочие, содержащие или не содержащие в одном корпусе одно или два из следующих устройств для автоматической обработки данных: запоминающие устройства, устройства ввода, устройства вывода. Пояснение по требуемой продукции: компьютеры персональные настольные, рабочие станции вывода","Тип (моноблок, системный блок и монитор)","*","*","*"]
[null,null,null,"Размер экрана (монитора)","*","*","*"]
[null,null,null,"Тип процессора","*","*","*"]
[null,null,null,"Частота процессора","*","*","*"]
[null,null,null,"Размер оперативной памяти","*","*","*"]
[null,null,null,"Объем накопителя","*","*","*"]
[null,null,null,"Тип жесткого диска","*","*","*"]
[null,null,null,"Оптический привод","*","*","*"]
[null,null,null,"Тип видеоадаптера","*","*","*"]
[null,null,null,"Операционная система","*","*","*"]
[null,null,null,"Предустановленное программное обеспечение","*","*","*"]
[null,null,null,"Предельная цена","*","*","В соответствии с пунктами 525, 526\nнастоящего Перечня",null,"В соответствии с пунктами 525, 526\nнастоящего Перечня"]
[3,"26.20.16","Устройства ввода или вывода данных, содержащие или не содержащие в одном корпусе запоминающие устройства. Пояснение по требуемой продукции: принтеры, сканеры","Метод печати (струйный, лазерный) (для принтера)","*","*","*"]
[null,null,null,"Разрешение сканирования (для сканера)","*","*","*"]
[null,null,null,"Цветность (цветной, черно-белый)","*","*","*"]
[null,null,null,"Максимальный формат","*","*","*"]
[null,null,null,"Скорость печати (сканирования)","*","*","*"]
[null,null,null,"Наличие дополнительных модулей и интерфейсов (сетевой интерфейс, устройства чтения карт памяти и т.д.)","*","*","*"]
[null,null,null,"Предельная цена","*","*","В соответствии с пунктами 529, 530 настоящего Перечня "]
[4,"26.30.11","Аппаратура коммуникационная передающая с приемными устройствами. Пояснение по требуемой продукции: телефоны мобильные","Тип устройства (телефон, смартфон)","*","*","*"]
[null,null,null,"Поддерживаемые стандарты","*","*","*"]
[null,null,null,"Операционная система","*","*","*"]
[null,null,null,"Время работы","*","*","*"]
[null,null,null,"Метод управления (сенсорный, кнопочный)","*","*","*"]
[null,null,null,"Количество SIM-карт","*","*","*"]
[null,null,null,"Наличие модулей и интерфейсов                              (Wi-Fi, Bluetooth, USB, GPS)","*","*","*"]
[null,null,null,"Стоимость годового владения оборудованием (включая договоры технической поддержки, обслуживания, сервисные договоры) из расчета на одного абонента (одну единицу трафика) в течение всего срока службы","*","*","*"]
[null,null,null,"Предельная цена",383,"Рубль","В соответствии с пунктами 549, 550 настоящего Перечня  (не более 15 тыс.)",null,"В соответствии с пунктами 549, 550 настоящего Перечня            (не более 10 тыс.)"]
[5,"29.10.21","Средства транспортные с двигателем с искровым зажиганием, с рабочим объемом цилиндров не более 1500 куб. см, новые","Мощность двигателя",251,"Лошадиная сила","Не более 200","Не более 200"]
[null,null,null,"Комплектация","-","-","В соответствии с пунктом 507 настоящего Перечня"]
[null,null,null,"Предельная цена",383,"Рубль","Не более 1,5 млн.","Не более 1,5 млн."]
[6,"29.10.22","Средства транспортные с двигателем с искровым зажиганием, с рабочим объемом цилиндров более 1500 куб. см, новые","Мощность двигателя",251,"Лошадиная сила","Не более 200","Не более 200"]
[null,null,null,"Комплектация","-","-","В соответствии с пунктом 508 настоящего Перечня"]
[null,null,null,"Предельная цена",383,"Рубль","Не более 1,5 млн.","Не более 1,5 млн."]
[7,"29.10.23","Средства транспортные с поршневым двигателем внутреннего сгорания с воспламенением от сжатия (дизелем или полудизелем), новые","Мощность двигателя",251,"Лошадиная сила","Не более 200","Не более 200"]
[null,null,null,"Комплектация","-","-","В соответствии с пунктом 509 настоящего Перечня"]
[null,null,null,"Предельная цена",383,"Рубль","Не более 1,5 млн.","Не более 1,5 млн."]
[8,"29.10.24","Средства автотранспортные для перевозки людей прочие","Мощность двигателя",251,"Лошадиная сила","Не более 200"]
[null,null,null,"Комплектация","-","-","В соответствии с пунктом 510 настоящего Перечня"]
[null,null,null,"Предельная цена",383,"Рубль","Не более 1,5 млн. \n(кроме  средств транспортных, приводимых в движение исключительно электрическим двигателем и заряжаемых с помощью внешнего источника электроэнергии)"]
[9,"29.10.30","Средства автотранспортные для перевозки 10 или более человек","Мощность двигателя",251,"Лошадиная сила","Не более 250"]
[null,null,null,"Комплектация","-","-","В соответствии с пунктами 512, 514 настоящего Перечня"]
[null,null,null,"Предельная цена",383,"Рубль"]
[10,"29.10.41","Средства автотранспортные грузовые с поршневым двигателем внутреннего сгорания с воспламенением от сжатия (дизелем или полудизелем), новые","Мощность двигателя",251,"Лошадиная сила","Не более 250"]
[null,null,null,"Комплектация","-","-","В соответствии с пунктами 515, 516, 517 настоящего Перечня"]
[null,null,null,"Предельная цена",383,"Рубль"]
[11,"29.10.42","Средства автотранспортные грузовые с поршневым двигателем внутреннего сгорания с искровым зажиганием; прочие грузовые транспортные средства, новые","Мощность двигателя",251,"Лошадиная сила","Не более 250"]
[null,null,null,"Комплектация","-","-","В соответствии с пунктом 518 настоящего Перечня"]
[null,null,null,"Предельная цена",383,"Рубль"]
[12,"29.10.43","Автомобили-тягачи седельные для полуприцепов","Мощность двигателя",251,"Лошадиная сила","Не более 250"]
[null,null,null,"Комплектация","-","-","-"]
[null,null,null,"Предельная цена",383,"Рубль"]
[13,"29.10.44","Шасси с установленными двигателями для автотранспортных средств","Мощность двигателя",251,"Лошадиная сила","Не более 250"]
[null,null,null,"Комплектация","-","-","В соответствии с пунктом 520 настоящего Перечня"]
[null,null,null,"Предельная цена",383,"Рубль"]
[]
[14,"31.01.11","Мебель металлическая для офисов. Пояснение по закупаемой продукции: мебель для сидения, преимущественно с металлическим каркасом","Материал (металл)","-","-","Металл",null,"Металл"]
[null,null,null,"Обивочные материалы","-","-","Предельное значение - кожа натуральная",null,"Предельное значение - искусственная кожа"]
[{"$nulls":6},"возможные значения: искусственная кожа, мебельный (искусственный) мех, искусственная замша (микрофибра), ткань, нетканые материалы",null,"возможные значения: мебельный (искусственный) мех, искусственная замша (микрофибра), ткань, нетканые материалы"]
[null,null,null,"Предельная цена",383,"Рубль","В соответствии с пунктами 565, 566, 567, 574 настоящего Перечня",null,"В соответствии с пунктами 565, 566, 567, 574 настоящего Перечня"]
[15,"31.01.12","Мебель деревянная для офисов. Пояснение по закупаемой продукции: мебель для сидения, преимущественно с деревянным каркасом","Материал (вид древесины)","-","-","Предельное значение - массив древесины «ценных» пород (твердолиственных и тропических);",null,"Возможное значение - древесина хвойных и мягколиственных пород: береза, лиственница, сосна, ель"]
[{"$nulls":6},"возможные значения: древесина хвойных и мягколиственных пород: береза, лиственница, сосна, ель"]
[null,null,null,"Обивочные материалы","-","-","Предельное значение - кожа натуральная",null,"Предельное значение - искусственная кожа"]
[{"$nulls":6},"возможные значения: искусственная кожа; мебельный (искусственный) мех, искусственная замша (микрофибра), ткань, нетканые материалы",null,"возможные значения; мебельный (искусственный) мех, искусственная замша (микрофибра), ткань, нетканые материалы"]
[null,null,null,"Предельная цена",383,"Рубль","В соответствии с пунктами 582, 583, 597\nнастоящего Перечня",null,"В соответствии с пунктами 582, 583, 597\nнастоящего Перечня"]
[16,"49.32.11","Услуги такси","Мощность двигателя автомобиля",251,"Лошадиная сила","Не более 200",null,"-"]
[null,null,null,"Тип коробки передач автомобиля","-","-","*",null,"-"]
[null,null,null,"Комплектация автомобиля","-","-","*",null,"-"]
[null,null,null,"Время предоставления автомобиля потребителю","-","-","*",null,"-"]
[null,null,null,"Предельная цена",383,"Рубль","*",null,"-"]
[17,"49.32.12","Услуги по аренде легковых автомобилей с водителем","Мощность двигателя автомобиля",251,"Лошадиная сила","Не более 200",null,"Не более 150"]
[null,null,null,"Тип коробки передач","-","-","*",null,"*"]
[null,null,null,"Комплектация автомобиля","-","-","*",null,"*"]
[null,null,null,"Время предоставления автомобиля потребителю",356,"Час","*",null,"*"]
[null,null,null,"Предельная цена (за 1 час работы автомобиля)",383,"Рубль","В соответствии с пунктами 28, 29 \nнастоящего Перечня",null,"В соответствии с пунктами 28, 29 \nнастоящего Перечня"]
[18,"61.10.30","Услуги по передаче данных по проводным телекоммуникационным сетям. Пояснение по требуемым услугам: оказание услуг связи по передаче данных","Скорость канала передачи данных",2545,"Мегабит в секунду","*",null,"*"]
[null,null,null,"Доля потерянных пакетов",744,"Процент","*",null,"*"]
[null,null,null,"Предельная цена",383,"Рубль","*",null,"*"]
[19,"61.20.11","Услуги подвижной связи общего пользования - обеспечение доступа и поддержка пользователя. Пояснение по требуемым услугам: оказание услуг подвижной радиотелефонной связи","Тарификация услуги голосовой связи, доступа в сеть «Интернет» (лимитная/безлимитная)","-","-","*",null,"*"]
[null,null,null,"Объем доступной услуги голосовой связи (минут), доступа в сеть «Интернет» (Гб)","-","-","*",null,"*"]
[null,null,null,"Доступ услуги голосовой связи (домашний регион, территория Российской Федерации, за пределами Российской Федерации - роуминг)","-","-","*",null,"*"]
[null,null,null,"Доступ в сеть «Интернет» (Гб) (да/нет)","-","-","*",null,"*"]
[null,null,null,"Предельная цена",383,"Рубль","Не более 4 тыс. ",null,"Не более 2 тыс."]
[20,"61.20.30","Услуги по передаче данных по беспроводным телекоммуникационным сетям. Пояснения по требуемой услуге:"]
[null,null,"услуга связи для ноутбуков","Предельная цена",383,"Рубль","Не более 4 тыс. ",null,"Не более 2 тыс."]
[null,null,"услуга связи для планшетных компьютеров","Предельная цена",383,"Рубль","Не более 4 тыс. ",null,"Не более 2 тыс."]
[21,"61.20.42","Услуги по широкополосному доступу к сети «Интернет» по беспроводным сетям.\nПояснения по требуемой услуге:"]
[null,null,"услуга связи для ноутбуков","Предельная цена",383,"Рубль","Не более 4 тыс. ",null,"Не более 2 тыс."]
[null,null,"услуга связи для планшетных компьютеров","Предельная цена",383,"Рубль","Не более 4 тыс. ",null,"Не более 2 тыс."]
[22,"77.11.10","Услуги по аренде и лизингу легковых автомобилей и легких (не более 3,5 т) автотранспортных средств без водителя. Пояснение по требуемой услуге: услуга по аренде и лизингу легковых автомобилей без водителя","Мощность двигателя автомобиля",251,"Лошадиная сила","Не более 200",null,"-"]
[null,null,null,"Тип коробки передач","-","-","*",null,"-"]
[null,null,null,"Комплектация автомобиля","-","-","*",null,"-"]
[null,null,"услуга по аренде и лизингу легких (до 3,5 т) автотранспортных средств без водителя","Мощность двигателя автомобиля",251,"Лошадиная сила","*",null,"-"]
[null,null,null,"Тип коробки передач","-","-","*",null,"-"]
[null,null,null,"Комплектация ","-","-","*",null,"-"]
[null,null,null,"Предельная цена",383,"Рубль","*",null,"-"]
[23,"58.29.13","Обеспечение программное для администрирования баз данных на электронном носителе. Пояснение по требуемой продукции: системы управления базами данных","Стоимость годового владения программным обеспечением (включая договоры технической поддержки, обслуживания, сервисные договоры) из расчета на одного пользователя в течение всего срока службы, общая сумма выплат по лицензионным и иным договорам (независимо от вида договора), отчислений в пользу иностранных юридических и физических лиц","*","*","*",null,"*"]
[null,null,null,"Предельная цена",383,"Рубль","*",null,"*"]
[24,"58.29.21","Приложения общие для повышения эффективности бизнеса и приложения для домашнего пользования, отдельно реализуемые. Пояснение по требуемой продукции: офисные приложения","Совместимость с системами межведомственного электронного документооборота (МЭДО) (да/нет), поддерживаемые типы данных, текстовые и графические возможности приложения, соответствие Федеральному закону «О персональных данных» приложений, содержащих персональные данные (да/нет)","-","-","*",null,"*"]
[null,null,null,"Предельная цена",383,"Рубль","*",null,"*"]
[25,"58.29.31","Обеспечение программное системное для загрузки. Пояснение по требуемой продукции: средства обеспечения информационной безопасности","Использование российских криптоалгоритмов при использовании криптографической защиты информации в составе средств обеспечения информационной безопасности систем, доступность на русском языке интерфейса конфигурирования средства информационной безопасности","-","-","*",null,"*"]
[null,null,null,"Предельная цена",383,"Рубль","*",null,"*"]
[26,"58.29.32","Обеспечение программное прикладное для загрузки. Пояснение по требуемой продукции: системы управления процессами организации","Поддержка и формирование регистров учета, содержащих функции по ведению бухгалтерской документации, которые соответствуют российским стандартам систем бухгалтерского учета","-","-","*",null,"*"]
[null,null,null,"Предельная цена",383,"Рубль","*",null,"*"]
[27,"61.90.10","Услуги телекоммуникационные прочие. Пояснение по требуемым услугам: оказание услуг по предоставлению высокоскоростного доступа в сеть «Интернет»","Максимальная скорость соединения в  сети «Интернет»",2545,"Мегабит в секунду","*",null,"*"]
[null,null,null,"Предельная цена",383,"Рубль","*",null,"*"]
["2. Перечень отдельных видов товаров, работ, услуг, определенный Правительством Санкт-Петербурга"]
[null,null,null,"В соответствии с кодом конечного каталожного наименования (ККН)",null,null,"Предельная цена (руб. с НДС)"]
[1,2,3,4,5,6,7,8,9,10]
[28,"49.32.12","Услуги арендованных легковых автомобилей с водителем в Москве","49.32.12.000-001",356,"Час","**",null,"-"]
[29,"49.32.12","Услуги арендованных легковых автомобилей с водителем в Санкт-Петербурге","49.32.12.000-003",356,"Час","**",null,"-"]
[null,null,null,"49.32.12.000-004",356,"Час","-",null,"**"]
[30,"56.29.20","Услуги столовых. Пояснение по требуемой продукции: услуги школьных столовых и кухонь","56.29.20.120-100",796,"Штука","***"]
[null,null,null,"56.29.20.120-101",796,"Штука","***"]
[null,null,null,"56.29.20.120-102",796,"Штука","***"]
[null,null,null,"56.29.20.120-103",796,"Штука","***"]
[null,null,null,"56.29.20.120-104",796,"Штука","***"]
[null,null,null,"56.29.20.120-105",796,"Штука","***"]
[null,null,null,"56.29.20.120-106",796,"Штука","***"]
[null,null,null,"56.29.20.120-107",796,"Штука","***"]
[null,null,null,"56.29.20.120-108",796,"Штука","***"]
[null,null,null,"56.29.20.120-109",796,"Штука","***"]
[null,null,null,"56.29.20.120-110",796,"Штука","***"]
[null,null,null,"56.29.20.120-111",796,"Штука","***"]
[null,null,null,"56.29.20.120-112",796,"Штука","***"]
[null,null,null,"56.29.20.120-113",796,"Штука","***"]
[null,null,null,"56.29.20.120-114",796,"Штука","***"]
[null,null,null,"56.29.20.120-115",796,"Штука","***"]
[null,null,null,"56.29.20.120-116",796,"Штука","***"]
[null,null,null,"56.29.20.120-117",796,"Штука","***"]
[null,null,null,"56.29.20.120-118",796,"Штука","***"]
[null,null,null,"56.29.20.120-119",796,"Штука","***"]
[null,null,null,"56.29.20.120-120",796,"Штука","***"]
[null,null,null,"56.29.20.120-121",796,"Штука","***"]
[null,null,null,"56.29.20.120-122",796,"Штука","***"]
[null,null,null,"56.29.20.120-123",796,"Штука","***"]
[31,"56.29.20","Услуги столовых. Пояснение по требуемой продукции: услуги дошкольных столовых и кухонь","56.29.20.190-053",796,"Штука","**"]
[null,null,null,"56.29.20.190-054",796,"Штука","**"]
[null,null,null,"56.29.20.190-055",796,"Штука","**"]
[null,null,null,"56.29.20.190-056",796,"Штука","**"]
[null,null,null,"56.29.20.190-057",796,"Штука","**"]
[null,null,null,"56.29.20.190-058",796,"Штука","**"]
[null,null,null,"56.29.20.190-059",796,"Штука","**"]
[null,null,null,"56.29.20.190-060",796,"Штука","**"]
[null,null,null,"56.29.20.190-061",796,"Штука","**"]
[null,null,null,"56.29.20.190-062",796,"Штука","**"]
[null,null,null,"56.29.20.190-063",796,"Штука","**"]
[null,null,null,"56.29.20.190-064",796,"Штука","**"]
[null,null,null,"56.29.20.190-065",796,"Штука","**"]
[null,null,null,"56.29.20.190-066",796,"Штука","**"]
[null,null,null,"56.29.20.190-067",796,"Штука","**"]
[null,null,null,"56.29.20.190-068",796,"Штука","**"]
[null,null,null,"56.29.20.190-069",796,"Штука","**"]
[null,null,null,"56.29.20.190-070",796,"Штука","**"]
[null,null,null,"56.29.20.190-071",796,"Штука","**"]
[null,null,null,"56.29.20.190-072",796,"Штука","**"]
[null,null,null,"56.29.20.190-073",796,"Штука","**"]
[null,null,null,"56.29.20.190-074",796,"Штука","**"]
[null,null,null,"56.29.20.190-075",796,"Штука","**"]
[null,null,null,"56.29.20.190-076",796,"Штука","**"]
[null,null,null,"56.29.20.190-077",796,"Штука","**"]
[null,null,null,"56.29.20.190-078",796,"Штука","**"]
[null,null,null,"56.29.20.190-001",796,"Штука","**"]
[null,null,null,"56.29.20.190-002",796,"Штука","**"]
[null,null,null,"56.29.20.190-003",796,"Штука","**"]
[null,null,null,"56.29.20.190-004",796,"Штука","**"]
[null,null,null,"56.29.20.190-005",796,"Штука","**"]
[null,null,null,"56.29.20.190-006",796,"Штука","**"]
[null,null,null,"56.29.20.190-007",796,"Штука","**"]
[null,null,null,"56.29.20.190-008",796,"Штука","**"]
[null,null,null,"56.29.20.190-009",796,"Штука","**"]
[null,null,null,"56.29.20.190-010",796,"Штука","**"]
[null,null,null,"56.29.20.190-011",796,"Штука","**"]
[null,null,null,"56.29.20.190-012",796,"Штука","**"]
[null,null,null,"56.29.20.190-013",796,"Штука","**"]
[null,null,null,"56.29.20.190-014",796,"Штука","**"]
[null,null,null,"56.29.20.190-015",796,"Штука","**"]
[null,null,null,"56.29.20.190-016",796,"Штука","**"]
[null,null,null,"56.29.20.190-017",796,"Штука","**"]
[null,null,null,"56.29.20.190-018",796,"Штука","**"]
[null,null,null,"56.29.20.190-019",796,"Штука","**"]
[null,null,null,"56.29.20.190-020",796,"Штука","**"]
[null,null,null,"56.29.20.190-021",796,"Штука","**"]
[null,null,null,"56.29.20.190-022",796,"Штука","**"]
[null,null,null,"56.29.20.190-023",796,"Штука","**"]
[null,null,null,"56.29.20.190-024",796,"Штука","**"]
[null,null,null,"56.29.20.190-025",796,"Штука","**"]
[null,null,null,"56.29.20.190-026",796,"Штука","**"]
[32,"69.10.19","Услуги юридические прочие. Пояснение по требуемым услугам: услуги независимых экспертов, включаемых в составы аттестационной и конкурсной комиссий, образуемых в государственном органе Санкт-Петербурга","-",356,"Час","Не более 150",null,null,"-"]
["2.1. Перечень товарных позиций части «Продовольственные товары и сырье»"]
[null,null,null,"В соответствии с кодом конечного каталожного наименования (ККН)",null,null,"Предельная цена (руб. с НДС)"]
[33,"01.11.61","Фасоль овощная","01.11.61.000-001",166,"Килограмм","**"]
[34,"01.11.71","Фасоль сушеная. Пояснение по требуемой продукции: фасоль продовольственная","01.11.71.110-001",166,"Килограмм","**"]
[null,null,null,"01.11.71.110-003",166,"Килограмм","**"]
[null,null,null,"01.11.71.110-004",166,"Килограмм","**"]
[35,"01.11.74","Чечевица сушеная. Пояснение по требуемой продукции: чечевица продовольственная","01.11.74.110-001",166,"Килограмм","**"]
[null,null,null,"01.11.74.110-003",166,"Килограмм","**"]
[null,null,null,"01.11.74.110-004",166,"Килограмм","**"]
[null,null,null,"01.11.74.110-005",166,"Килограмм","**"]
[null,null,null,"01.11.74.110-006",166,"Килограмм","**"]
[36,"01.11.75","Горох сушеный. Пояснение по требуемой продукции: горох шлифованный","01.11.75.110-001",166,"Килограмм","**"]
[null,null,null,"01.11.75.110-002",166,"Килограмм","**"]
[37,"01.11.83","Арахис (орех земляной) лущеный","01.11.83.000-001",166,"Килограмм","**"]
[38,"01.13.12","Капуста. Пояснение по требуемой продукции: капуста белокочанная","01.13.12.120-001",166,"Килограмм","**"]
[null,null,null,"01.13.12.120-002",166,"Килограмм","**"]
[39,"01.13.12","Капуста. Пояснение по требуемой продукции: капуста брюссельская","01.13.12.110-001",166,"Килограмм","**"]
[40,"01.13.12","Капуста. Пояснение по требуемой продукции: капуста китайская","01.13.12.150-001",166,"Килограмм","**"]
[41,"01.13.12","Капуста. Пояснение по требуемой продукции: капуста кольраби","01.13.12.160-001",166,"Килограмм","**"]
[42,"01.13.12","Капуста. Пояснение по требуемой продукции: капуста краснокочанная","01.13.12.130-001",166,"Килограмм","**"]
[43,"01.13.12","Капуста. Пояснение по требуемой продукции: капуста савойская","01.13.12.140-001",166,"Килограмм","**"]
[44,"01.13.13","Капуста цветная и брокколи. Пояснение по требуемой продукции: капуста брокколи","01.13.13.000-001",166,"Килограмм","**"]
[45,"01.13.13","Капуста цветная и брокколи. Пояснение по требуемой продукции: капуста цветная","01.13.13.000-002",166,"Килограмм","**"]
[null,null,null,"01.13.13.000-003",166,"Килограмм","**"]
[46,"01.13.16","Шпинат","01.13.16.000-001",166,"Килограмм","**"]
[47,"01.13.19","Овощи листовые или стебельные прочие. Пояснение по требуемой продукции: петрушка свежая","01.13.19.000-001",166,"Килограмм","**"]
[48,"01.13.19","Овощи листовые или стебельные прочие. Пояснение по требуемой продукции: сельдерей","01.13.19.000-003",166,"Килограмм","**"]
[49,"01.13.19","Овощи листовые или стебельные прочие. Пояснение по требуемой продукции: укроп свежий","01.13.19.000-002",166,"Килограмм","**"]
[50,"01.13.19","Овощи листовые или стебельные прочие. Пояснение по требуемой продукции: щавель","01.13.19.000-005",166,"Килограмм","**"]
[51,"01.13.19","Овощи листовые или стебельные прочие. Пояснение по требуемой продукции: базилик свежий","01.13.19.000-006",166,"Килограмм","**"]
[52,"01.13.19","Овощи листовые или стебельные прочие. Пояснение по требуемой продукции: кориандр свежий (кинза)","01.13.19.000-007",166,"Килограмм","**"]
[53,"01.13.21","Арбузы","01.13.21.000-001",166,"Килограмм","**"]
[54,"01.13.29","Культуры бахчевые прочие. Пояснение по требуемой продукции: дыня","01.13.29.000-001",166,"Килограмм","**"]
[55,"01.13.32","Огурцы","01.13.32.000-002",166,"Килограмм","**"]
[null,null,null,"01.13.32.000-004",166,"Килограмм","**"]
[null,null,null,"01.13.32.000-005",166,"Килограмм","**"]
[null,null,null,"01.13.32.000-003",166,"Килограмм","**"]
[null,null,null,"01.13.32.000-006",166,"Килограмм","**"]
[null,null,null,"01.13.32.000-007",166,"Килограмм","**"]
[56,"01.13.33","Баклажаны","01.13.33.000-001",166,"Килограмм","**"]
[57,"01.13.34","Томаты (помидоры)","01.13.34.000-001",166,"Килограмм","**"]
[null,null,null,"01.13.34.000-003",166,"Килограмм","**"]
[null,null,null,"01.13.34.000-002",166,"Килограмм","**"]
[null,null,null,"01.13.34.000-004",166,"Килограмм","**"]
[58,"01.13.39","Культуры овощные плодовые прочие, не включенные в другие группировки. Пояснение по требуемой продукции: кабачки","01.13.39.110-001",166,"Килограмм","**"]
[null,null,null,"01.13.39.110-002",166,"Килограмм","**"]
[59,"01.13.39","Культуры овощные плодовые прочие, не включенные в другие группировки. Пояснение по требуемой продукции: перец сладкий","01.13.39.190-001",166,"Килограмм","**"]
[60,"01.13.39","Культуры овощные плодовые прочие, не включенные в другие группировки. Пояснение по требуемой продукции: тыква продовольственная","01.13.39.130-001",166,"Килограмм","**"]
[61,"01.13.41","Морковь, репа, брюква. Пояснение по требуемой продукции: брюква столовая","01.13.41.130-001",166,"Килограмм","**"]
[62,"01.13.41","Морковь, репа, брюква. Пояснение по требуемой продукции: морковь столовая","01.13.41.110-001",166,"Килограмм","**"]
[null,null,null,"01.13.41.110-003",166,"Килограмм","**"]
[63,"01.13.41","Морковь, репа, брюква. Пояснение по требуемой продукции: репа столовая","01.13.41.120-001",166,"Килограмм","**"]
[null,null,null,"01.13.41.120-002",166,"Килограмм","**"]
[64,"01.13.41","Морковь, репа, брюква. Пояснение по требуемой продукции: морковь","01.13.41.110-005",166,"Килограмм","**"]
[65,"01.13.42","Чеснок","01.13.42.000-001",166,"Килограмм","**"]
[null,null,null,"01.13.42.000-002",166,"Килограмм","**"]
[66,"01.13.43","Культуры овощные луковичные. Пояснение по требуемой продукции: лук репчатый","01.13.43.110-001",166,"Килограмм","**"]
[null,null,null,"01.13.43.110-002",166,"Килограмм","**"]
[67,"01.13.43","Культуры овощные луковичные. Пояснение по требуемой продукции: лук свежий зеленый","01.13.43.190-001",166,"Килограмм","**"]
[68,"01.13.44","Лук-порей и прочие культуры овощные луковичные. Пояснение по требуемой продукции: лук-порей","01.13.44.000-001",166,"Килограмм","**"]
[69,"01.13.49","Корнеплоды и клубнеплоды овощные, культуры овощные луковичные (без высокого содержания крахмала или инулина), прочие. Пояснение по требуемой продукции: редис","01.13.49.130-001",166,"Килограмм","**"]
[70,"01.13.49","Корнеплоды и клубнеплоды овощные, культуры овощные луковичные (без высокого содержания крахмала или инулина), прочие. Пояснение по требуемой продукции: редька","01.13.49.120-001",166,"Килограмм","**"]
[null,null,null,"01.13.49.120-002",166,"Килограмм","**"]
[71,"01.13.49","Корнеплоды и клубнеплоды овощные, культуры овощные луковичные (без высокого содержания крахмала или инулина), прочие. Пояснение по требуемой продукции: свекла столовая","01.13.49.110-001",166,"Килограмм","**"]
[null,null,null,"01.13.49.110-002",166,"Килограмм","**"]
[72,"01.13.49","Корнеплоды и клубнеплоды овощные, культуры овощные луковичные (без высокого содержания крахмала или инулина), прочие. Пояснение по требуемой продукции: сельдерей","01.13.49.190-001",166,"Килограмм","**"]
[73,"01.13.49","Корнеплоды и клубнеплоды овощные, культуры овощные луковичные (без высокого содержания крахмала или инулина), прочие. Пояснение по требуемой продукции: свекла столовая (в вакуумной упаковке)","01.13.49.110-004",166,"Килограмм","**"]
[74,"01.13.51","Картофель. Пояснение по требуемой продукции: картофель продовольственный","01.13.51.120-001",166,"Килограмм","**"]
[null,null,null,"01.13.51.110-001",166,"Килограмм","**"]
[null,null,null,"01.13.51.120-002",166,"Килограмм","**"]
[75,"01.21.11","Виноград свежий столовых сортов","01.21.11.000-001",166,"Килограмм","**"]
[76,"01.22.12","Бананы","01.22.12.000-001",166,"Килограмм","**"]
[77,"01.23.12","Лимоны и лаймы. Пояснение по требуемой продукции: лимоны","01.23.12.000-001",166,"Килограмм","**"]
[null,null,null,"01.23.12.000-002",166,"Килограмм","**"]
[78,"01.23.13","Апельсины","01.23.13.000-001",166,"Килограмм","**"]
[null,null,null,"01.23.13.000-002",166,"Килограмм","**"]
[79,"01.23.14","Мандарины, включая танжерины, клементины и аналогичные гибриды цитрусовых культур. Пояснение по требуемой продукции: мандарины","01.23.14.000-001",166,"Килограмм","**"]
[null,null,null,"01.23.14.000-002",166,"Килограмм","**"]
[80,"01.24.10","Яблоки","01.24.10.000-003",166,"Килограмм","**"]
[null,null,null,"01.24.10.000-004",166,"Килограмм","**"]
[81,"01.24.21","Груши","01.24.21.000-001",166,"Килограмм","**"]
[null,null,null,"01.24.21.000-002",166,"Килограмм","**"]
[82,"01.24.23","Абрикосы","01.24.23.000-001",166,"Килограмм","**"]
[83,"01.24.24","Вишня","01.24.24.000-001",166,"Килограмм","**"]
[84,"01.24.25","Персики","01.24.25.000-001",166,"Килограмм","**"]
[null,null,null,"01.24.25.000-002",166,"Килограмм","**"]
[85,"01.24.26","Нектарины","01.24.26.000-001",166,"Килограмм","**"]
[null,null,null,"01.24.26.000-002",166,"Килограмм","**"]
[86,"01.24.27","Сливы","01.24.27.000-001",166,"Килограмм","**"]
[null,null,null,"01.24.27.000-003",166,"Килограмм","**"]
[null,null,null,"01.24.27.000-002",166,"Килограмм","**"]
[null,null,null,"01.24.27.000-004",166,"Килограмм","**"]
[87,"01.24.29","Плоды семечковых и косточковых культур прочие, не включенные в другие группировки. Пояснение по требуемой продукции: черешня","01.24.29.110-001",166,"Килограмм","**"]
[88,"01.25.11","Киви","01.25.11.000-001",166,"Килограмм","**"]
[89,"01.25.19","Ягоды, плоды растений вида Vaccinium прочие, не включенные в другие группировки. Пояснение по требуемой продукции: брусника","01.25.19.160-001",166,"Килограмм","**"]
[90,"01.25.19","Ягоды, плоды растений вида Vaccinium прочие, не включенные в другие группировки. Пояснение по требуемой продукции: клюква","01.25.19.150-001",166,"Килограмм","**"]
[91,"01.25.19","Ягоды, плоды растений вида Vaccinium прочие, не включенные в другие группировки. Пояснение по требуемой продукции: плоды шиповника","01.25.19.190-001",166,"Килограмм","**"]
[null,null,null,"01.25.19.190-002",166,"Килограмм","**"]
[92,"01.25.19","Ягоды, плоды растений вида Vaccinium прочие, не включенные в другие группировки. Пояснение по требуемой продукции: виноград","01.25.19.190-003",166,"Килограмм","**"]
[null,null,null,"01.25.19.190-006",166,"Килограмм","**"]
[null,null,null,"01.25.19.190-004",166,"Килограмм","**"]
[null,null,null,"01.25.19.190-005",166,"Килограмм","**"]
[93,"01.25.31","Миндаль","01.25.31.000-001",166,"Килограмм","**"]
[94,"01.25.33","Фундук","01.25.33.000-001",166,"Килограмм","**"]
[95,"01.25.35","Орехи грецкие","01.25.35.000-001",166,"Килограмм","**"]
[96,"01.25.39","Орехи прочие, не включенные в другие группировки. Пояснение по требуемой продукции: кешью","01.25.39.000-001",166,"Килограмм","**"]
[97,"01.47.21","Яйца куриные в скорлупе свежие","01.47.21.000-001",796,"Штука","**"]
[null,null,null,"01.47.21.000-002",796,"Штука","**"]
[98,"01.49.21","Мед натуральный. Пояснение по требуемой продукции: мед натуральный пчелиный","01.49.21.110-001",166,"Килограмм","**"]
[null,null,null,"01.49.21.110-002",166,"Килограмм","**"]
[99,"03.11.63","Водоросли морские и прочие, не являющиеся продукцией рыбоводства. Пояснение по требуемой продукции: капуста морская","03.11.63.120-002",166,"Килограмм","**"]
[null,null,null,"03.11.63.120-001",166,"Килограмм","**"]
[100,"10.11.31","Мясо крупного рогатого скота (говядина и телятина) замороженное, в том числе для детского питания. Пояснение по требуемой продукции: говядина замороженная","10.11.31.110-001",166,"Килограмм","**"]
[null,null,null,"10.11.31.110-002",166,"Килограмм","**"]
[null,null,null,"10.11.31.110-005",166,"Килограмм","**"]
[null,null,null,"10.11.31.110-003",166,"Килограмм","**"]
[null,null,null,"10.11.31.110-004",166,"Килограмм","**"]
[101,"10.11.31","Мясо крупного рогатого скота (говядина и телятина) замороженное, в том числе для детского питания. Пояснение по требуемой продукции: субпродукты пищевые крупного рогатого скота замороженные","10.11.31.140-001",166,"Килограмм","**"]
[null,null,null,"10.11.31.140-002",166,"Килограмм","**"]
[null,null,null,"10.11.31.140-003",166,"Килограмм","**"]
[102,"10.11.31","Мясо крупного рогатого скота (говядина и телятина) замороженное, в том числе для детского питания. Пояснение по требуемой продукции: телятина замороженная","10.11.31.120-001",166,"Килограмм","**"]
[103,"10.11.32","Свинина замороженная, в том числе для детского питания. Пояснение по требуемой продукции: свинина замороженная","10.11.32.110-002",166,"Килограмм","**"]
[null,null,null,"10.11.32.110-003",166,"Килограмм","**"]
[null,null,null,"10.11.32.110-001",166,"Килограмм","**"]
[null,null,null,"10.11.32.110-004",166,"Килограмм","**"]
[104,"10.11.32","Свинина замороженная, в том числе для детского питания. Пояснение по требуемой продукции: субпродукты пищевые свиные замороженные","10.11.32.140-001",166,"Килограмм","**"]
[null,null,null,"10.11.32.140-002",166,"Килограмм","**"]
[105,"10.11.39","Мясо и субпродукты пищевые прочие парные, остывшие, охлажденные или замороженные. Пояснение по требуемой продукции: мясо кролика","10.11.39.110-001",166,"Килограмм","**"]
[106,"10.12.10","Мясо птицы охлажденное, в том числе для детского питания","10.12.10.110-003",166,"Килограмм","**"]
[null,null,null,"10.12.10.110-001",166,"Килограмм","**"]
[null,null,null,"10.12.10.110-002",166,"Килограмм","**"]
[null,null,null,"10.12.10.170-001",166,"Килограмм","**"]
[null,null,null,"10.12.10.120-001",166,"Килограмм","**"]
[107,"10.12.20","Мясо сельскохозяйственной птицы замороженное, в том числе для детского питания","10.12.20.110-005",166,"Килограмм","**"]
[null,null,null,"10.12.20.110-004",166,"Килограмм","**"]
[null,null,null,"10.12.20.110-003",166,"Килограмм","**"]
[null,null,null,"10.12.20.110-001",166,"Килограмм","**"]
[null,null,null,"10.12.20.170-001",166,"Килограмм","**"]
[null,null,null,"10.12.20.120-001",166,"Килограмм","**"]
[108,"10.13.14","Изделия колбасные и аналогичная пищевая продукция из мяса, субпродуктов или крови животных, из мяса и субпродуктов птицы. Пояснение по требуемой продукции: ветчина","10.13.14.529-001",166,"Килограмм","**"]
[null,null,null,"10.13.14.529-002",166,"Килограмм","**"]
[null,null,null,"10.13.14.529-003",166,"Килограмм","**"]
[null,null,null,"10.13.14.529-004",166,"Килограмм","**"]
[109,"10.13.14","Изделия колбасные и аналогичная пищевая продукция из мяса, субпродуктов или крови животных, из мяса и субпродуктов птицы. Пояснение по требуемой продукции: изделия колбасные вареные, в том числе фаршированные мясные, сосиски, колбаса","10.13.14.111-001",166,"Килограмм","**"]
[null,null,null,"10.13.14.111-002",166,"Килограмм","**"]
[null,null,null,"10.13.14.112-004",166,"Килограмм","**"]
[null,null,null,"10.13.14.112-008",166,"Килограмм","**"]
[null,null,null,"10.13.14.112-007",166,"Килограмм","**"]
[null,null,null,"10.13.14.113-001",166,"Килограмм","**"]
[110,"10.13.14","Изделия колбасные и аналогичная пищевая продукция из мяса, субпродуктов или крови животных, из мяса и субпродуктов птицы. Пояснение по требуемой продукции: колбаса (колбаска) полукопченая мясная, колбаса (колбаска) варено-копченая мясная","10.13.14.411-001",166,"Килограмм","**"]
[null,null,null,"10.13.14.412-001",166,"Килограмм","**"]
[111,"10.13.14","Изделия колбасные и аналогичная пищевая продукция из мяса, субпродуктов или крови животных, из мяса и субпродуктов птицы. Пояснение по требуемой продукции: продукт из свинины","10.13.14.612-005",166,"Килограмм","**"]
[null,null,null,"10.13.14.612-006",166,"Килограмм","**"]
[null,null,null,"10.13.14.612-003",166,"Килограмм","**"]
[null,null,null,"10.13.14.612-004",166,"Килограмм","**"]
[null,null,null,"10.13.14.612-001",166,"Килограмм","**"]
[null,null,null,"10.13.14.612-002",166,"Килограмм","**"]
[112,"10.13.15","Продукты готовые и консервированные из мяса, субпродуктов или крови животных, из мяса и субпродуктов птицы прочие, кроме готовых блюд из мяса и субпродуктов. Пояснение по требуемой продукции: консервы мясные","10.13.15.111-001",166,"Килограмм","**"]
[113,"10.13.15","Продукты готовые и консервированные из мяса, субпродуктов или крови животных, из мяса и субпродуктов птицы прочие, кроме готовых блюд из мяса и субпродуктов. Пояснение по требуемой продукции: консервы мясорастительные с использованием мяса и субпродуктов птицы","10.13.15.140-001",166,"Килограмм","**"]
[114,"10.20.13","Рыба мороженая. Пояснение по требуемой продукции: рыба лососевая мороженая","10.20.13.110-001",166,"Килограмм","**"]
[115,"10.20.13","Рыба мороженая. Пояснение по требуемой продукции: судак","10.20.13.122-007",166,"Килограмм","**"]
[116,"10.20.13","Рыба мороженая. Пояснение по требуемой продукции: рыба трескообразная мороженая","10.20.13.122-003",166,"Килограмм","**"]
[null,null,null,"10.20.13.122-005",166,"Килограмм","**"]
[null,null,null,"10.20.13.122-002",166,"Килограмм","**"]
[null,null,null,"10.20.13.122-001",166,"Килограмм","**"]
[null,null,null,"10.20.13.122-006",166,"Килограмм","**"]
[117,"10.20.14","Филе рыбное мороженое. Пояснение по требуемой продукции: филе лососевых рыб мороженое","10.20.14.110-084",166,"Килограмм","**"]
[null,null,null,"10.20.14.110-017",166,"Килограмм","**"]
[118,"10.20.14","Филе рыбное мороженое. Пояснение по требуемой продукции: филе судака","10.20.14.120-004",166,"Килограмм","**"]
[119,"10.20.14","Филе рыбное мороженое. Пояснение по требуемой продукции: филе тресковых рыб мороженое","10.20.14.120-007",166,"Килограмм","**"]
[null,null,null,"10.20.14.120-009",166,"Килограмм","**"]
[null,null,null,"10.20.14.120-003",166,"Килограмм","**"]
[null,null,null,"10.20.14.120-010",166,"Килограмм","**"]
[null,null,null,"10.20.14.120-005",166,"Килограмм","**"]
[null,null,null,"10.20.14.120-011",166,"Килограмм","**"]
[null,null,null,"10.20.14.120-002",166,"Килограмм","**"]
[null,null,null,"10.20.14.120-012",166,"Килограмм","**"]
[null,null,null,"10.20.14.120-006",166,"Килограмм","**"]
[null,null,null,"10.20.14.120-013",166,"Килограмм","**"]
[120,"10.20.23","Рыба вяленая, соленая и несоленая или в рассоле. Пояснение по требуемой продукции: рыба лососевая соленая","10.20.23.121-003",166,"Килограмм","**"]
[null,null,null,"10.20.23.121-001",166,"Килограмм","**"]
[null,null,null,"10.20.23.121-004",166,"Килограмм","**"]
[null,null,null,"10.20.23.121-002",166,"Килограмм","**"]
[121,"10.20.23","Рыба вяленая, соленая и несоленая или в рассоле. Пояснение по требуемой продукции: сельдь соленая","10.20.23.122-001",166,"Килограмм","**"]
[122,"10.20.25","Рыба, приготовленная или консервированная другим способом, кроме готовых блюд из рыбы. Пояснение по требуемой продукции: консервы рыбные натуральные","10.20.25.111-001",166,"Килограмм","**"]
[null,null,null,"10.20.25.111-002",166,"Килограмм","**"]
[null,null,null,"10.20.25.115-001",166,"Килограмм","**"]
[123,"10.20.25","Рыба, приготовленная или консервированная другим способом, кроме готовых блюд из рыбы. Пояснение по требуемой продукции: шпроты в масле","10.20.25.113-001",166,"Килограмм","**"]
[124,"10.20.26","Икра и заменители икры. Пояснение по требуемой продукции: икра зернистая","10.20.26.112-001",166,"Килограмм","**"]
[125,"10.20.32","Моллюски мороженые, сушеные, соленые или в рассоле, копченые. Пояснение по требуемой продукции: кальмар мороженый","10.20.32.110-001",166,"Килограмм","**"]
[126,"10.20.34","Ракообразные, приготовленные или консервированные другим способом; моллюски и прочие беспозвоночные водные, приготовленные или консервированные другим способом. Пояснение по требуемой продукции: палочки «крабовые» (имитация)","10.20.34.110-001",166,"Килограмм","**"]
[null,null,null,"10.20.34.110-002",166,"Килограмм","**"]
[127,"10.31.13","Мука, хлопья и гранулы из картофеля, в том числе из сушеного картофеля. Пояснение по требуемой продукции: продукция из сушеного картофеля","10.31.13.110-001",166,"Килограмм","**"]
[128,"10.32.11","Сок томатный. Пояснение по требуемой продукции: сок из фруктов и (или) овощей","10.32.11.110-001",112,"Литр; кубический дециметр","**"]
[null,null,null,"10.32.11.110-003",112,"Литр; кубический дециметр","**"]
[null,null,null,"10.32.11.120-001",112,"Литр; кубический дециметр","**"]
[null,null,null,"10.32.11.120-002",112,"Литр; кубический дециметр","**"]
[129,"10.32.19","Соки из фруктов и овощей прочие. Пояснение по требуемой продукции: сок из фруктов и (или) овощей","10.32.19.111-006",112,"Литр; кубический дециметр","**"]
[null,null,null,"10.32.19.111-007",112,"Литр; кубический дециметр","**"]
[null,null,null,"10.32.19.112-001",112,"Литр; кубический дециметр","**"]
[null,null,null,"10.32.19.112-003",112,"Литр; кубический дециметр","**"]
[130,"10.32.21","Нектары фруктовые и (или) овощные","10.32.21.110-003",112,"Литр; кубический дециметр","**"]
[null,null,null,"10.32.21.110-001",112,"Литр; кубический дециметр","**"]
[131,"10.39.11","Овощи (кроме картофеля) и грибы замороженные. Пояснение по требуемой продукции: грибы замороженные","10.39.11.000-002",166,"Килограмм","**"]
[132,"10.39.11","Овощи (кроме картофеля) и грибы замороженные. Пояснение по требуемой продукции: овощи замороженные","10.39.11.000-001",166,"Килограмм","**"]
[null,null,null,"10.39.11.000-003",166,"Килограмм","**"]
[133,"10.39.13","Овощи (кроме картофеля) и грибы сушеные. Пояснение по требуемой продукции: морковь столовая","10.39.13.000-001",166,"Килограмм","**"]
[134,"10.39.13","Овощи (кроме картофеля) и грибы сушеные. Пояснение по требуемой продукции: свекла столовая","10.39.13.000-002",166,"Килограмм","**"]
[null,null,null,"10.39.13.000-003",166,"Килограмм","**"]
[135,"10.39.15","Фасоль, консервированная без уксуса или уксусной кислоты (кроме готовых блюд из овощей). Пояснение по требуемой продукции: фасоль","10.39.15.000-001",166,"Килограмм","**"]
[136,"10.39.16","Горох, консервированный без уксуса или уксусной кислоты (кроме готовых блюд из овощей). Пояснение по требуемой продукции: горох, консервированный без уксуса или уксусной кислоты (кроме готовых блюд из овощей)","10.39.16.000-001",166,"Килограмм","**"]
[null,null,null,"10.39.16.000-002",166,"Килограмм","**"]
[137,"10.39.17","Овощи (кроме картофеля) и грибы, консервированные без уксуса или уксусной кислоты, прочие (кроме готовых овощных блюд). Пояснение по требуемой продукции: грибы","10.39.17.200-001",166,"Килограмм","**"]
[138,"10.39.17","Овощи (кроме картофеля) и грибы, консервированные без уксуса или уксусной кислоты, прочие (кроме готовых овощных блюд). Пояснение по требуемой продукции: капуста белокочанная","10.39.17.190-001",166,"Килограмм","**"]
[null,null,null,"10.39.17.190-010",166,"Килограмм","**"]
[139,"10.39.17","Овощи (кроме картофеля) и грибы, консервированные без уксуса или уксусной кислоты, прочие (кроме готовых овощных блюд). Пояснение по требуемой продукции: кукуруза консервированная","10.39.17.190-006",166,"Килограмм","**"]
[140,"10.39.17","Овощи (кроме картофеля) и грибы, консервированные без уксуса или уксусной кислоты, прочие (кроме готовых овощных блюд). Пояснение по требуемой продукции: овощи консервированные","10.39.17.190-005",166,"Килограмм","**"]
[141,"10.39.17","Овощи (кроме картофеля) и грибы, консервированные без уксуса или уксусной кислоты, прочие (кроме готовых овощных блюд). Пояснение по требуемой продукции: огурцы","10.39.17.190-004",166,"Килограмм","**"]
[null,null,null,"10.39.17.190-007",166,"Килограмм","**"]
[null,null,null,"10.39.17.190-002",166,"Килограмм","**"]
[142,"10.39.17","Овощи (кроме картофеля) и грибы, консервированные без уксуса или уксусной кислоты, прочие (кроме готовых овощных блюд). Пояснение по требуемой продукции: томат- паста и томатное пюре","10.39.17.111-002",166,"Килограмм","**"]
[null,null,null,"10.39.17.112-001",166,"Килограмм","**"]
[143,"10.39.17","Овощи (кроме картофеля) и грибы, консервированные без уксуса или уксусной кислоты, прочие (кроме готовых овощных блюд). Пояснение по требуемой продукции: томаты","10.39.17.190-008",166,"Килограмм","**"]
[null,null,null,"10.39.17.190-009",166,"Килограмм","**"]
[144,"10.39.18","Овощи (кроме картофеля), фрукты, орехи и прочие съедобные части растений, переработанные или консервированные с уксусом или уксусной кислотой. Пояснение по требуемой продукции: икра из кабачков, икра из баклажанов","10.39.18.110-002",166,"Килограмм","**"]
[null,null,null,"10.39.18.110-005",166,"Килограмм","**"]
[145,"10.39.18","Овощи (кроме картофеля), фрукты, орехи и прочие съедобные части растений, переработанные или консервированные с уксусом или уксусной кислотой. Пояснение по требуемой продукции: овощи маринованные","10.39.18.110-004",166,"Килограмм","**"]
[null,null,null,"10.39.18.110-003",166,"Килограмм","**"]
[146,"10.39.21","Фрукты, ягоды и орехи, свежие или предварительно подвергнутые тепловой обработке, замороженные. Пояснение по требуемой продукции: ягоды замороженные","10.39.21.120-001",166,"Килограмм","**"]
[null,null,null,"10.39.21.120-002",166,"Килограмм","**"]
[null,null,null,"10.39.21.120-003",166,"Килограмм","**"]
[null,null,null,"10.39.21.120-004",166,"Килограмм","**"]
[null,null,null,"10.39.21.120-005",166,"Килограмм","**"]
[null,null,null,"10.39.21.120-006",166,"Килограмм","**"]
[null,null,null,"10.39.21.120-007",166,"Килограмм","**"]
[147,"10.39.22","Джемы, фруктовые желе, пюре и пасты фруктовые или ореховые. Пояснение по требуемой продукции: брусника","10.39.22.130-003",166,"Килограмм","**"]
[148,"10.39.22","Джемы, фруктовые желе, пюре и пасты фруктовые или ореховые. Пояснение по требуемой продукции: варенье","10.39.22.130-004",166,"Килограмм","**"]
[149,"10.39.22","Джемы, фруктовые желе, пюре и пасты фруктовые или ореховые. Пояснение по требуемой продукции: джем","10.39.22.110-001",166,"Килограмм","**"]
[null,null,null,"10.39.22.110-003",166,"Килограмм","**"]
[150,"10.39.22","Джемы, фруктовые желе, пюре и пасты фруктовые или ореховые. Пояснение по требуемой продукции: клюква","10.39.22.130-005",166,"Килограмм","**"]
[151,"10.39.22","Джемы, фруктовые желе, пюре и пасты фруктовые или ореховые. Пояснение по требуемой продукции: компот","10.39.22.120-001",112,"Литр; кубический дециметр","**"]
[152,"10.39.22","Джемы, фруктовые желе, пюре и пасты фруктовые или ореховые. Пояснение по требуемой продукции: конфитюр","10.39.22.110-002",166,"Килограмм","**"]
[153,"10.39.22","Джемы, фруктовые желе, пюре и пасты фруктовые или ореховые. Пояснение по требуемой продукции: повидло","10.39.22.130-001",166,"Килограмм","**"]
[null,null,null,"10.39.22.130-002",166,"Килограмм","**"]
[154,"10.39.25","Фрукты переработанные и консервированные. Пояснение по требуемой продукции: абрикосы сушеные","10.39.25.132-003",166,"Килограмм","**"]
[null,null,null,"10.39.25.132-006",166,"Килограмм","**"]
[null,null,null,"10.39.25.132-010",166,"Килограмм","**"]
[null,null,null,"10.39.25.132-004",166,"Килограмм","**"]
[null,null,null,"10.39.25.132-007",166,"Килограмм","**"]
[155,"10.39.25","Фрукты переработанные и консервированные. Пояснение по требуемой продукции: смесь сушеных фруктов (сухой компот)","10.39.25.134-002",166,"Килограмм","**"]
[156,"10.39.25","Фрукты переработанные и консервированные. Пояснение по требуемой продукции: сливы сушеные","10.39.25.132-005",166,"Килограмм","**"]
[null,null,null,"10.39.25.132-008",166,"Килограмм","**"]
[null,null,null,"10.39.25.132-009",166,"Килограмм","**"]
[157,"10.41.53","Масло оливковое и его фракции рафинированные, но не подвергнутые химической модификации. Пояснение по требуемой продукции: масло оливковое","10.41.53.000-001",166,"Килограмм","**"]
[158,"10.41.54","Масло подсолнечное и его фракции рафинированные, но не подвергнутые химической модификации. Пояснение по требуемой продукции: масло подсолнечное рафинированное","10.41.54.110-001",112,"Литр; кубический дециметр","**"]
[null,null,null,"10.41.54.110-002",112,"Литр; кубический дециметр","**"]
[159,"10.42.10","Маргарин, спреды растительно-сливочные и растительно-жировые, смеси топленые растительно-сливочные и растительно-жировые, жиры специального назначения, заменители молочного жира, эквиваленты, улучшители, заменители масла какао. Пояснение по требуемой продукции: маргарин","10.42.10.112-001",166,"Килограмм","**"]
[null,null,null,"10.42.10.112-002",166,"Килограмм","**"]
[null,null,null,"10.42.10.111-001",166,"Килограмм","**"]
[null,null,null,"10.42.10.111-002",166,"Килограмм","**"]
[160,"10.51.11","Молоко, кроме сырого. Пояснение по требуемой продукции: молоко питьевое","10.51.11.111-001",112,"Литр; кубический дециметр","**"]
[null,null,null,"10.51.11.111-003",112,"Литр; кубический дециметр","**"]
[null,null,null,"10.51.11.111-005",112,"Литр; кубический дециметр","**"]
[null,null,null,"10.51.11.121-001",112,"Литр; кубический дециметр","**"]
[null,null,null,"10.51.11.141-001",112,"Литр; кубический дециметр","**"]
[161,"10.51.12","Сливки. Пояснение по требуемой продукции: сливки питьевые из коровьего молока","10.51.12.111-001",166,"Килограмм","**"]
[null,null,null,"10.51.12.111-003",166,"Килограмм","**"]
[null,null,null,"10.51.12.112-001",166,"Килограмм","**"]
[162,"10.51.22","Молоко и сливки сухие, сублимированные, в том числе цельные. Пояснение по требуемой продукции: молоко сухое коровье","10.51.22.112-004",166,"Килограмм","**"]
[null,null,null,"10.51.22.112-005",166,"Килограмм","**"]
[163,"10.51.22","Молоко и сливки сухие, сублимированные, в том числе цельные. Пояснение по требуемой продукции: молоко сухое","10.51.22.112-003",166,"Килограмм","**"]
[164,"10.51.30","Масло сливочное, пасты масляные, масло топленое, жир молочный, спреды и смеси топленые сливочно-растительные. Пояснение по требуемой продукции: масло сливочное","10.51.30.111-001",166,"Килограмм","**"]
[null,null,null,"10.51.30.111-007",166,"Килограмм","**"]
[null,null,null,"10.51.30.111-008",166,"Килограмм","**"]
[null,null,null,"10.51.30.111-009",166,"Килограмм","**"]
[null,null,null,"10.51.30.111-005",166,"Килограмм","**"]
[null,null,null,"10.51.30.111-004",166,"Килограмм","**"]
[165,"10.51.40","Сыры; молокосодержащие продукты с заменителем молочного жира, произведенные по технологии сыра; творог. Пояснение по требуемой продукции: сыры мягкие","10.51.40.111-001",166,"Килограмм","**"]
[166,"10.51.40","Сыры; молокосодержащие продукты с заменителем молочного жира, произведенные по технологии сыра; творог. Пояснение по требуемой продукции: сыры полутвердые","10.51.40.121-002",166,"Килограмм","**"]
[null,null,null,"10.51.40.121-004",166,"Килограмм","**"]
[null,null,null,"10.51.40.121-001",166,"Килограмм","**"]
[null,null,null,"10.51.40.121-003",166,"Килограмм","**"]
[167,"10.51.40","Сыры; молокосодержащие продукты с заменителем молочного жира, произведенные по технологии сыра; творог. Пояснение по требуемой продукции: творог","10.51.40.313-001",166,"Килограмм","**"]
[null,null,null,"10.51.40.313-002",166,"Килограмм","**"]
[null,null,null,"10.51.40.313-003",166,"Килограмм","**"]
[null,null,null,"10.51.40.313-004",166,"Килограмм","**"]
[null,null,null,"10.51.40.313-005",166,"Килограмм","**"]
[null,null,null,"10.51.40.313-006",166,"Килограмм","**"]
[null,null,null,"10.51.40.313-007",166,"Килограмм","**"]
[null,null,null,"10.51.40.313-008",166,"Килограмм","**"]
[null,null,null,"10.51.40.314-003",166,"Килограмм","**"]
[null,null,null,"10.51.40.314-004",166,"Килограмм","**"]
[168,"10.51.51","Молоко и сливки, сгущенные или с добавками сахара или других подслащивающих веществ, не сухие. Пояснение по требуемой продукции: молоко сгущенное","10.51.51.113-001",166,"Килограмм","**"]
[169,"10.51.52","Продукты кисломолочные (кроме творога и продуктов из творога). Пояснение по требуемой продукции: йогурт","10.51.52.111-001",166,"Килограмм","**"]
[null,null,null,"10.51.52.111-012",166,"Килограмм","**"]
[null,null,null,"10.51.52.112-004",166,"Килограмм","**"]
[null,null,null,"10.51.52.112-009",166,"Килограмм","**"]
[null,null,null,"10.51.52.112-006",166,"Килограмм","**"]
[null,null,null,"10.51.52.111-002",166,"Килограмм","**"]
[null,null,null,"10.51.52.111-013",166,"Килограмм","**"]
[null,null,null,"10.51.52.111-003",166,"Килограмм","**"]
[null,null,null,"10.51.52.112-003",166,"Килограмм","**"]
[null,null,null,"10.51.52.112-002",166,"Килограмм","**"]
[null,null,null,"10.51.52.112-010",166,"Килограмм","**"]
[170,"10.51.52","Продукты кисломолочные (кроме творога и продуктов из творога). Пояснение по требуемой продукции: кефир","10.51.52.140-006",166,"Килограмм","**"]
[null,null,null,"10.51.52.140-009",166,"Килограмм","**"]
[null,null,null,"10.51.52.140-007",166,"Килограмм","**"]
[null,null,null,"10.51.52.140-010",166,"Килограмм","**"]
[null,null,null,"10.51.52.140-008",166,"Килограмм","**"]
[null,null,null,"10.51.52.140-011",166,"Килограмм","**"]
[171,"10.51.52","Продукты кисломолочные (кроме творога и продуктов из творога). Пояснение по требуемой продукции: кисломолочные продукты","10.51.52.190-001",166,"Килограмм","**"]
[null,null,null,"10.51.52.190-004",166,"Килограмм","**"]
[null,null,null,"10.51.52.190-008",166,"Килограмм","**"]
[null,null,null,"10.51.52.190-005",166,"Килограмм","**"]
[172,"10.51.52","Продукты кисломолочные (кроме творога и продуктов из творога). Пояснение по требуемой продукции: ряженка","10.51.52.130-002",166,"Килограмм","**"]
[null,null,null,"10.51.52.130-006",166,"Килограмм","**"]
[null,null,null,"10.51.52.130-001",166,"Килограмм","**"]
[null,null,null,"10.51.52.130-005",166,"Килограмм","**"]
[173,"10.51.52","Продукты кисломолочные (кроме творога и продуктов из творога). Пояснение по требуемой продукции: сметана","10.51.52.211-001",166,"Килограмм","**"]
[null,null,null,"10.51.52.212-001",166,"Килограмм","**"]
[174,"10.51.56","Продукция молочная, не включенная в другие группировки. Пояснение по требуемой продукции: сырки творожные","10.51.56.152-085",166,"Килограмм","**"]
[175,"10.52.10","Мороженое","10.52.10.123-001",166,"Килограмм","**"]
[176,"10.61.12","Рис полуобрушенный или полностью обрушенный, или дробленый. Пояснение по требуемой продукции: рис","10.61.12.000-001",166,"Килограмм","**"]
[null,null,null,"10.61.12.000-003",166,"Килограмм","**"]
[null,null,null,"10.61.12.000-005",166,"Килограмм","**"]
[null,null,null,"10.61.12.000-004",166,"Килограмм","**"]
[null,null,null,"10.61.12.000-002",166,"Килограмм","**"]
[177,"10.61.21","Мука пшеничная и пшенично-ржаная. Пояснение по требуемой продукции: мука пшеничная","10.61.21.113-001",166,"Килограмм","**"]
[null,null,null,"10.61.21.113-002",166,"Килограмм","**"]
[178,"10.61.22","Мука из прочих зерновых культур. Пояснение по требуемой продукции: мука кукурузная","10.61.22.120-001",166,"Килограмм","**"]
[null,null,null,"10.61.22.120-002",166,"Килограмм","**"]
[null,null,null,"10.61.22.120-003",166,"Килограмм","**"]
[179,"10.61.22","Мука из прочих зерновых культур. Пояснение по требуемой продукции: мука ржаная","10.61.22.111-001",166,"Килограмм","**"]
[null,null,null,"10.61.22.112-002",166,"Килограмм","**"]
[180,"10.61.22","Мука из прочих зерновых культур. Пояснение по требуемой продукции: мука рисовая","10.61.22.130-001",166,"Килограмм","**"]
[null,null,null,"10.61.22.130-002",166,"Килограмм","**"]
[181,"10.61.31","Крупа и мука грубого помола из пшеницы. Пояснение по требуемой продукции: крупа манная","10.61.31.111-001",166,"Килограмм","**"]
[null,null,null,"10.61.31.111-002",166,"Килограмм","**"]
[182,"10.61.31","Крупа и мука грубого помола из пшеницы. Пояснение по требуемой продукции: крупа пшеничная","10.61.31.119-001",166,"Килограмм","**"]
[null,null,null,"10.61.31.119-002",166,"Килограмм","**"]
[null,null,null,"10.61.31.119-003",166,"Килограмм","**"]
[null,null,null,"10.61.31.119-004",166,"Килограмм","**"]
[183,"10.61.32","Крупа, мука грубого помола и гранулы из зерновых культур, не включенные в другие группировки. Пояснение по требуемой продукции: крупа гречневая","10.61.32.113-001",166,"Килограмм","**"]
[null,null,null,"10.61.32.113-002",166,"Килограмм","**"]
[184,"10.61.32","Крупа, мука грубого помола и гранулы из зерновых культур, не включенные в другие группировки. Пояснение по требуемой продукции: крупа кукурузная","10.61.32.117-002",166,"Килограмм","**"]
[null,null,null,"10.61.32.117-001",166,"Килограмм","**"]
[null,null,null,"10.61.32.117-003",166,"Килограмм","**"]
[null,null,null,"10.61.32.117-004",166,"Килограмм","**"]
[null,null,null,"10.61.32.117-005",166,"Килограмм","**"]
[null,null,null,"10.61.32.117-006",166,"Килограмм","**"]
[185,"10.61.32","Крупа, мука грубого помола и гранулы из зерновых культур, не включенные в другие группировки. Пояснение по требуемой продукции: крупа перловая","10.61.32.116-001",166,"Килограмм","**"]
[null,null,null,"10.61.32.116-002",166,"Килограмм","**"]
[186,"10.61.32","Крупа, мука грубого помола и гранулы из зерновых культур, не включенные в другие группировки. Пояснение по требуемой продукции: крупа ячневая","10.61.32.115-001",166,"Килограмм","**"]
[null,null,null,"10.61.32.115-002",166,"Килограмм","**"]
[187,"10.61.32","Крупа, мука грубого помола и гранулы из зерновых культур, не включенные в другие группировки. Пояснение по требуемой продукции: пшено","10.61.32.114-001",166,"Килограмм","**"]
[null,null,null,"10.61.32.114-002",166,"Килограмм","**"]
[null,null,null,"10.61.32.114-003",166,"Килограмм","**"]
[null,null,null,"10.61.32.114-004",166,"Килограмм","**"]
[188,"10.61.33","Продукты зерновые для завтрака и прочие продукты из зерновых культур. Пояснение по требуемой продукции: завтраки сухие","10.61.33.113-001",166,"Килограмм","**"]
[null,null,null,"10.61.33.115-001",166,"Килограмм","**"]
[189,"10.61.33","Продукты зерновые для завтрака и прочие продукты из зерновых культур. Пояснение по требуемой продукции: мюсли","10.61.33.140-001",166,"Килограмм","**"]
[190,"10.61.33","Продукты зерновые для завтрака и прочие продукты из зерновых культур. Пояснение по требуемой продукции: хлопья из круп (злаков)","10.61.33.119-001",166,"Килограмм","**"]
[191,"10.61.33","Продукты зерновые для завтрака и прочие продукты из зерновых культур. Пояснение по требуемой продукции: хлопья овсяные","10.61.33.111-001",166,"Килограмм","**"]
[null,null,null,"10.61.33.111-004",166,"Килограмм","**"]
[null,null,null,"10.61.33.111-003",166,"Килограмм","**"]
[null,null,null,"10.61.33.111-002",166,"Килограмм","**"]
[192,"10.62.11","Крахмалы; инулин; клейковина пшеничная; декстрины и прочие модифицированные крахмалы. Пояснение по требуемой продукции: крахмалы, кроме модифицированных","10.62.11.111-001",166,"Килограмм","**"]
[null,null,null,"10.62.11.111-002",166,"Килограмм","**"]
[null,null,null,"10.62.11.112-001",166,"Килограмм","**"]
[null,null,null,"10.62.11.112-002",166,"Килограмм","**"]
[193,"10.62.13","Глюкоза и сироп из глюкозы; фруктоза и сироп из фруктозы; сахар инвертный; сахар и сиропы сахарные, не включенные в другие группировки. Пояснение по требуемой продукции: сироп шиповника","10.62.13.190-001",112,"Литр; кубический дециметр","**"]
[194,"10.62.14","Масло кукурузное","10.62.14.120-001",166,"Килограмм","**"]
[195,"10.71.11","Изделия хлебобулочные недлительного хранения. Пояснение по требуемой продукции: батон нарезной","10.71.11.121-001",166,"Килограмм","**"]
[null,null,null,"10.71.11.179-001",166,"Килограмм","**"]
[196,"10.71.11","Изделия хлебобулочные недлительного хранения. Пояснение по требуемой продукции: кондитерские изделия","10.71.11.179-004",166,"Килограмм","**"]
[null,null,null,"10.71.11.179-003",166,"Килограмм","**"]
[null,null,null,"10.71.11.179-005",166,"Килограмм","**"]
[null,null,null,"10.71.11.179-006",166,"Килограмм","**"]
[197,"10.71.11","Изделия хлебобулочные недлительного хранения. Пояснение по требуемой продукции: хлеб кукурузный","10.71.11.179-008",166,"Килограмм","**"]
[198,"10.71.11","Изделия хлебобулочные недлительного хранения. Пояснение по требуемой продукции: хлеб недлительного хранения","10.71.11.112-002",166,"Килограмм","**"]
[null,null,null,"10.71.11.112-004",166,"Килограмм","**"]
[null,null,null,"10.71.11.112-001",166,"Килограмм","**"]
[null,null,null,"10.71.11.112-003",166,"Килограмм","**"]
[199,"10.71.11","Изделия хлебобулочные недлительного хранения. Пояснение по требуемой продукции: хлеб рисовый","10.71.11.179-007",166,"Килограмм","**"]
[200,"10.72.11","Хлебцы хрустящие, сухари, гренки и аналогичные обжаренные продукты. Пояснение по требуемой продукции: изделия бараночные","10.72.11.110-001",166,"Килограмм","**"]
[null,null,null,"10.72.11.110-005",166,"Килограмм","**"]
[null,null,null,"10.72.11.110-006",166,"Килограмм","**"]
[null,null,null,"10.72.11.110-002",166,"Килограмм","**"]
[null,null,null,"10.72.11.110-007",166,"Килограмм","**"]
[null,null,null,"10.72.11.110-008",166,"Килограмм","**"]
[null,null,null,"10.72.11.110-003",166,"Килограмм","**"]
[null,null,null,"10.72.11.110-009",166,"Килограмм","**"]
[null,null,null,"10.72.11.110-010",166,"Килограмм","**"]
[null,null,null,"10.72.11.110-004",166,"Килограмм","**"]
[null,null,null,"10.72.11.110-011",166,"Килограмм","**"]
[null,null,null,"10.72.11.110-012",166,"Килограмм","**"]
[201,"10.72.11","Хлебцы хрустящие, сухари, гренки и аналогичные обжаренные продукты. Пояснение по требуемой продукции: изделия сухарные","10.72.11.120-003",166,"Килограмм","**"]
[null,null,null,"10.72.11.120-002",166,"Килограмм","**"]
[202,"10.72.11","Хлебцы хрустящие, сухари, гренки и аналогичные обжаренные продукты. Пояснение по требуемой продукции: палочки хлебные","10.72.11.150-001",166,"Килограмм","**"]
[203,"10.72.11","Хлебцы хрустящие, сухари, гренки и аналогичные обжаренные продукты. Пояснение по требуемой продукции: сухари панировочные","10.72.11.120-001",166,"Килограмм","**"]
[null,null,null,"10.72.11.120-004",166,"Килограмм","**"]
[null,null,null,"10.72.11.120-005",166,"Килограмм","**"]
[null,null,null,"10.72.11.120-006",166,"Килограмм","**"]
[null,null,null,"10.72.11.120-007",166,"Килограмм","**"]
[204,"10.72.11","Хлебцы хрустящие, сухари, гренки и аналогичные обжаренные продукты. Пояснение по требуемой продукции: хлебцы хрустящие","10.72.11.130-001",166,"Килограмм","**"]
[null,null,null,"10.72.11.130-002",166,"Килограмм","**"]
[null,null,null,"10.72.11.130-003",166,"Килограмм","**"]
[null,null,null,"10.72.11.130-004",166,"Килограмм","**"]
[null,null,null,"10.72.11.130-005",166,"Килограмм","**"]
[205,"10.72.12","Печенье и пряники имбирные и аналогичные изделия; печенье сладкое; вафли и вафельные облатки; торты и пирожные длительного хранения. Пояснение по требуемой продукции: вафли","10.72.12.130-003",166,"Килограмм","**"]
[null,null,null,"10.72.12.130-002",166,"Килограмм","**"]
[null,null,null,"10.72.12.130-004",166,"Килограмм","**"]
[null,null,null,"10.72.12.130-005",166,"Килограмм","**"]
[null,null,null,"10.72.12.130-007",166,"Килограмм","**"]
[206,"10.72.12","Печенье и пряники имбирные и аналогичные изделия; печенье сладкое; вафли и вафельные облатки; торты и пирожные длительного хранения. Пояснение по требуемой продукции: вафли без глютена","10.72.12.130-006",166,"Килограмм","**"]
[207,"10.72.12","Печенье и пряники имбирные и аналогичные изделия; печенье сладкое; вафли и вафельные облатки; торты и пирожные длительного хранения. Пояснение по требуемой продукции: вафли витаминизированные","10.72.12.130-001",166,"Килограмм","**"]
[208,"10.72.12","Печенье и пряники имбирные и аналогичные изделия; печенье сладкое; вафли и вафельные облатки; торты и пирожные длительного хранения. Пояснение по требуемой продукции: кекс","10.72.12.114-001",166,"Килограмм","**"]
[209,"10.72.12","Печенье и пряники имбирные и аналогичные изделия; печенье сладкое; вафли и вафельные облатки; торты и пирожные длительного хранения. Пояснение по требуемой продукции: крекеры","10.72.12.140-001",166,"Килограмм","**"]
[null,null,null,"10.72.12.140-003",166,"Килограмм","**"]
[null,null,null,"10.72.12.140-004",166,"Килограмм","**"]
[null,null,null,"10.72.12.140-002",166,"Килограмм","**"]
[null,null,null,"10.72.12.140-005",166,"Килограмм","**"]
[null,null,null,"10.72.12.140-006",166,"Килограмм","**"]
[210,"10.72.12","Печенье и пряники имбирные и аналогичные изделия; печенье сладкое; вафли и вафельные облатки; торты и пирожные длительного хранения. Пояснение по требуемой продукции: печенье без глютена","10.72.12.120-010",166,"Килограмм","**"]
[null,null,null,"10.72.12.120-011",166,"Килограмм","**"]
[211,"10.72.12","Печенье и пряники имбирные и аналогичные изделия; печенье сладкое; вафли и вафельные облатки; торты и пирожные длительного хранения. Пояснение по требуемой продукции: печенье витаминизированное","10.72.12.120-001",166,"Килограмм","**"]
[212,"10.72.12","Печенье и пряники имбирные и аналогичные изделия; печенье сладкое; вафли и вафельные облатки; торты и пирожные длительного хранения. Пояснение по требуемой продукции: печенье сладкое","10.72.12.120-002",166,"Килограмм","**"]
[null,null,null,"10.72.12.120-009",166,"Килограмм","**"]
[null,null,null,"10.72.12.120-004",166,"Килограмм","**"]
[null,null,null,"10.72.12.120-003",166,"Килограмм","**"]
[null,null,null,"10.72.12.120-005",166,"Килограмм","**"]
[null,null,null,"10.72.12.120-006",166,"Килограмм","**"]
[null,null,null,"10.72.12.120-007",166,"Килограмм","**"]
[null,null,null,"10.72.12.120-008",166,"Килограмм","**"]
[213,"10.72.12","Печенье и пряники имбирные и аналогичные изделия; печенье сладкое; вафли и вафельные облатки; торты и пирожные длительного хранения. Пояснение по требуемой продукции: печенье без добавления сахара","10.72.12.120-012",166,"Килограмм","**"]
[null,null,null,"10.72.12.120-013",166,"Килограмм","**"]
[214,"10.72.12","Печенье и пряники имбирные и аналогичные изделия; печенье сладкое; вафли и вафельные облатки; торты и пирожные длительного хранения. Пояснение по требуемой продукции: пряники","10.72.12.112-001",166,"Килограмм","**"]
[null,null,null,"10.72.12.112-002",166,"Килограмм","**"]
[null,null,null,"10.72.12.112-003",166,"Килограмм","**"]
[null,null,null,"10.72.12.112-006",166,"Килограмм","**"]
[215,"10.72.19","Изделия хлебобулочные сухие прочие или хлебобулочные изделия длительного хранения. Пояснение по требуемой продукции: изделия хлебобулочные","10.72.19.119-001",166,"Килограмм","**"]
[null,null,null,"10.72.19.119-002",166,"Килограмм","**"]
[null,null,null,"10.72.19.111-004",166,"Килограмм","**"]
[null,null,null,"10.72.19.111-002",166,"Килограмм","**"]
[null,null,null,"10.72.19.111-005",166,"Килограмм","**"]
[null,null,null,"10.72.19.111-006",166,"Килограмм","**"]
[216,"10.73.11","Изделия макаронные и аналогичные мучные изделия. Пояснение по требуемой продукции: изделия макаронные","10.73.11.110-001",166,"Килограмм","**"]
[null,null,null,"10.73.11.110-005",166,"Килограмм","**"]
[null,null,null,"10.73.11.110-006",166,"Килограмм","**"]
[null,null,null,"10.73.11.110-007",166,"Килограмм","**"]
[null,null,null,"10.73.11.110-002",166,"Килограмм","**"]
[null,null,null,"10.73.11.110-008",166,"Килограмм","**"]
[null,null,null,"10.73.11.110-009",166,"Килограмм","**"]
[217,"10.73.11","Изделия макаронные и аналогичные мучные изделия. Пояснение по требуемой продукции: изделия макаронные без глютена","10.73.11.500-001",166,"Килограмм","**"]
[null,null,null,"10.73.11.500-002",166,"Килограмм","**"]
[null,null,null,"10.73.11.500-003",166,"Килограмм","**"]
[218,"10.73.11","Изделия макаронные и аналогичные мучные изделия. Пояснение по требуемой продукции: изделия макаронные быстрого приготовления","10.73.11.400-001",166,"Килограмм","**"]
[null,null,null,"10.73.11.400-002",166,"Килограмм","**"]
[219,"10.81.12","Сахар белый свекловичный или тростниковый и химически чистая сахароза в твердом состоянии без вкусоароматических или красящих добавок. Пояснение по требуемой продукции: сахар белый свекловичный в твердом состоянии без вкусоароматических или красящих добавок","10.81.12.110-005",166,"Килограмм","**"]
[null,null,null,"10.81.12.110-006",166,"Килограмм","**"]
[null,null,null,"10.81.12.110-003",166,"Килограмм","**"]
[null,null,null,"10.81.12.110-007",166,"Килограмм","**"]
[220,"10.82.13","Порошок какао без добавок сахара или других подслащивающих веществ. Пояснение по требуемой продукции: какао-порошок","10.82.13.000-001",166,"Килограмм","**"]
[221,"10.82.22","Шоколад и пищевые продукты, содержащие какао (кроме подслащенного какао-порошка), в упакованном виде. Пояснение по требуемой продукции: конфеты","10.82.22.134-001",166,"Килограмм","**"]
[null,null,null,"10.82.22.134-002",166,"Килограмм","**"]
[222,"10.82.22","Шоколад и пищевые продукты, содержащие какао (кроме подслащенного какао-порошка), в упакованном виде. Пояснение по требуемой продукции: шоколад в упакованном виде","10.82.22.111-003",166,"Килограмм","**"]
[null,null,null,"10.82.22.111-004",166,"Килограмм","**"]
[null,null,null,"10.82.22.111-001",166,"Килограмм","**"]
[null,null,null,"10.82.22.111-002",166,"Килограмм","**"]
[223,"10.82.23","Изделия кондитерские сахаристые (включая белый шоколад), не содержащие какао. Пояснение по требуемой продукции: зефир","10.82.23.210-001",166,"Килограмм","**"]
[null,null,null,"10.82.23.210-002",166,"Килограмм","**"]
[null,null,null,"10.82.23.210-003",166,"Килограмм","**"]
[224,"10.82.23","Изделия кондитерские сахаристые (включая белый шоколад), не содержащие какао. Пояснение по требуемой продукции: ирис","10.82.23.153-001",166,"Килограмм","**"]
[null,null,null,"10.82.23.153-002",166,"Килограмм","**"]
[225,"10.82.23","Изделия кондитерские сахаристые (включая белый шоколад), не содержащие какао. Пояснение по требуемой продукции: конфеты","10.82.23.290-001",166,"Килограмм","**"]
[226,"10.82.23","Изделия кондитерские сахаристые (включая белый шоколад), не содержащие какао. Пояснение по требуемой продукции: мармелад","10.82.23.171-002",166,"Килограмм","**"]
[null,null,null,"10.82.23.171-001",166,"Килограмм","**"]
[null,null,null,"10.82.23.172-001",166,"Килограмм","**"]
[null,null,null,"10.82.23.172-002",166,"Килограмм","**"]
[null,null,null,"10.82.23.172-003",166,"Килограмм","**"]
[null,null,null,"10.82.23.172-004",166,"Килограмм","**"]
[227,"10.82.23","Изделия кондитерские сахаристые (включая белый шоколад), не содержащие какао. Пояснение по требуемой продукции: пастила","10.82.23.180-001",166,"Килограмм","**"]
[null,null,null,"10.82.23.180-002",166,"Килограмм","**"]
[null,null,null,"10.82.23.180-003",166,"Килограмм","**"]
[228,"10.83.11","Кофе без кофеина и кофе жареный. Пояснение по требуемой продукции: кофе жареный","10.83.11.120-001",166,"Килограмм","**"]
[null,null,null,"10.83.11.120-002",166,"Килограмм","**"]
[229,"10.83.12","Заменители кофе; экстракты, эссенции и концентраты кофе или заменителей кофе; шелуха кофейная и оболочки зерен кофе. Пояснение по требуемой продукции: кофе растворимый","10.83.12.120-001",166,"Килограмм","**"]
[230,"10.83.12","Заменители кофе; экстракты, эссенции и концентраты кофе или заменителей кофе; шелуха кофейная и оболочки зерен кофе. Пояснение по требуемой продукции: кофейный напиток","10.83.12.120-004",166,"Килограмм","**"]
[null,null,null,"10.83.12.120-002",166,"Килограмм","**"]
[null,null,null,"10.83.12.120-003",166,"Килограмм","**"]
[null,null,null,"10.83.12.120-005",166,"Килограмм","**"]
[231,"10.83.13","Чай зеленый (неферментированный), чай черный (ферментированный) и чай частично ферментированный, в упаковках массой не более 3 кг.","10.83.13.110-001",166,"Килограмм","**"]
[null,null,null,"10.83.13.120-006",166,"Килограмм","**"]
[null,null,null,"10.83.13.120-001",166,"Килограмм","**"]
[null,null,null,"10.83.13.120-002",166,"Килограмм","**"]
[null,null,null,"10.83.13.120-003",166,"Килограмм","**"]
[232,"10.83.14","Экстракты, эссенции, концентраты и готовые продукты на основе чая или мате. Пояснение по требуемой продукции: фиточай","10.83.14.140-001",166,"Килограмм","**"]
[233,"10.84.11","Уксус и его заменители, получаемые из уксусной кислоты. Пояснение по требуемой продукции: уксус пищевой","10.84.11.000-001",112,"Литр; кубический дециметр","**"]
[234,"10.84.12","Соусы; приправы и пряности смешанные; мука и порошок горчичные; горчица готовая. Пояснение по требуемой продукции: майонез","10.84.12.130-003",166,"Килограмм","**"]
[235,"10.84.12","Соусы; приправы и пряности смешанные; мука и порошок горчичные; горчица готовая. Пояснение по требуемой продукции: соусы","10.84.12.140-001",166,"Килограмм","**"]
[null,null,null,"10.84.12.190-001",166,"Килограмм","**"]
[null,null,null,"10.84.12.120-001",166,"Килограмм","**"]
[236,"10.84.21","Перец обработанный","10.84.21.000-001",166,"Килограмм","**"]
[237,"10.84.23","Корица обработанная; прочие обработанные пряности. Пояснение по требуемой продукции: зелень сушеная","10.84.23.190-003",166,"Килограмм","**"]
[null,null,null,"10.84.23.190-006",166,"Килограмм","**"]
[238,"10.84.23","Корица обработанная; прочие обработанные пряности. Пояснение по требуемой продукции: лист лавровый сушеный","10.84.23.164-001",166,"Килограмм","**"]
[239,"10.84.30","Соль пищевая","10.84.30.140-001",166,"Килограмм","**"]
[null,null,null,"10.84.30.140-002",166,"Килограмм","**"]
[null,null,null,"10.84.30.140-003",166,"Килограмм","**"]
[null,null,null,"10.84.30.140-004",166,"Килограмм","**"]
[null,null,null,"10.84.30.140-005",166,"Килограмм","**"]
[null,null,null,"10.84.30.140-006",166,"Килограмм","**"]
[null,null,null,"10.84.30.140-007",166,"Килограмм","**"]
[null,null,null,"10.84.30.140-008",166,"Килограмм","**"]
[null,null,null,"10.84.30.140-009",166,"Килограмм","**"]
[null,null,null,"10.84.30.140-010",166,"Килограмм","**"]
[null,null,null,"10.84.30.140-011",166,"Килограмм","**"]
[null,null,null,"10.84.30.140-012",166,"Килограмм","**"]
[240,"10.86.10","Продукция детского питания и диетическая. Пояснение по требуемой продукции: смесь сухая белковая композитная","10.86.10.910-001",166,"Килограмм","**"]
[241,"10.86.10","Продукция детского питания и диетическая. Пояснение по требуемой продукции: изделия колбасные вареные для детского питания","10.86.10.612-001",166,"Килограмм","**"]
[242,"10.86.10","Продукция детского питания и диетическая. Пояснение по требуемой продукции: каши","10.86.10.136-001",166,"Килограмм","**"]
[null,null,null,"10.86.10.191-001",166,"Килограмм","**"]
[243,"10.86.10","Продукция детского питания и диетическая. Пояснение по требуемой продукции: консервы мясные для детского питания","10.86.10.661-001",166,"Килограмм","**"]
[null,null,null,"10.86.10.661-002",166,"Килограмм","**"]
[null,null,null,"10.86.10.662-001",166,"Килограмм","**"]
[244,"10.86.10","Продукция детского питания и диетическая. Пояснение по требуемой продукции: консервы птичьи для детского питания","10.86.10.669-002",166,"Килограмм","**"]
[245,"10.86.10","Продукция детского питания и диетическая. Пояснение по требуемой продукции: консервы овощные для детского питания","10.86.10.211-001",166,"Килограмм","**"]
[null,null,null,"10.86.10.211-002",166,"Килограмм","**"]
[null,null,null,"10.86.10.211-003",166,"Килограмм","**"]
[246,"10.86.10","Продукция детского питания и диетическая. Пояснение по требуемой продукции: консервы фруктовые для детского питания","10.86.10.241-001",166,"Килограмм","**"]
[null,null,null,"10.86.10.241-002",166,"Килограмм","**"]
[247,"10.86.10","Продукция детского питания и диетическая. Пояснение по требуемой продукции: молоко питьевое для детского питания","10.86.10.110-003",112,"Литр; кубический дециметр","**"]
[null,null,null,"10.86.10.110-002",112,"Литр; кубический дециметр","**"]
[null,null,null,"10.86.10.110-011",112,"Литр; кубический дециметр","**"]
[null,null,null,"10.86.10.110-006",112,"Литр; кубический дециметр","**"]
[248,"10.86.10","Продукция детского питания и диетическая. Пояснение по требуемой продукции: сок фруктовый для детского питания","10.86.10.243-001",112,"Литр; кубический дециметр","**"]
[null,null,null,"10.86.10.243-002",112,"Литр; кубический дециметр","**"]
[249,"10.86.10","Продукция детского питания и диетическая. Пояснение по требуемой продукции: сок овощной для детского питания","10.86.10.231-001",112,"Литр; кубический дециметр","**"]
[250,"10.86.10","Продукция детского питания и диетическая. Пояснение по требуемой продукции: сухая смесь, последующая молочная смесь для детского питания","10.86.10.139-001",166,"Килограмм","**"]
[null,null,null,"10.86.10.133-001",166,"Килограмм","**"]
[251,"10.86.10","Продукция детского питания и диетическая. Пояснение по требуемой продукции: творог для детского питания","10.86.10.126-003",166,"Килограмм","**"]
[null,null,null,"10.86.10.126-001",166,"Килограмм","**"]
[null,null,null,"10.86.10.126-002",166,"Килограмм","**"]
[null,null,null,"10.86.10.144-003",166,"Килограмм","**"]
[null,null,null,"10.86.10.144-001",166,"Килограмм","**"]
[null,null,null,"10.86.10.144-002",166,"Килограмм","**"]
[252,"10.86.10","Продукция детского питания и диетическая. Пояснение по требуемой продукции: ветчина для детского питания","10.86.10.614-001",166,"Килограмм","**"]
[253,"10.86.10","Продукция детского питания и диетическая. Пояснение по требуемой продукции: подсластитель","10.86.10.910-002",166,"Килограмм","**"]
[null,null,null,"10.86.10.910-003",166,"Килограмм","**"]
[254,"10.89.11","Супы; бульоны и заготовки для их приготовления. Пояснение по требуемой продукции: суп быстрого приготовления","10.89.11.119-001",166,"Килограмм","**"]
[255,"10.89.12","Яйца без скорлупы и желтки яичные, свежие или консервированные; яйца в скорлупе консервированные или вареные; белок яичный. Пояснение по требуемой продукции: меланж яичный","10.89.12.111-001",112,"Литр; кубический дециметр","**"]
[256,"10.89.13","Дрожжи (активные и неактивные), прочие микроорганизмы одноклеточные мертвые; порошки пекарные готовые. Пояснение по требуемой продукции: дрожжи хлебопекарные прессованные","10.89.13.111-004",166,"Килограмм","**"]
[null,null,null,"10.89.13.111-002",166,"Килограмм","**"]
[null,null,null,"10.89.13.111-001",166,"Килограмм","**"]
[257,"10.89.13","Дрожжи (активные и неактивные), прочие микроорганизмы одноклеточные мертвые; порошки пекарные готовые. Пояснение по требуемой продукции: дрожжи хлебопекарные сушеные","10.89.13.112-001",166,"Килограмм","**"]
[258,"10.89.19","Продукты пищевые прочие, не включенные в другие группировки. Пояснение по требуемой продукции: ванилин","10.89.19.150-001",166,"Килограмм","**"]
[259,"10.89.19","Продукты пищевые прочие, не включенные в другие группировки. Пояснение по требуемой продукции: витаминно-минеральные премиксы","10.89.19.150-005",166,"Килограмм","**"]
[260,"10.89.19","Продукты пищевые прочие, не включенные в другие группировки. Пояснение по требуемой продукции: гематоген","10.89.19.290-001",166,"Килограмм","**"]
[null,null,null,"10.89.19.290-002",166,"Килограмм","**"]
[261,"10.89.19","Продукты пищевые прочие, не включенные в другие группировки. Пояснение по требуемой продукции: кисель сухой","10.89.19.231-005",166,"Килограмм","**"]
[null,null,null,"10.89.19.231-001",166,"Килограмм","**"]
[null,null,null,"10.89.19.231-003",166,"Килограмм","**"]
[null,null,null,"10.89.19.231-002",166,"Килограмм","**"]
[null,null,null,"10.89.19.231-004",166,"Килограмм","**"]
[262,"10.89.19","Продукты пищевые прочие, не включенные в другие группировки. Пояснение по требуемой продукции: сода","10.89.19.150-004",166,"Килограмм","**"]
[263,"10.89.19","Продукты пищевые прочие, не включенные в другие группировки. Пояснение по требуемой продукции: каша быстрого приготовления","10.89.19.110-001",166,"Килограмм","**"]
[264,"11.07.11","Воды минеральные природные упакованные, воды питьевые упакованные, не содержащие сахара, подсластителей, ароматизаторов и других пищевых веществ. Пояснение по требуемой продукции: вода минеральная природная питьевая упакованная","11.07.11.111-001",796,"Штука","**"]
[null,null,null,"11.07.11.111-003",796,"Штука","**"]
[null,null,null,"11.07.11.111-002",796,"Штука","**"]
[null,null,null,"11.07.11.111-004",796,"Штука","**"]
[null,null,null,"11.07.11.112-001",796,"Штука","**"]
[null,null,null,"11.07.11.112-002",796,"Штука","**"]
[265,"11.07.11","Воды минеральные природные упакованные, воды питьевые упакованные, не содержащие сахара, подсластителей, ароматизаторов и других пищевых веществ. Пояснение по требуемой продукции: вода питьевая упакованная","11.07.11.121-001",796,"Штука","**"]
[null,null,null,"11.07.11.121-002",796,"Штука","**"]
[null,null,null,"11.07.11.121-003",796,"Штука","**"]
[null,null,null,"11.07.11.121-004",796,"Штука","**"]
[null,null,null,"11.07.11.121-005",796,"Штука","**"]
[null,null,null,"11.07.11.121-006",796,"Штука","**"]
[null,null,null,"11.07.11.122-001",796,"Штука","**"]
[266,"11.07.19","Напитки безалкогольные прочие. Пояснение по требуемой продукции: напитки сухие инстантные (быстрорастворимые)","11.07.19.159-002",166,"Килограмм","**"]
[267,"20.14.34","Кислоты поликарбоновые ароматические и кислоты карбоновые с дополнительными кислородсодержащими функциональными группами, их производные, кроме кислоты салициловой и ее солей. Пояснение по требуемой продукции: кислота лимонная пищевая","20.14.34.231-001",166,"Килограмм","**"]
[268,"20.59.60","Желатин и его производные. Пояснение по требуемой продукции: желатин","20.59.60.111-001",166,"Килограмм","**"]
["2.2. Перечень товарных позиций части «Канцелярские товары и офисные принадлежности»"]
[null,null,null,"В соответствии с кодом конечного каталожного наименования (ККН)",null,null,"Предельная цена (руб. с НДС)"]
[269,"13.92.29","Изделия текстильные готовые прочие (включая тряпки для мытья полов, посуды, удаления пыли и аналогичные текстильные изделия, спасательные жилеты и пояса). Пояснение по требуемой продукции: флаг Российской Федерации","13.92.29.190-001",796,"Штука","**"]
[null,null,null,"13.92.29.190-014",839,"Комплект","**"]
[null,null,null,"13.92.29.190-017",839,"Комплект","**"]
[null,null,null,"13.92.29.190-018",839,"Комплект","**"]
[null,null,null,"13.92.29.190-022",796,"Штука","**"]
[null,null,null,"13.92.29.190-023",796,"Штука","**"]
[null,null,null,"13.92.29.190-024",796,"Штука","**"]
[270,"13.92.29","Изделия текстильные готовые прочие (включая тряпки для мытья полов, посуды, удаления пыли и аналогичные текстильные изделия, спасательные жилеты и пояса). Пояснение по требуемой продукции: флаг Санкт-Петербурга","13.92.29.190-025",796,"Штука","**"]
[271,"13.94.11","Шпагат, канаты, веревки и шнуры из джута или прочих текстильных лубяных материалов. Пояснение по требуемой продукции: шпагат","13.94.11.110-001",616,"Бобина","**"]
[null,null,null,"13.94.11.110-077",616,"Бобина","**"]
[null,null,null,"13.94.11.110-007",616,"Бобина","**"]
[272,"13.94.12","Сети и сетки, плетеные из бечевок, шнуров или веревок, готовые сети из текстильных материалов; изделия из пряжи, лент, не включенные в другие группировки. Пояснение по требуемой продукции: лента обвязочная","13.94.12.130-001",616,"Бобина","**"]
[273,"13.95.10","Материалы нетканые и изделия из них (кроме одежды). Пояснение по требуемой продукции: салфетки сменные для губок-стирателей","13.95.10.190-001",778,"Упаковка","**"]
[274,"16.29.14","Рамы деревянные для картин, фотографий, зеркал или аналогичных предметов и прочие изделия из дерева. Пояснение по требуемой продукции: древко для флага","16.29.14.199-004",796,"Штука","**"]
[275,"16.29.14","Рамы деревянные для картин, фотографий, зеркал или аналогичных предметов и прочие изделия из дерева. Пояснение по требуемой продукции: рамка для документов","16.29.14.110-001",796,"Штука","**"]
[276,"17.12.14","Бумага прочая и картон для графических целей. Пояснение по требуемой продукции: бумага для офисной техники (марка бумаги не ниже А, В, С, Сэ)","17.12.14.129-001",728,"Пачка","**"]
[null,null,null,"17.12.14.129-002",728,"Пачка","**"]
[null,null,null,"17.12.14.129-005",728,"Пачка","**"]
[null,null,null,"17.12.14.129-006",728,"Пачка","**"]
[null,null,null,"17.12.14.129-011",728,"Пачка","**"]
[null,null,null,"17.12.14.129-012",728,"Пачка","**"]
[null,null,null,"17.12.14.129-029",728,"Пачка","**"]
[277,"17.12.14","Бумага прочая и картон для графических целей. Пояснение по требуемой продукции: бумага для офисной техники (марка бумаги не ниже А+)","17.12.14.129-009",728,"Пачка","**"]
[null,null,null,"17.12.14.129-010",728,"Пачка","**"]
[278,"17.12.14","Бумага прочая и картон для графических целей. Пояснение по требуемой продукции: бумага для офисной техники (для полноцветной лазерной печати)","17.12.14.129-014",728,"Пачка","**"]
[null,null,null,"17.12.14.129-015",728,"Пачка","**"]
[null,null,null,"17.12.14.129-016",728,"Пачка","**"]
[null,null,null,"17.12.14.129-017",728,"Пачка","**"]
[null,null,null,"17.12.14.129-018",728,"Пачка","**"]
[null,null,null,"17.12.14.129-023",728,"Пачка","**"]
[null,null,null,"17.12.14.129-024",728,"Пачка","**"]
[null,null,null,"17.12.14.129-025",728,"Пачка","**"]
[null,null,null,"17.12.14.129-030",728,"Пачка","**"]
[null,null,null,"17.12.14.129-032",728,"Пачка","**"]
[null,null,null,"17.12.14.129-033",728,"Пачка","**"]
[null,null,null,"17.12.14.129-034",728,"Пачка","**"]
[null,null,null,"17.12.14.129-035",728,"Пачка","**"]
[279,"17.12.14","Бумага прочая и картон для графических целей. Пояснение по требуемой продукции: бумага для офисной техники (цветная)","17.12.14.129-019",728,"Пачка","**"]
[null,null,null,"17.12.14.129-020",728,"Пачка","**"]
[null,null,null,"17.12.14.129-021",728,"Пачка","**"]
[null,null,null,"17.12.14.129-026",728,"Пачка","**"]
[null,null,null,"17.12.14.129-027",728,"Пачка","**"]
[null,null,null,"17.12.14.129-028",728,"Пачка","**"]
[null,null,null,"17.12.14.129-031",728,"Пачка","**"]
[280,"17.12.14","Бумага прочая и картон для графических целей. Пояснение по требуемой продукции: бумага для плоттеров","17.12.14.160-022",736,"Рулон","**"]
[null,null,null,"17.12.14.160-020",736,"Рулон","**"]
[null,null,null,"17.12.14.160-025",736,"Рулон","**"]
[null,null,null,"17.12.14.160-026",736,"Рулон","**"]
[null,null,null,"17.12.14.160-027",736,"Рулон","**"]
[null,null,null,"17.12.14.160-021",736,"Рулон","**"]
[null,null,null,"17.12.14.160-023",736,"Рулон","**"]
[null,null,null,"17.12.14.160-024",736,"Рулон","**"]
[null,null,null,"17.12.14.160-028",736,"Рулон","**"]
[281,"17.12.14","Бумага прочая и картон для графических целей. Пояснение по требуемой продукции: бумага для сертификатов","17.12.14.126-001",778,"Упаковка","**"]
[282,"17.12.14","Бумага прочая и картон для графических целей. Пояснение по требуемой продукции: бумага микалентная","17.12.14.141-001",166,"Килограмм","**"]
[null,null,null,"17.12.14.141-002",166,"Килограмм","**"]
[283,"17.12.14","Бумага прочая и картон для графических целей. Пояснение по требуемой продукции: бумага писчая","17.12.14.121-016",728,"Пачка","**"]
[null,null,null,"17.12.14.121-019",728,"Пачка","**"]
[null,null,null,"17.12.14.121-020",728,"Пачка","**"]
[284,"17.12.14","Бумага прочая и картон для графических целей. Пояснение по требуемой продукции: бумага самоклеящаяся","17.12.14.160-001",778,"Упаковка","**"]
[null,null,null,"17.12.14.160-002",778,"Упаковка","**"]
[285,"17.12.14","Бумага прочая и картон для графических целей. Пояснение по требуемой продукции: бумага для офисной техники (формат A5)","17.12.14.129-013",728,"Пачка","**"]
[null,null,null,"17.12.14.129-022",728,"Пачка","**"]
[286,"17.12.14","Бумага прочая и картон для графических целей. Пояснение по требуемой продукции: бумага чертежная","17.12.14.122-001",778,"Упаковка","**"]
[null,null,null,"17.12.14.122-004",778,"Упаковка","**"]
[null,null,null,"17.12.14.122-005",778,"Упаковка","**"]
[287,"17.12.14","Бумага прочая и картон для графических целей. Пояснение по требуемой продукции: бумага для факса","17.12.14.160-017",736,"Рулон","**"]
[null,null,null,"17.12.14.160-019",736,"Рулон","**"]
[288,"17.12.14","Бумага прочая и картон для графических целей. Пояснение по требуемой продукции: бумага для аппаратов и приборов, кроме факса","17.12.14.160-003",736,"Рулон","**"]
[null,null,null,"17.12.14.160-009",736,"Рулон","**"]
[null,null,null,"17.12.14.160-010",736,"Рулон","**"]
[null,null,null,"17.12.14.160-011",736,"Рулон","**"]
[null,null,null,"17.12.14.160-018",736,"Рулон","**"]
[289,"17.12.14","Бумага прочая и картон для графических целей. Пояснение по требуемой продукции: этикетки самоклеящиеся для папок","17.12.14.160-012",778,"Упаковка","**"]
[null,null,null,"17.12.14.160-029",778,"Упаковка","**"]
[290,"17.12.14","Бумага прочая и картон для графических целей. Пояснение по требуемой продукции: бумага для флипчарта","17.12.14.121-018",778,"Упаковка","**"]
[null,null,null,"17.12.14.121-021",778,"Упаковка","**"]
[null,null,null,"17.12.14.121-022",778,"Упаковка","**"]
[291,"17.12.41","Крафт-лайнер немелованный; крафт-бумага мешочная крепированная или гофрированная. Пояснение по требуемой продукции: крафт-бумага","17.12.41.120-001",736,"Рулон","**"]
[null,null,null,"17.12.41.120-002",736,"Рулон","**"]
[292,"17.12.60","Пергамент растительный, бумага жиронепроницаемая, калька, пергамин и прочая бумага глазированная прозрачная или полупрозрачная. Пояснение по требуемой продукции: калька бумажная (в рулоне)","17.12.60.130-001",736,"Рулон","**"]
[293,"17.12.60","Пергамент растительный, бумага жиронепроницаемая, калька, пергамин и прочая бумага глазированная прозрачная или полупрозрачная. Пояснение по требуемой продукции: калька бумажная (листовая)","17.12.60.130-002",778,"Упаковка","**"]
[null,null,null,"17.12.60.130-003",778,"Упаковка","**"]
[294,"17.12.72","Бумага и картон крепированные, гофрированные, тисненые или перфорированные. Пояснение по требуемой продукции: бумага гофрированная","17.12.72.110-001",736,"Рулон","**"]
[295,"17.21.13","Ящики и коробки из гофрированной бумаги или гофрированного картона. Пояснение по требуемой продукции: коробка (короб) из гофрированного материала (короб архивный)","17.21.13.000-003",796,"Штука","**"]
[null,null,null,"17.21.13.000-004",796,"Штука","**"]
[null,null,null,"17.21.13.000-005",796,"Штука","**"]
[null,null,null,"17.21.13.000-006",796,"Штука","**"]
[null,null,null,"17.21.13.000-007",796,"Штука","**"]
[296,"17.23.11","Бумага копировальная, бумага самокопировальная и прочая копировальная или переводная бумага; трафареты для копировальных аппаратов и формы офсетные (пластины) из бумаги; бумага клейкая или гуммированная. Пояснение по требуемой продукции: бумага копировальная","17.23.11.110-001",778,"Упаковка","**"]
[297,"17.23.12","Конверты, письма-секретки, карточки почтовые, карточки для переписки из бумаги или картона, коробки, сумки, футляры, наборы почтовые из бумаги или картона, содержащие наборы бумажных канцелярских принадлежностей. Пояснение по требуемой продукции: конверт почтовый бумажный","17.23.12.110-001",796,"Штука","**"]
[null,null,null,"17.23.12.110-008",796,"Штука","**"]
[null,null,null,"17.23.12.110-003",796,"Штука","**"]
[null,null,null,"17.23.12.110-004",796,"Штука","**"]
[null,null,null,"17.23.12.110-007",796,"Штука","**"]
[null,null,null,"17.23.12.110-009",796,"Штука","**"]
[null,null,null,"17.23.12.110-010",796,"Штука","**"]
[null,null,null,"17.23.12.110-011",796,"Штука","**"]
[null,null,null,"17.23.12.110-012",796,"Штука","**"]
[null,null,null,"17.23.12.110-013",796,"Штука","**"]
[null,null,null,"17.23.12.110-014",796,"Штука","**"]
[298,"17.23.12","Конверты, письма-секретки, карточки почтовые, карточки для переписки из бумаги или картона, коробки, сумки, футляры, наборы почтовые из бумаги или картона, содержащие наборы бумажных канцелярских принадлежностей. Пояснение по требуемой продукции: конверты для хранения                                                                                     CD-дисков","17.23.12.110-005",778,"Упаковка","**"]
[null,null,null,"17.23.12.110-006",778,"Упаковка","**"]
[299,"17.23.13","Журналы регистрационные, книги бухгалтерские, скоросшиватели (папки), бланки и прочие канцелярские принадлежности из бумаги или картона. Пояснение по требуемой продукции: альбом для рисования","17.23.13.192-001",796,"Штука","**"]
[null,null,null,"17.23.13.192-002",796,"Штука","**"]
[null,null,null,"17.23.13.192-003",796,"Штука","**"]
[null,null,null,"17.23.13.192-004",796,"Штука","**"]
[null,null,null,"17.23.13.192-010",796,"Штука","**"]
[300,"17.23.13","Журналы регистрационные, книги бухгалтерские, скоросшиватели (папки), бланки и прочие канцелярские принадлежности из бумаги или картона. Пояснение по требуемой продукции: бланк из бумаги или картона (бланк документа об образовании)","17.23.13.141-003",796,"Штука","**"]
[null,null,null,"17.23.13.141-004",796,"Штука","**"]
[null,null,null,"17.23.13.141-012",796,"Штука","**"]
[null,null,null,"17.23.13.141-013",796,"Штука","**"]
[null,null,null,"17.23.13.141-014",796,"Штука","**"]
[null,null,null,"17.23.13.141-015",796,"Штука","**"]
[null,null,null,"17.23.13.141-016",796,"Штука","**"]
[null,null,null,"17.23.13.141-017",796,"Штука","**"]
[null,null,null,"17.23.13.141-020",796,"Штука","**"]
[null,null,null,"17.23.13.141-021",796,"Штука","**"]
[301,"17.23.13","Журналы регистрационные, книги бухгалтерские, скоросшиватели (папки), бланки и прочие канцелярские принадлежности из бумаги или картона. Пояснение по требуемой продукции: блоки для записей (без клейкого края)","17.23.13.199-014",796,"Штука","**"]
[null,null,null,"17.23.13.199-015",796,"Штука","**"]
[null,null,null,"17.23.13.199-016",796,"Штука","**"]
[null,null,null,"17.23.13.199-017",796,"Штука","**"]
[null,null,null,"17.23.13.199-018",796,"Штука","**"]
[null,null,null,"17.23.13.199-019",796,"Штука","**"]
[null,null,null,"17.23.13.199-020",796,"Штука","**"]
[null,null,null,"17.23.13.199-021",796,"Штука","**"]
[null,null,null,"17.23.13.199-029",796,"Штука","**"]
[null,null,null,"17.23.13.199-030",796,"Штука","**"]
[null,null,null,"17.23.13.199-031",796,"Штука","**"]
[null,null,null,"17.23.13.199-032",796,"Штука","**"]
[302,"17.23.13","Журналы регистрационные, книги бухгалтерские, скоросшиватели (папки), бланки и прочие канцелярские принадлежности из бумаги или картона. Пояснение по требуемой продукции: блоки для записей (с клейким краем)","17.23.13.199-008",796,"Штука","**"]
[null,null,null,"17.23.13.199-009",796,"Штука","**"]
[null,null,null,"17.23.13.199-010",796,"Штука","**"]
[null,null,null,"17.23.13.199-011",796,"Штука","**"]
[null,null,null,"17.23.13.199-012",796,"Штука","**"]
[null,null,null,"17.23.13.199-013",796,"Штука","**"]
[null,null,null,"17.23.13.199-022",796,"Штука","**"]
[303,"17.23.13","Журналы регистрационные, книги бухгалтерские, скоросшиватели (папки), бланки и прочие канцелярские принадлежности из бумаги или картона. Пояснение по требуемой продукции: блокнот","17.23.13.191-005",796,"Штука","**"]
[null,null,null,"17.23.13.191-011",796,"Штука","**"]
[null,null,null,"17.23.13.191-012",796,"Штука","**"]
[null,null,null,"17.23.13.191-017",796,"Штука","**"]
[304,"17.23.13","Журналы регистрационные, книги бухгалтерские, скоросшиватели (папки), бланки и прочие канцелярские принадлежности из бумаги или картона. Пояснение по требуемой продукции: бумага для квиллинга","17.23.13.199-005",704,"Набор","**"]
[null,null,null,"17.23.13.199-007",704,"Набор","**"]
[305,"17.23.13","Журналы регистрационные, книги бухгалтерские, скоросшиватели (папки), бланки и прочие канцелярские принадлежности из бумаги или картона. Пояснение по требуемой продукции: бумага цветная для творчества","17.23.13.192-012",704,"Набор","**"]
[null,null,null,"17.23.13.192-013",704,"Набор","**"]
[null,null,null,"17.23.13.192-014",704,"Набор","**"]
[null,null,null,"17.23.13.192-015",704,"Набор","**"]
[306,"17.23.13","Журналы регистрационные, книги бухгалтерские, скоросшиватели (папки), бланки и прочие канцелярские принадлежности из бумаги или картона. Пояснение по требуемой продукции: ежедневник","17.23.13.191-001",796,"Штука","**"]
[null,null,null,"17.23.13.191-004",796,"Штука","**"]
[null,null,null,"17.23.13.191-010",796,"Штука","**"]
[null,null,null,"17.23.13.191-016",796,"Штука","**"]
[307,"17.23.13","Журналы регистрационные, книги бухгалтерские, скоросшиватели (папки), бланки и прочие канцелярские принадлежности из бумаги или картона. Пояснение по требуемой продукции: еженедельник","17.23.13.191-015",796,"Штука","**"]
[308,"17.23.13","Журналы регистрационные, книги бухгалтерские, скоросшиватели (папки), бланки и прочие канцелярские принадлежности из бумаги или картона. Пояснение по требуемой продукции: журнал (книга) регистрации и учета специализированный","17.23.13.110-002",796,"Штука","**"]
[null,null,null,"17.23.13.110-032",796,"Штука","**"]
[null,null,null,"17.23.13.110-033",796,"Штука","**"]
[null,null,null,"17.23.13.110-021",796,"Штука","**"]
[null,null,null,"17.23.13.110-022",796,"Штука","**"]
[null,null,null,"17.23.13.110-023",796,"Штука","**"]
[null,null,null,"17.23.13.110-024",796,"Штука","**"]
[null,null,null,"17.23.13.110-025",796,"Штука","**"]
[null,null,null,"17.23.13.110-028",796,"Штука","**"]
[null,null,null,"17.23.13.110-037",796,"Штука","**"]
[null,null,null,"17.23.13.110-036",796,"Штука","**"]
[null,null,null,"17.23.13.110-019",796,"Штука","**"]
[null,null,null,"17.23.13.110-018",796,"Штука","**"]
[null,null,null,"17.23.13.110-020",796,"Штука","**"]
[null,null,null,"17.23.13.110-041",796,"Штука","**"]
[null,null,null,"17.23.13.110-052",796,"Штука","**"]
[309,"17.23.13","Журналы регистрационные, книги бухгалтерские, скоросшиватели (папки), бланки и прочие канцелярские принадлежности из бумаги или картона. Пояснение по требуемой продукции: клейкие закладки бумажные","17.23.13.199-023",778,"Упаковка","**"]
[310,"17.23.13","Журналы регистрационные, книги бухгалтерские, скоросшиватели (папки), бланки и прочие канцелярские принадлежности из бумаги или картона. Пояснение по требуемой продукции: книга алфавитная","17.23.13.191-003",796,"Штука","**"]
[null,null,null,"17.23.13.191-013",796,"Штука","**"]
[311,"17.23.13","Журналы регистрационные, книги бухгалтерские, скоросшиватели (папки), бланки и прочие канцелярские принадлежности из бумаги или картона. Пояснение по требуемой продукции: книга отзывов и предложений","17.23.13.110-039",796,"Штука","**"]
[null,null,null,"17.23.13.110-040",796,"Штука","**"]
[312,"17.23.13","Журналы регистрационные, книги бухгалтерские, скоросшиватели (папки), бланки и прочие канцелярские принадлежности из бумаги или картона. Пояснение по требуемой продукции: книга учета материальных ценностей","17.23.13.120-001",796,"Штука","**"]
[null,null,null,"17.23.13.120-005",796,"Штука","**"]
[313,"17.23.13","Журналы регистрационные, книги бухгалтерские, скоросшиватели (папки), бланки и прочие канцелярские принадлежности из бумаги или картона. Пояснение по требуемой продукции: книга учета универсальная","17.23.13.120-003",796,"Штука","**"]
[null,null,null,"17.23.13.120-004",796,"Штука","**"]
[314,"17.23.13","Журналы регистрационные, книги бухгалтерские, скоросшиватели (папки), бланки и прочие канцелярские принадлежности из бумаги или картона. Пояснение по требуемой продукции: лоток для бумаги картонный вертикальный","17.23.13.199-024",796,"Штука","**"]
[null,null,null,"17.23.13.199-025",796,"Штука","**"]
[315,"17.23.13","Журналы регистрационные, книги бухгалтерские, скоросшиватели (папки), бланки и прочие канцелярские принадлежности из бумаги или картона. Пояснение по требуемой продукции: обложка для переплета картонная","17.23.13.199-026",778,"Упаковка","**"]
[null,null,null,"17.23.13.199-027",778,"Упаковка","**"]
[null,null,null,"17.23.13.199-033",778,"Упаковка","**"]
[316,"17.23.13","Журналы регистрационные, книги бухгалтерские, скоросшиватели (папки), бланки и прочие канцелярские принадлежности из бумаги или картона. Пояснение по требуемой продукции: папка для рисования","17.23.13.192-009",796,"Штука","**"]
[null,null,null,"17.23.13.192-011",796,"Штука","**"]
[317,"17.23.13","Журналы регистрационные, книги бухгалтерские, скоросшиватели (папки), бланки и прочие канцелярские принадлежности из бумаги или картона. Пояснение по требуемой продукции: папка для черчения с листами","17.23.13.192-005",796,"Штука","**"]
[null,null,null,"17.23.13.192-006",796,"Штука","**"]
[318,"17.23.13","Журналы регистрационные, книги бухгалтерские, скоросшиватели (папки), бланки и прочие канцелярские принадлежности из бумаги или картона. Пояснение по требуемой продукции: папка картонная (адресная)","17.23.13.130-007",796,"Штука","**"]
[null,null,null,"17.23.13.130-008",796,"Штука","**"]
[319,"17.23.13","Журналы регистрационные, книги бухгалтерские, скоросшиватели (папки), бланки и прочие канцелярские принадлежности из бумаги или картона. Пояснение по требуемой продукции: папка картонная (папка архивная для переплета)","17.23.13.193-016",796,"Штука","**"]
[null,null,null,"17.23.13.193-015",796,"Штука","**"]
[320,"17.23.13","Журналы регистрационные, книги бухгалтерские, скоросшиватели (папки), бланки и прочие канцелярские принадлежности из бумаги или картона. Пояснение по требуемой продукции: папка картонная (папка архивная)","17.23.13.193-011",796,"Штука","**"]
[null,null,null,"17.23.13.193-012",796,"Штука","**"]
[null,null,null,"17.23.13.193-013",796,"Штука","**"]
[null,null,null,"17.23.13.193-014",796,"Штука","**"]
[null,null,null,"17.23.13.193-028",796,"Штука","**"]
[null,null,null,"17.23.13.193-029",796,"Штука","**"]
[321,"17.23.13","Журналы регистрационные, книги бухгалтерские, скоросшиватели (папки), бланки и прочие канцелярские принадлежности из бумаги или картона. Пояснение по требуемой продукции: папка картонная (папка-обложка без скоросшивателя)","17.23.13.130-024",796,"Штука","**"]
[null,null,null,"17.23.13.130-025",796,"Штука","**"]
[null,null,null,"17.23.13.130-026",796,"Штука","**"]
[322,"17.23.13","Журналы регистрационные, книги бухгалтерские, скоросшиватели (папки), бланки и прочие канцелярские принадлежности из бумаги или картона. Пояснение по требуемой продукции: папка картонная (папка-планшет)","17.23.13.130-004",796,"Штука","**"]
[null,null,null,"17.23.13.130-005",796,"Штука","**"]
[323,"17.23.13","Журналы регистрационные, книги бухгалтерские, скоросшиватели (папки), бланки и прочие канцелярские принадлежности из бумаги или картона. Пояснение по требуемой продукции: папка картонная (папка-регистратор)","17.23.13.193-006",796,"Штука","**"]
[null,null,null,"17.23.13.193-007",796,"Штука","**"]
[null,null,null,"17.23.13.193-008",796,"Штука","**"]
[null,null,null,"17.23.13.193-009",796,"Штука","**"]
[null,null,null,"17.23.13.193-031",796,"Штука","**"]
[null,null,null,"17.23.13.193-010",796,"Штука","**"]
[null,null,null,"17.23.13.193-030",796,"Штука","**"]
[324,"17.23.13","Журналы регистрационные, книги бухгалтерские, скоросшиватели (папки), бланки и прочие канцелярские принадлежности из бумаги или картона. Пояснение по требуемой продукции: папка картонная (папка-скоросшиватель)","17.23.13.130-003",796,"Штука","**"]
[null,null,null,"17.23.13.130-017",796,"Штука","**"]
[null,null,null,"17.23.13.130-018",796,"Штука","**"]
[325,"17.23.13","Журналы регистрационные, книги бухгалтерские, скоросшиватели (папки), бланки и прочие канцелярские принадлежности из бумаги или картона. Пояснение по требуемой продукции: папка подвесная","17.23.13.130-023",796,"Штука","**"]
[326,"17.23.13","Журналы регистрационные, книги бухгалтерские, скоросшиватели (папки), бланки и прочие канцелярские принадлежности из бумаги или картона. Пояснение по требуемой продукции: переплетные крышки","17.23.13.193-001",778,"Упаковка","**"]
[327,"17.23.13","Журналы регистрационные, книги бухгалтерские, скоросшиватели (папки), бланки и прочие канцелярские принадлежности из бумаги или картона. Пояснение по требуемой продукции: планинг","17.23.13.191-002",796,"Штука","**"]
[null,null,null,"17.23.13.191-006",796,"Штука","**"]
[null,null,null,"17.23.13.191-007",796,"Штука","**"]
[null,null,null,"17.23.13.191-008",796,"Штука","**"]
[null,null,null,"17.23.13.191-009",796,"Штука","**"]
[328,"17.23.13","Журналы регистрационные, книги бухгалтерские, скоросшиватели (папки), бланки и прочие канцелярские принадлежности из бумаги или картона. Пояснение по требуемой продукции: разделитель листов картонный","17.23.13.199-002",778,"Упаковка","**"]
[329,"17.23.13","Журналы регистрационные, книги бухгалтерские, скоросшиватели (папки), бланки и прочие канцелярские принадлежности из бумаги или картона. Пояснение по требуемой продукции: тетрадь различного назначения","17.23.13.196-001",796,"Штука","**"]
[null,null,null,"17.23.13.196-002",796,"Штука","**"]
[null,null,null,"17.23.13.196-003",796,"Штука","**"]
[null,null,null,"17.23.13.196-004",796,"Штука","**"]
[null,null,null,"17.23.13.196-005",796,"Штука","**"]
[null,null,null,"17.23.13.196-006",796,"Штука","**"]
[null,null,null,"17.23.13.196-007",796,"Штука","**"]
[330,"17.23.13","Журналы регистрационные, книги бухгалтерские, скоросшиватели (папки), бланки и прочие канцелярские принадлежности из бумаги или картона. Пояснение по требуемой продукции: тетрадь ученическая общая","17.23.13.195-002",796,"Штука","**"]
[null,null,null,"17.23.13.195-003",796,"Штука","**"]
[null,null,null,"17.23.13.195-008",796,"Штука","**"]
[null,null,null,"17.23.13.195-009",796,"Штука","**"]
[331,"17.23.13","Журналы регистрационные, книги бухгалтерские, скоросшиватели (папки), бланки и прочие канцелярские принадлежности из бумаги или картона. Пояснение по требуемой продукции: тетрадь ученическая школьная","17.23.13.194-001",796,"Штука","**"]
[null,null,null,"17.23.13.194-002",796,"Штука","**"]
[null,null,null,"17.23.13.194-003",796,"Штука","**"]
[null,null,null,"17.23.13.194-004",796,"Штука","**"]
[null,null,null,"17.23.13.194-005",796,"Штука","**"]
[null,null,null,"17.23.13.194-006",796,"Штука","**"]
[332,"17.23.13","Журналы регистрационные, книги бухгалтерские, скоросшиватели (папки), бланки и прочие канцелярские принадлежности из бумаги или картона. Пояснение по требуемой продукции: трудовая книжка","17.23.13.141-001",796,"Штука","**"]
[333,"17.23.13","Журналы регистрационные, книги бухгалтерские, скоросшиватели (папки), бланки и прочие канцелярские принадлежности из бумаги или картона. Пояснение по требуемой продукции: вкладыш в трудовую книжку","17.23.13.141-002",796,"Штука","**"]
[334,"17.23.13","Журналы регистрационные, книги бухгалтерские, скоросшиватели (папки), бланки и прочие канцелярские принадлежности из бумаги или картона. Пояснение по требуемой продукции: личная карточка учащегося","17.23.13.141-009",796,"Штука","**"]
[335,"17.23.14","Бумага и картон прочие, используемые для письма или печати или прочих графических целей, тисненые, гофрированные или перфорированные. Пояснение по требуемой продукции: бумага миллиметровая (в упаковке)","17.23.14.110-010",778,"Упаковка","**"]
[336,"17.23.14","Бумага и картон прочие, используемые для письма или печати или прочих графических целей, тисненые, гофрированные или перфорированные. Пояснение по требуемой продукции: бумага миллиметровая (в рулоне)","17.23.14.110-011",736,"Рулон","**"]
[337,"17.23.14","Бумага и картон прочие, используемые для письма или печати или прочих графических целей, тисненые, гофрированные или перфорированные. Пояснение по требуемой продукции: картон канцелярский (белый)","17.23.14.120-001",778,"Упаковка","**"]
[null,null,null,"17.23.14.120-003",778,"Упаковка","**"]
[null,null,null,"17.23.14.120-006",778,"Упаковка","**"]
[338,"17.23.14","Бумага и картон прочие, используемые для письма или печати или прочих графических целей, тисненые, гофрированные или перфорированные. Пояснение по требуемой продукции: картон канцелярский (цветной)","17.23.14.120-002",778,"Упаковка","**"]
[null,null,null,"17.23.14.120-004",778,"Упаковка","**"]
[null,null,null,"17.23.14.120-005",778,"Упаковка","**"]
[null,null,null,"17.23.14.120-007",778,"Упаковка","**"]
[339,"17.29.11","Ярлыки и этикетки из бумаги или картона. Пояснение по требуемой продукции: этикетки термотрансферные","17.29.11.110-001",736,"Рулон","**"]
[null,null,null,"17.29.11.110-002",736,"Рулон","**"]
[null,null,null,"17.29.11.110-003",736,"Рулон","**"]
[null,null,null,"17.29.11.110-004",736,"Рулон","**"]
[null,null,null,"17.29.11.110-005",736,"Рулон","**"]
[340,"20.30.23","Краски для художников, учащихся или оформителей вывесок; красители оттеночные, краски любительские и аналогичные продукты. Пояснение по требуемой продукции: краска для рисования","20.30.23.110-001",796,"Штука","**"]
[null,null,null,"20.30.23.110-002",796,"Штука","**"]
[null,null,null,"20.30.23.110-003",796,"Штука","**"]
[null,null,null,"20.30.23.110-004",796,"Штука","**"]
[null,null,null,"20.30.23.110-005",796,"Штука","**"]
[null,null,null,"20.30.23.110-006",796,"Штука","**"]
[null,null,null,"20.30.23.110-007",796,"Штука","**"]
[null,null,null,"20.30.23.110-008",796,"Штука","**"]
[null,null,null,"20.30.23.110-009",796,"Штука","**"]
[null,null,null,"20.30.23.110-010",796,"Штука","**"]
[null,null,null,"20.30.23.110-011",796,"Штука","**"]
[null,null,null,"20.30.23.110-012",796,"Штука","**"]
[null,null,null,"20.30.23.110-013",796,"Штука","**"]
[null,null,null,"20.30.23.110-014",796,"Штука","**"]
[null,null,null,"20.30.23.110-015",796,"Штука","**"]
[null,null,null,"20.30.23.110-016",796,"Штука","**"]
[null,null,null,"20.30.23.110-017",796,"Штука","**"]
[null,null,null,"20.30.23.110-018",796,"Штука","**"]
[null,null,null,"20.30.23.110-019",796,"Штука","**"]
[null,null,null,"20.30.23.110-020",796,"Штука","**"]
[null,null,null,"20.30.23.110-021",796,"Штука","**"]
[null,null,null,"20.30.23.110-022",796,"Штука","**"]
[null,null,null,"20.30.23.110-023",796,"Штука","**"]
[null,null,null,"20.30.23.110-024",796,"Штука","**"]
[null,null,null,"20.30.23.110-025",796,"Штука","**"]
[null,null,null,"20.30.23.110-026",796,"Штука","**"]
[null,null,null,"20.30.23.110-027",796,"Штука","**"]
[null,null,null,"20.30.23.110-028",796,"Штука","**"]
[null,null,null,"20.30.23.110-029",796,"Штука","**"]
[null,null,null,"20.30.23.110-030",796,"Штука","**"]
[null,null,null,"20.30.23.110-031",796,"Штука","**"]
[null,null,null,"20.30.23.110-032",796,"Штука","**"]
[null,null,null,"20.30.23.110-033",796,"Штука","**"]
[341,"20.41.44","Пасты чистящие, порошки и прочие чистящие средства. Пояснение по требуемой продукции: салфетки для оргтехники","20.41.44.190-014",778,"Упаковка","**"]
[null,null,null,"20.41.44.190-015",778,"Упаковка","**"]
[342,"20.41.44","Пасты чистящие, порошки и прочие чистящие средства. Пояснение по требуемой продукции: спрей для чистки поверхностей","20.41.44.190-001",796,"Штука","**"]
[null,null,null,"20.41.44.190-002",796,"Штука","**"]
[343,"20.41.44","Пасты чистящие, порошки и прочие чистящие средства. Пояснение по требуемой продукции: средство для удаления этикеток","20.41.44.190-007",796,"Штука","**"]
[344,"20.52.10","Клеи. Пояснение по требуемой продукции: клей канцелярский","20.52.10.190-001",796,"Штука","**"]
[null,null,null,"20.52.10.190-002",796,"Штука","**"]
[null,null,null,"20.52.10.190-003",796,"Штука","**"]
[null,null,null,"20.52.10.190-008",796,"Штука","**"]
[null,null,null,"20.52.10.190-010",796,"Штука","**"]
[null,null,null,"20.52.10.190-011",796,"Штука","**"]
[null,null,null,"20.52.10.190-012",796,"Штука","**"]
[null,null,null,"20.52.10.190-009",796,"Штука","**"]
[null,null,null,"20.52.10.190-020",796,"Штука","**"]
[null,null,null,"20.52.10.190-041",796,"Штука","**"]
[345,"20.52.10","Клеи. Пояснение по требуемой продукции: клей полимерный","20.52.10.190-032",166,"Килограмм","**"]
[null,null,null,"20.52.10.190-033",166,"Килограмм","**"]
[null,null,null,"20.52.10.190-034",166,"Килограмм","**"]
[null,null,null,"20.52.10.190-035",166,"Килограмм","**"]
[null,null,null,"20.52.10.190-036",166,"Килограмм","**"]
[346,"20.52.10","Клеи. Пояснение по требуемой продукции: клей поливинилацетатный","20.52.10.190-026",112,"Литр; кубический дециметр","**"]
[null,null,null,"20.52.10.190-027",112,"Литр; кубический дециметр","**"]
[null,null,null,"20.52.10.190-028",112,"Литр; кубический дециметр","**"]
[null,null,null,"20.52.10.190-029",112,"Литр; кубический дециметр","**"]
[347,"20.59.11","Фотопластинки и фотопленки, фотопленки для моментальных фотоснимков, светочувствительные, неэкспонированные; фотобумаги. Пояснение по требуемой продукции: фотобумага для офисной техники (листовая)","20.59.11.130-001",778,"Упаковка","**"]
[null,null,null,"20.59.11.130-002",778,"Упаковка","**"]
[null,null,null,"20.59.11.130-003",778,"Упаковка","**"]
[null,null,null,"20.59.11.130-004",778,"Упаковка","**"]
[348,"20.59.11","Фотопластинки и фотопленки, фотопленки для моментальных фотоснимков, светочувствительные, неэкспонированные; фотобумаги. Пояснение по требуемой продукции: фотобумага для офисной техники (в рулоне)","20.59.11.130-009",736,"Рулон","**"]
[349,"20.59.30","Чернила для письма или рисования и прочие чернила. Пояснение по требуемой продукции: картридж с чернилами","20.59.30.110-001",796,"Штука","**"]
[350,"20.59.30","Чернила для письма или рисования и прочие чернила. Пояснение по требуемой продукции: краска штемпельная","20.59.30.190-001",796,"Штука","**"]
[null,null,null,"20.59.30.190-002",796,"Штука","**"]
[null,null,null,"20.59.30.190-003",796,"Штука","**"]
[null,null,null,"20.59.30.190-004",796,"Штука","**"]
[351,"20.59.30","Чернила для письма или рисования и прочие чернила. Пояснение по требуемой продукции: тушь чертежная","20.59.30.110-003",796,"Штука","**"]
[352,"20.59.30","Чернила для письма или рисования и прочие чернила. Пояснение по требуемой продукции: чернила для ручек","20.59.30.110-002",796,"Штука","**"]
[353,"20.59.52","Пасты для лепки; зуботехнический воск и прочие материалы на основе гипса, используемые в стоматологии; составы и заряды для огнетушителей; готовые питательные среды для выращивания микроорганизмов; сложные диагностические или лабораторные реагенты, не включенные в другие группировки. Пояснение по требуемой продукции: пластилин для детского творчества","20.59.52.110-001",778,"Упаковка","**"]
[null,null,null,"20.59.52.110-002",778,"Упаковка","**"]
[null,null,null,"20.59.52.110-003",778,"Упаковка","**"]
[null,null,null,"20.59.52.110-005",778,"Упаковка","**"]
[null,null,null,"20.59.52.110-009",778,"Упаковка","**"]
[null,null,null,"20.59.52.110-010",778,"Упаковка","**"]
[354,"20.59.52","Пасты для лепки; зуботехнический воск и прочие материалы на основе гипса, используемые в стоматологии; составы и заряды для огнетушителей; готовые питательные среды для выращивания микроорганизмов; сложные диагностические или лабораторные реагенты, не включенные в другие группировки. Пояснение по требуемой продукции: пластилин для опечатывания","20.59.52.110-004",778,"Упаковка","**"]
[355,"20.59.59","Продукты разные химические, не включенные в другие группировки. Пояснение по требуемой продукции: разбавитель средства корректирующего канцелярского","20.59.59.900-091",796,"Штука","**"]
[356,"20.59.59","Продукты разные химические, не включенные в другие группировки. Пояснение по требуемой продукции: средство корректирующее канцелярское (жидкость)","20.59.59.900-094",796,"Штука","**"]
[357,"20.59.59","Продукты разные химические, не включенные в другие группировки. Пояснение по требуемой продукции: средство корректирующее канцелярское (карандаш/ручка)","20.59.59.900-093",796,"Штука","**"]
[null,null,null,"20.59.59.900-016",796,"Штука","**"]
[358,"20.59.59","Продукты разные химические, не включенные в другие группировки. Пояснение по требуемой продукции: средство корректирующее канцелярское (лента)","20.59.59.900-092",796,"Штука","**"]
[null,null,null,"20.59.59.900-015",796,"Штука","**"]
[359,"20.60.12","Нити полиамидные и полиэфирные высокопрочные. Пояснение по требуемой продукции: нить прошивная","20.60.12.120-001",616,"Бобина","**"]
[360,"22.19.60","Предметы одежды и ее аксессуары из вулканизированной резины, кроме твердой резины (эбонита). Пояснение по требуемой продукции: напальчник для бумаги","22.19.60.190-001",796,"Штука","**"]
[null,null,null,"22.19.60.190-002",796,"Штука","**"]
[361,"22.19.73","Изделия из вулканизированной резины прочие, не включенные в другие группировки; твердая резина во всех формах и изделия из нее; напольные покрытия и коврики из вулканизированной пористой резины. Пояснение по требуемой продукции: банковская резинка","22.19.73.120-007",166,"Килограмм","**"]
[null,null,null,"22.19.73.120-008",166,"Килограмм","**"]
[362,"22.19.73","Изделия из вулканизированной резины прочие, не включенные в другие группировки; твердая резина во всех формах и изделия из нее; напольные покрытия и коврики из вулканизированной пористой резины. Пояснение по требуемой продукции: клише печати","22.19.73.120-005",796,"Штука","**"]
[null,null,null,"22.19.73.120-006",796,"Штука","**"]
[null,null,null,"22.19.73.120-009",796,"Штука","**"]
[363,"22.19.73","Изделия из вулканизированной резины прочие, не включенные в другие группировки; твердая резина во всех формах и изделия из нее; напольные покрытия и коврики из вулканизированной пористой резины. Пояснение по требуемой продукции: стирательная резинка","22.19.73.120-001",796,"Штука","**"]
[null,null,null,"22.19.73.120-002",796,"Штука","**"]
[null,null,null,"22.19.73.120-003",796,"Штука","**"]
[null,null,null,"22.19.73.120-004",796,"Штука","**"]
[364,"22.21.30","Плиты, листы, пленка и полосы (ленты) полимерные, неармированные или не комбинированные с другими материалами. Пояснение по требуемой продукции: лента упаковочная","22.21.30.130-002",616,"Бобина","**"]
[365,"22.21.42","Плиты, листы, пленка и полосы (ленты) прочие пластмассовые непористые. Пояснение по требуемой продукции: лента сигнальная","22.21.42.130-001",736,"Рулон","**"]
[null,null,null,"22.21.42.130-002",736,"Рулон","**"]
[366,"22.21.42","Плиты, листы, пленка и полосы (ленты) прочие пластмассовые непористые. Пояснение по требуемой продукции: пленка для ламинирования","22.21.42.129-003",778,"Упаковка","**"]
[null,null,null,"22.21.42.129-004",778,"Упаковка","**"]
[null,null,null,"22.21.42.129-006",778,"Упаковка","**"]
[null,null,null,"22.21.42.129-007",778,"Упаковка","**"]
[null,null,null,"22.21.42.129-008",778,"Упаковка","**"]
[null,null,null,"22.21.42.129-010",778,"Упаковка","**"]
[null,null,null,"22.21.42.129-011",778,"Упаковка","**"]
[367,"22.22.19","Изделия упаковочные пластмассовые прочие. Пояснение по требуемой продукции: пакет почтовый пластиковый","22.22.19.190-002",796,"Штука","**"]
[null,null,null,"22.22.19.190-003",796,"Штука","**"]
[368,"22.29.21","Плиты, листы, пленка, лента и прочие плоские полимерные самоклеящиеся формы, в рулонах шириной не более 20 см. Пояснение по требуемой продукции: клейкая лента","22.29.21.000-003",796,"Штука","**"]
[null,null,null,"22.29.21.000-005",796,"Штука","**"]
[null,null,null,"22.29.21.000-009",796,"Штука","**"]
[null,null,null,"22.29.21.000-013",796,"Штука","**"]
[null,null,null,"22.29.21.000-020",796,"Штука","**"]
[null,null,null,"22.29.21.000-002",796,"Штука","**"]
[null,null,null,"22.29.21.000-007",796,"Штука","**"]
[null,null,null,"22.29.21.000-017",796,"Штука","**"]
[369,"22.29.21","Плиты, листы, пленка, лента и прочие плоские полимерные самоклеящиеся формы, в рулонах шириной не более 20 см. Пояснение по требуемой продукции: лента техническая с липким слоем","22.29.21.000-001",736,"Рулон","**"]
[null,null,null,"22.29.21.000-004",736,"Рулон","**"]
[null,null,null,"22.29.21.000-008",736,"Рулон","**"]
[null,null,null,"22.29.21.000-015",736,"Рулон","**"]
[null,null,null,"22.29.21.000-018",736,"Рулон","**"]
[null,null,null,"22.29.21.000-019",736,"Рулон","**"]
[370,"22.29.21","Плиты, листы, пленка, лента и прочие плоские полимерные самоклеящиеся формы, в рулонах шириной не более 20 см. Пояснение по требуемой продукции: наклейки для опечатывания документов","22.29.21.000-014",736,"Рулон","**"]
[null,null,null,"22.29.21.000-022",778,"Упаковка","**"]
[null,null,null,"22.29.21.000-023",736,"Рулон","**"]
[371,"22.29.21","Плиты, листы, пленка, лента и прочие плоские полимерные самоклеящиеся формы, в рулонах шириной не более 20 см. Пояснение по требуемой продукции: наклейки пломбировочные","22.29.21.000-010",736,"Рулон","**"]
[372,"22.29.21","Плиты, листы, пленка, лента и прочие плоские полимерные самоклеящиеся формы, в рулонах шириной не более 20 см. Пояснение по требуемой продукции: подушечки клеевые","22.29.21.000-016",778,"Упаковка","**"]
[373,"22.29.22","Плиты, листы, пленка, лента и прочие плоские пластмассовые самоклеящиеся формы, прочие. Пояснение по требуемой продукции: карман самоклеящийся для папки","22.29.22.000-005",796,"Штука","**"]
[null,null,null,"22.29.22.000-006",796,"Штука","**"]
[null,null,null,"22.29.22.000-007",796,"Штука","**"]
[374,"22.29.22","Плиты, листы, пленка, лента и прочие плоские пластмассовые самоклеящиеся формы, прочие. Пояснение по требуемой продукции: наклейка","22.29.22.000-004",796,"Штука","**"]
[375,"22.29.25","Принадлежности канцелярские или школьные пластмассовые. Пояснение по требуемой продукции: визитница","22.29.25.000-153",796,"Штука","**"]
[376,"22.29.25","Принадлежности канцелярские или школьные пластмассовые. Пояснение по требуемой продукции: бейдж","22.29.25.000-065",796,"Штука","**"]
[null,null,null,"22.29.25.000-071",796,"Штука","**"]
[null,null,null,"22.29.25.000-090",796,"Штука","**"]
[377,"22.29.25","Принадлежности канцелярские или школьные пластмассовые. Пояснение по требуемой продукции:\nбирка-брелок для ключей","22.29.25.000-066",778,"Упаковка","**"]
[null,null,null,"22.29.25.000-163",778,"Упаковка","**"]
[378,"22.29.25","Принадлежности канцелярские или школьные пластмассовые. Пояснение по требуемой продукции: бокс для блок-кубика","22.29.25.000-040",796,"Штука","**"]
[379,"22.29.25","Принадлежности канцелярские или школьные пластмассовые. Пояснение по требуемой продукции: губка для маркерной доски","22.29.25.000-044",796,"Штука","**"]
[null,null,null,"22.29.25.000-045",796,"Штука","**"]
[380,"22.29.25","Принадлежности канцелярские или школьные пластмассовые. Пояснение по требуемой продукции: демосистема","22.29.25.000-072",796,"Штука","**"]
[null,null,null,"22.29.25.000-073",796,"Штука","**"]
[null,null,null,"22.29.25.000-074",796,"Штука","**"]
[381,"22.29.25","Принадлежности канцелярские или школьные пластмассовые. Пояснение по требуемой продукции: диспенсер для клейкой ленты","22.29.25.000-034",796,"Штука","**"]
[382,"22.29.25","Принадлежности канцелярские или школьные пластмассовые. Пояснение по требуемой продукции: доска для лепки","22.29.25.000-111",796,"Штука","**"]
[383,"22.29.25","Принадлежности канцелярские или школьные пластмассовые. Пояснение по требуемой продукции: клейкие закладки пластиковые","22.29.25.000-137",778,"Упаковка","**"]
[null,null,null,"22.29.25.000-138",778,"Упаковка","**"]
[null,null,null,"22.29.25.000-139",778,"Упаковка","**"]
[null,null,null,"22.29.25.000-140",778,"Упаковка","**"]
[null,null,null,"22.29.25.000-161",778,"Упаковка","**"]
[384,"22.29.25","Принадлежности канцелярские или школьные пластмассовые. Пояснение по требуемой продукции: коврик на стол","22.29.25.000-043",796,"Штука","**"]
[null,null,null,"22.29.25.000-099",796,"Штука","**"]
[385,"22.29.25","Принадлежности канцелярские или школьные пластмассовые. Пояснение по требуемой продукции: лоток для бумаги пластиковый (веерный)","22.29.25.000-145",796,"Штука","**"]
[386,"22.29.25","Принадлежности канцелярские или школьные пластмассовые. Пояснение по требуемой продукции: лоток для бумаги пластиковый (вертикальный)","22.29.25.000-016",796,"Штука","**"]
[null,null,null,"22.29.25.000-077",796,"Штука","**"]
[null,null,null,"22.29.25.000-102",796,"Штука","**"]
[null,null,null,"22.29.25.000-127",796,"Штука","**"]
[387,"22.29.25","Принадлежности канцелярские или школьные пластмассовые. Пояснение по требуемой продукции: лоток для бумаги пластиковый (горизонтальный)","22.29.25.000-019",796,"Штука","**"]
[null,null,null,"22.29.25.000-126",796,"Штука","**"]
[388,"22.29.25","Принадлежности канцелярские или школьные пластмассовые. Пояснение по требуемой продукции: лоток для рисования эбру","22.29.25.000-169",796,"Штука","**"]
[389,"22.29.25","Принадлежности канцелярские или школьные пластмассовые. Пояснение по требуемой продукции: подставка для визиток настольная пластмассовая","22.29.25.000-124",796,"Штука","**"]
[390,"22.29.25","Принадлежности канцелярские или школьные пластмассовые. Пояснение по требуемой продукции: подставка для подвесных папок","22.29.25.000-122",796,"Штука","**"]
[391,"22.29.25","Принадлежности канцелярские или школьные пластмассовые. Пояснение по требуемой продукции: разделитель для картотек","22.29.25.000-118",796,"Штука","**"]
[392,"22.29.25","Принадлежности канцелярские или школьные пластмассовые. Пояснение по требуемой продукции: стакан-непроливайка для рисования","22.29.25.000-120",796,"Штука","**"]
[null,null,null,"22.29.25.000-168",796,"Штука","**"]
[393,"22.29.25","Принадлежности канцелярские или школьные пластмассовые. Пояснение по требуемой продукции: бокс для бумаг","22.29.25.000-106",796,"Штука","**"]
[394,"22.29.25","Принадлежности канцелярские или школьные пластмассовые. Пояснение по требуемой продукции: индексное окно для картотек","22.29.25.000-119",796,"Штука","**"]
[395,"22.29.25","Принадлежности канцелярские или школьные пластмассовые. Пояснение по требуемой продукции: коврик для резки","22.29.25.000-098",796,"Штука","**"]
[396,"22.29.25","Принадлежности канцелярские или школьные пластмассовые. Пояснение по требуемой продукции: набор для сшивания документов","22.29.25.000-060",704,"Набор","**"]
[null,null,null,"22.29.25.000-149",704,"Набор","**"]
[397,"22.29.25","Принадлежности канцелярские или школьные пластмассовые. Пояснение по требуемой продукции: картотека","22.29.25.000-157",839,"Комплект","**"]
[398,"22.29.25","Принадлежности канцелярские или школьные пластмассовые. Пояснение по требуемой продукции: обложка для переплета пластиковая","22.29.25.000-003",778,"Упаковка","**"]
[null,null,null,"22.29.25.000-004",778,"Упаковка","**"]
[null,null,null,"22.29.25.000-129",778,"Упаковка","**"]
[399,"22.29.25","Принадлежности канцелярские или школьные пластмассовые. Пояснение по требуемой продукции: обложка для термопереплета","22.29.25.000-056",778,"Упаковка","**"]
[null,null,null,"22.29.25.000-133",778,"Упаковка","**"]
[null,null,null,"22.29.25.000-134",778,"Упаковка","**"]
[null,null,null,"22.29.25.000-135",778,"Упаковка","**"]
[null,null,null,"22.29.25.000-136",778,"Упаковка","**"]
[400,"22.29.25","Принадлежности канцелярские или школьные пластмассовые. Пояснение по требуемой продукции: обложка школьная","22.29.25.000-069",796,"Штука","**"]
[null,null,null,"22.29.25.000-091",796,"Штука","**"]
[null,null,null,"22.29.25.000-092",796,"Штука","**"]
[null,null,null,"22.29.25.000-152",796,"Штука","**"]
[401,"22.29.25","Принадлежности канцелярские или школьные пластмассовые. Пояснение по требуемой продукции: палитра","22.29.25.000-167",796,"Штука","**"]
[402,"22.29.25","Принадлежности канцелярские или школьные пластмассовые. Пояснение по требуемой продукции: папка пластиковая (папка архивная)","22.29.25.000-038",796,"Штука","**"]
[null,null,null,"22.29.25.000-130",796,"Штука","**"]
[null,null,null,"22.29.25.000-159",796,"Штука","**"]
[null,null,null,"22.29.25.000-154",796,"Штука","**"]
[403,"22.29.25","Принадлежности канцелярские или школьные пластмассовые. Пояснение по требуемой продукции: папка пластиковая (папка файловая)","22.29.25.000-068",796,"Штука","**"]
[null,null,null,"22.29.25.000-078",796,"Штука","**"]
[null,null,null,"22.29.25.000-079",796,"Штука","**"]
[null,null,null,"22.29.25.000-080",796,"Штука","**"]
[null,null,null,"22.29.25.000-081",796,"Штука","**"]
[404,"22.29.25","Принадлежности канцелярские или школьные пластмассовые. Пояснение по требуемой продукции: папка пластиковая (папка-конверт)","22.29.25.000-035",796,"Штука","**"]
[null,null,null,"22.29.25.000-036",796,"Штука","**"]
[null,null,null,"22.29.25.000-117",796,"Штука","**"]
[null,null,null,"22.29.25.000-089",796,"Штука","**"]
[null,null,null,"22.29.25.000-162",796,"Штука","**"]
[null,null,null,"22.29.25.000-165",796,"Штука","**"]
[405,"22.29.25","Принадлежности канцелярские или школьные пластмассовые. Пояснение по требуемой продукции: папка пластиковая (папка-портфель)","22.29.25.000-109",796,"Штука","**"]
[null,null,null,"22.29.25.000-110",796,"Штука","**"]
[null,null,null,"22.29.25.000-151",796,"Штука","**"]
[406,"22.29.25","Принадлежности канцелярские или школьные пластмассовые. Пояснение по требуемой продукции: папка пластиковая (папка-регистратор)","22.29.25.000-037",796,"Штука","**"]
[null,null,null,"22.29.25.000-086",796,"Штука","**"]
[null,null,null,"22.29.25.000-039",796,"Штука","**"]
[null,null,null,"22.29.25.000-097",796,"Штука","**"]
[407,"22.29.25","Принадлежности канцелярские или школьные пластмассовые. Пояснение по требуемой продукции: папка пластиковая (папка-скоросшиватель)","22.29.25.000-062",796,"Штука","**"]
[null,null,null,"22.29.25.000-063",796,"Штука","**"]
[null,null,null,"22.29.25.000-054",796,"Штука","**"]
[null,null,null,"22.29.25.000-055",796,"Штука","**"]
[null,null,null,"22.29.25.000-093",796,"Штука","**"]
[null,null,null,"22.29.25.000-096",796,"Штука","**"]
[408,"22.29.25","Принадлежности канцелярские или школьные пластмассовые. Пояснение по требуемой продукции: папка пластиковая (папка-уголок)","22.29.25.000-023",796,"Штука","**"]
[null,null,null,"22.29.25.000-067",796,"Штука","**"]
[null,null,null,"22.29.25.000-143",796,"Штука","**"]
[null,null,null,"22.29.25.000-131",796,"Штука","**"]
[null,null,null,"22.29.25.000-166",796,"Штука","**"]
[409,"22.29.25","Принадлежности канцелярские или школьные пластмассовые. Пояснение по требуемой продукции: подставка для канцелярских принадлежностей настольная (органайзер) пластиковая","22.29.25.000-046",796,"Штука","**"]
[null,null,null,"22.29.25.000-076",796,"Штука","**"]
[null,null,null,"22.29.25.000-160",796,"Штука","**"]
[410,"22.29.25","Принадлежности канцелярские или школьные пластмассовые. Пояснение по требуемой продукции: подставка для перекидного календаря","22.29.25.000-061",796,"Штука","**"]
[411,"22.29.25","Принадлежности канцелярские или школьные пластмассовые. Пояснение по требуемой продукции: подставка для презентаций","22.29.25.000-047",796,"Штука","**"]
[null,null,null,"22.29.25.000-123",796,"Штука","**"]
[412,"22.29.25","Принадлежности канцелярские или школьные пластмассовые. Пояснение по требуемой продукции: подставка для рекламных буклетов","22.29.25.000-115",796,"Штука","**"]
[null,null,null,"22.29.25.000-125",796,"Штука","**"]
[413,"22.29.25","Принадлежности канцелярские или школьные пластмассовые. Пояснение по требуемой продукции: подушка для смачивания пальцев","22.29.25.000-112",796,"Штука","**"]
[null,null,null,"22.29.25.000-147",796,"Штука","**"]
[414,"22.29.25","Принадлежности канцелярские или школьные пластмассовые. Пояснение по требуемой продукции: пружина для переплета пластмассовая","22.29.25.000-005",778,"Упаковка","**"]
[null,null,null,"22.29.25.000-006",778,"Упаковка","**"]
[null,null,null,"22.29.25.000-008",778,"Упаковка","**"]
[null,null,null,"22.29.25.000-009",778,"Упаковка","**"]
[null,null,null,"22.29.25.000-010",778,"Упаковка","**"]
[null,null,null,"22.29.25.000-012",778,"Упаковка","**"]
[null,null,null,"22.29.25.000-021",778,"Упаковка","**"]
[null,null,null,"22.29.25.000-025",778,"Упаковка","**"]
[null,null,null,"22.29.25.000-028",778,"Упаковка","**"]
[null,null,null,"22.29.25.000-029",778,"Упаковка","**"]
[null,null,null,"22.29.25.000-030",778,"Упаковка","**"]
[null,null,null,"22.29.25.000-031",778,"Упаковка","**"]
[null,null,null,"22.29.25.000-032",778,"Упаковка","**"]
[null,null,null,"22.29.25.000-033",778,"Упаковка","**"]
[415,"22.29.25","Принадлежности канцелярские или школьные пластмассовые. Пояснение по требуемой продукции: разделитель листов пластиковый","22.29.25.000-048",778,"Упаковка","**"]
[null,null,null,"22.29.25.000-049",778,"Упаковка","**"]
[416,"22.29.25","Принадлежности канцелярские или школьные пластмассовые. Пояснение по требуемой продукции: скрепочница","22.29.25.000-053",796,"Штука","**"]
[417,"22.29.25","Принадлежности канцелярские или школьные пластмассовые. Пояснение по требуемой продукции: трафарет","22.29.25.000-116",796,"Штука","**"]
[null,null,null,"22.29.25.000-148",796,"Штука","**"]
[418,"22.29.25","Принадлежности канцелярские или школьные пластмассовые. Пояснение по требуемой продукции: тубус","22.29.25.000-156",796,"Штука","**"]
[419,"22.29.25","Принадлежности канцелярские или школьные пластмассовые. Пояснение по требуемой продукции:\nфайл-вкладыш","22.29.25.000-022",778,"Упаковка","**"]
[null,null,null,"22.29.25.000-158",778,"Упаковка","**"]
[null,null,null,"22.29.25.000-058",778,"Упаковка","**"]
[null,null,null,"22.29.25.000-070",778,"Упаковка","**"]
[null,null,null,"22.29.25.000-082",778,"Упаковка","**"]
[null,null,null,"22.29.25.000-083",778,"Упаковка","**"]
[null,null,null,"22.29.25.000-084",778,"Упаковка","**"]
[null,null,null,"22.29.25.000-103",796,"Штука","**"]
[null,null,null,"22.29.25.000-155",778,"Упаковка","**"]
[420,"22.29.25","Принадлежности канцелярские или школьные пластмассовые. Пояснение по требуемой продукции:\nфайл-вкладыш (для визиток)","22.29.25.000-141",778,"Упаковка","**"]
[421,"22.29.25","Принадлежности канцелярские или школьные пластмассовые. Пояснение по требуемой продукции:\nфайл-вкладыш (для компакт-дисков)","22.29.25.000-142",796,"Штука","**"]
[422,"22.29.26","Фурнитура для мебели, транспортных средств и аналогичные пластмассовые изделия; статуэтки и прочие декоративные изделия пластмассовые. Пояснение по требуемой продукции: рамка для документов","22.29.26.190-001",796,"Штука","**"]
[null,null,null,"22.29.26.190-003",796,"Штука","**"]
[423,"22.29.29","Изделия пластмассовые прочие. Пояснение по требуемой продукции: карман информационный","22.29.29.190-010",796,"Штука","**"]
[null,null,null,"22.29.29.190-117",796,"Штука","**"]
[424,"22.29.29","Изделия пластмассовые прочие. Пояснение по требуемой продукции: пломба контрольная","22.29.29.190-008",796,"Штука","**"]
[425,"22.29.29","Изделия пластмассовые прочие. Пояснение по требуемой продукции: подставка для паспорта","22.29.29.190-009",796,"Штука","**"]
[426,"22.29.29","Изделия пластмассовые прочие. Пояснение по требуемой продукции: специализированные указатели направления движения для инвалидов и других маломобильных групп населения","22.29.29.190-108",796,"Штука","**"]
[null,null,null,"22.29.29.190-109",796,"Штука","**"]
[null,null,null,"22.29.29.190-110",796,"Штука","**"]
[null,null,null,"22.29.29.190-111",796,"Штука","**"]
[null,null,null,"22.29.29.190-112",796,"Штука","**"]
[null,null,null,"22.29.29.190-113",796,"Штука","**"]
[null,null,null,"22.29.29.190-114",796,"Штука","**"]
[427,"22.29.29","Изделия пластмассовые прочие. Пояснение по требуемой продукции: специализированный знак для инвалидов","22.29.29.190-105",796,"Штука","**"]
[null,null,null,"22.29.29.190-106",796,"Штука","**"]
[null,null,null,"22.29.29.190-107",796,"Штука","**"]
[null,null,null,"22.29.29.190-012",796,"Штука","**"]
[null,null,null,"22.29.29.190-013",796,"Штука","**"]
[null,null,null,"22.29.29.190-014",796,"Штука","**"]
[428,"22.29.29","Изделия пластмассовые прочие. Пояснение по требуемой продукции: табличка информационная","22.29.29.190-011",796,"Штука","**"]
[429,"25.71.11","Ножи (кроме ножей для машин) и ножницы; лезвия для них. Пояснение по требуемой продукции: лезвия для канцелярских ножей","25.71.11.130-001",778,"Упаковка","**"]
[430,"25.71.11","Ножи (кроме ножей для машин) и ножницы; лезвия для них. Пояснение по требуемой продукции: ножницы канцелярские","25.71.11.120-001",796,"Штука","**"]
[null,null,null,"25.71.11.120-003",796,"Штука","**"]
[null,null,null,"25.71.11.120-004",796,"Штука","**"]
[431,"25.71.13","Изделия ножевые прочие; наборы и инструменты маникюрные или педикюрные. Пояснение по требуемой продукции: нож канцелярский","25.71.13.110-005",796,"Штука","**"]
[null,null,null,"25.71.13.110-006",796,"Штука","**"]
[432,"25.71.13","Изделия ножевые прочие; наборы и инструменты маникюрные или педикюрные. Пояснение по требуемой продукции: точилка канцелярская для карандашей","25.71.13.110-001",796,"Штука","**"]
[null,null,null,"25.71.13.110-002",796,"Штука","**"]
[null,null,null,"25.71.13.110-003",796,"Штука","**"]
[null,null,null,"25.71.13.110-004",796,"Штука","**"]
[null,null,null,"25.71.13.110-105",796,"Штука","**"]
[433,"25.93.14","Гвозди, кнопки, кнопки чертежные, скобы и аналогичные изделия. Пояснение по требуемой продукции: кнопка канцелярская","25.93.14.130-001",778,"Упаковка","**"]
[null,null,null,"25.93.14.130-002",778,"Упаковка","**"]
[434,"25.93.18","Иглы швейные, вязальные спицы, штопальные иглы, вязальные крючки, иглы для вышивания и аналогичные изделия для ручной работы из черных металлов; английские булавки и прочие булавки из черных металлов, не включенные в другие группировки. Пояснение по требуемой продукции: игла для прошивки документов","25.93.18.120-001",796,"Штука","**"]
[435,"25.99.22","Лотки для бумаг, подставки для бумаг, лотки для ручек, подставки для печатей и аналогичное офисное или канцелярское оборудование из недрагоценных металлов, кроме офисной мебели. Пояснение по требуемой продукции: расшиватель для скоб","25.99.22.130-032",796,"Штука","**"]
[436,"25.99.22","Лотки для бумаг, подставки для бумаг, лотки для ручек, подставки для печатей и аналогичное офисное или канцелярское оборудование из недрагоценных металлов, кроме офисной мебели. Пояснение по требуемой продукции: дырокол","25.99.22.130-026",796,"Штука","**"]
[null,null,null,"25.99.22.130-027",796,"Штука","**"]
[null,null,null,"25.99.22.130-029",796,"Штука","**"]
[null,null,null,"25.99.22.130-028",796,"Штука","**"]
[null,null,null,"25.99.22.130-030",796,"Штука","**"]
[null,null,null,"25.99.22.130-031",796,"Штука","**"]
[null,null,null,"25.99.22.130-041",796,"Штука","**"]
[null,null,null,"25.99.22.130-042",796,"Штука","**"]
[437,"25.99.22","Лотки для бумаг, подставки для бумаг, лотки для ручек, подставки для печатей и аналогичное офисное или канцелярское оборудование из недрагоценных металлов, кроме офисной мебели. Пояснение по требуемой продукции: лоток для бумаги металлический (вертикальный)","25.99.22.110-001",796,"Штука","**"]
[null,null,null,"25.99.22.110-002",796,"Штука","**"]
[438,"25.99.22","Лотки для бумаг, подставки для бумаг, лотки для ручек, подставки для печатей и аналогичное офисное или канцелярское оборудование из недрагоценных металлов, кроме офисной мебели. Пояснение по требуемой продукции: лоток для бумаги металлический (горизонтальный)","25.99.22.110-003",796,"Штука","**"]
[439,"25.99.22","Лотки для бумаг, подставки для бумаг, лотки для ручек, подставки для печатей и аналогичное офисное или канцелярское оборудование из недрагоценных металлов, кроме офисной мебели. Пояснение по требуемой продукции: подставка для канцелярских принадлежностей настольная (органайзер) металлическая","25.99.22.130-001",796,"Штука","**"]
[null,null,null,"25.99.22.130-002",796,"Штука","**"]
[440,"25.99.22","Лотки для бумаг, подставки для бумаг, лотки для ручек, подставки для печатей и аналогичное офисное или канцелярское оборудование из недрагоценных металлов, кроме офисной мебели. Пояснение по требуемой продукции: подставка для книг","25.99.22.130-043",796,"Штука","**"]
[441,"25.99.22","Лотки для бумаг, подставки для бумаг, лотки для ручек, подставки для печатей и аналогичное офисное или канцелярское оборудование из недрагоценных металлов, кроме офисной мебели. Пояснение по требуемой продукции: степлер","25.99.22.130-034",796,"Штука","**"]
[null,null,null,"25.99.22.130-035",796,"Штука","**"]
[null,null,null,"25.99.22.130-036",796,"Штука","**"]
[null,null,null,"25.99.22.130-037",796,"Штука","**"]
[null,null,null,"25.99.22.130-038",796,"Штука","**"]
[null,null,null,"25.99.22.130-039",796,"Штука","**"]
[null,null,null,"25.99.22.130-040",796,"Штука","**"]
[442,"25.99.23","Детали для скоросшивателей или папок, канцелярские зажимы и аналогичные канцелярские изделия и скобы в виде полос из недрагоценных металлов. Пояснение по требуемой продукции: механизм для скоросшивателя","25.99.23.000-033",796,"Штука","**"]
[null,null,null,"25.99.23.000-034",796,"Штука","**"]
[443,"25.99.23","Детали для скоросшивателей или папок, канцелярские зажимы и аналогичные канцелярские изделия и скобы в виде полос из недрагоценных металлов. Пояснение по требуемой продукции: пружина для переплета металлическая","25.99.23.000-026",778,"Упаковка","**"]
[null,null,null,"25.99.23.000-027",778,"Упаковка","**"]
[null,null,null,"25.99.23.000-028",778,"Упаковка","**"]
[null,null,null,"25.99.23.000-029",778,"Упаковка","**"]
[null,null,null,"25.99.23.000-039",778,"Упаковка","**"]
[null,null,null,"25.99.23.000-040",778,"Упаковка","**"]
[444,"25.99.23","Детали для скоросшивателей или папок, канцелярские зажимы и аналогичные канцелярские изделия и скобы в виде полос из недрагоценных металлов. Пояснение по требуемой продукции: зажим для бумаг","25.99.23.000-005",778,"Упаковка","**"]
[null,null,null,"25.99.23.000-006",778,"Упаковка","**"]
[null,null,null,"25.99.23.000-016",778,"Упаковка","**"]
[null,null,null,"25.99.23.000-017",778,"Упаковка","**"]
[null,null,null,"25.99.23.000-018",778,"Упаковка","**"]
[null,null,null,"25.99.23.000-019",778,"Упаковка","**"]
[445,"25.99.23","Детали для скоросшивателей или папок, канцелярские зажимы и аналогичные канцелярские изделия и скобы в виде полос из недрагоценных металлов. Пояснение по требуемой продукции: люверсы канцелярские","25.99.23.000-022",778,"Упаковка","**"]
[446,"25.99.23","Детали для скоросшивателей или папок, канцелярские зажимы и аналогичные канцелярские изделия и скобы в виде полос из недрагоценных металлов. Пояснение по требуемой продукции: скобы для степлера","25.99.23.000-042",778,"Упаковка","**"]
[null,null,null,"25.99.23.000-043",778,"Упаковка","**"]
[null,null,null,"25.99.23.000-044",778,"Упаковка","**"]
[null,null,null,"25.99.23.000-045",778,"Упаковка","**"]
[null,null,null,"25.99.23.000-046",778,"Упаковка","**"]
[null,null,null,"25.99.23.000-047",778,"Упаковка","**"]
[null,null,null,"25.99.23.000-048",778,"Упаковка","**"]
[null,null,null,"25.99.23.000-049",778,"Упаковка","**"]
[null,null,null,"25.99.23.000-050",778,"Упаковка","**"]
[null,null,null,"25.99.23.000-053",778,"Упаковка","**"]
[null,null,null,"25.99.23.000-054",778,"Упаковка","**"]
[null,null,null,"25.99.23.000-056",778,"Упаковка","**"]
[447,"25.99.23","Детали для скоросшивателей или папок, канцелярские зажимы и аналогичные канцелярские изделия и скобы в виде полос из недрагоценных металлов. Пояснение по требуемой продукции: скрепки металлические","25.99.23.000-051",778,"Упаковка","**"]
[null,null,null,"25.99.23.000-052",778,"Упаковка","**"]
[448,"25.99.23","Детали для скоросшивателей или папок, канцелярские зажимы и аналогичные канцелярские изделия и скобы в виде полос из недрагоценных металлов. Пояснение по требуемой продукции: шило канцелярское","25.99.23.000-021",796,"Штука","**"]
[null,null,null,"25.99.23.000-055",796,"Штука","**"]
[449,"25.99.29","Изделия из недрагоценных металлов прочие, не включенные в другие группировки. Пояснение по требуемой продукции: магниты для досок","25.99.29.110-001",778,"Упаковка","**"]
[450,"26.51.33","Приборы для измерения линейных размеров ручные (включая микрометры и штангенциркули), не включенные в другие группировки. Пояснение по требуемой продукции: линейка","26.51.33.141-006",796,"Штука","**"]
[null,null,null,"26.51.33.141-007",796,"Штука","**"]
[null,null,null,"26.51.33.141-002",796,"Штука","**"]
[null,null,null,"26.51.33.141-001",796,"Штука","**"]
[null,null,null,"26.51.33.141-008",796,"Штука","**"]
[null,null,null,"26.51.33.141-003",796,"Штука","**"]
[null,null,null,"26.51.33.141-005",796,"Штука","**"]
[null,null,null,"26.51.33.141-010",796,"Штука","**"]
[null,null,null,"26.51.33.141-012",796,"Штука","**"]
[null,null,null,"26.51.33.141-013",796,"Штука","**"]
[451,"26.70.23","Устройства на жидких кристаллах; лазеры, кроме лазерных диодов; оптические приборы и инструменты прочие, не включенные в другие группировки. Пояснение по требуемой продукции: лупа ручная, опорная, лупа с подсветкой с увеличением до 10 крат","26.70.23.190-001",796,"Штука","**"]
[null,null,null,"26.70.23.190-009",796,"Штука","**"]
[452,"27.20.11","Элементы первичные и батареи первичных элементов. Пояснение по требуемой продукции: элемент первичный и батарея первичных элементов","27.20.11.000-001",796,"Штука","**"]
[null,null,null,"27.20.11.000-002",796,"Штука","**"]
[null,null,null,"27.20.11.000-003",796,"Штука","**"]
[null,null,null,"27.20.11.000-004",796,"Штука","**"]
[null,null,null,"27.20.11.000-005",796,"Штука","**"]
[null,null,null,"27.20.11.000-006",796,"Штука","**"]
[null,null,null,"27.20.11.000-007",796,"Штука","**"]
[null,null,null,"27.20.11.000-008",796,"Штука","**"]
[453,"27.20.11","Элементы первичные и батареи первичных элементов. Пояснение по требуемой продукции: элемент первичный и батарея первичных элементов (миниатюрные)","27.20.11.000-009",796,"Штука","**"]
[null,null,null,"27.20.11.000-011",796,"Штука","**"]
[null,null,null,"27.20.11.000-013",796,"Штука","**"]
[null,null,null,"27.20.11.000-014",796,"Штука","**"]
[null,null,null,"27.20.11.000-017",796,"Штука","**"]
[null,null,null,"27.20.11.000-018",796,"Штука","**"]
[null,null,null,"27.20.11.000-019",796,"Штука","**"]
[null,null,null,"27.20.11.000-020",796,"Штука","**"]
[null,null,null,"27.20.11.000-021",796,"Штука","**"]
[null,null,null,"27.20.11.000-022",796,"Штука","**"]
[null,null,null,"27.20.11.000-023",796,"Штука","**"]
[null,null,null,"27.20.11.000-024",796,"Штука","**"]
[454,"27.20.23","Батареи аккумуляторные никель-кадмиевые, никель- металл-гидридные, литий- ионные, литий-полимерные, никель-железные и прочие. Пояснение по требуемой продукции: батарея аккумуляторная","27.20.23.120-001",796,"Штука","**"]
[null,null,null,"27.20.23.120-002",796,"Штука","**"]
[455,"28.23.12","Калькуляторы электронные и устройства записи, копирования и вывода данных с функциями счетных устройств карманные. Пояснение по требуемой продукции: калькулятор электронный","28.23.12.110-001",796,"Штука","**"]
[null,null,null,"28.23.12.110-002",796,"Штука","**"]
[null,null,null,"28.23.12.110-003",796,"Штука","**"]
[456,"28.23.25","Части и принадлежности прочих офисных машин. Пояснение по требуемой продукции: картридж для\nэтикет-принтера","28.23.25.000-002",736,"Рулон","**"]
[null,null,null,"28.23.25.000-754",778,"Упаковка","**"]
[457,"28.23.25","Части и принадлежности прочих офисных машин. Пояснение по требуемой продукции: лента термотрансферная","28.23.25.000-001",736,"Рулон","**"]
[null,null,null,"28.23.25.000-413",736,"Рулон","**"]
[null,null,null,"28.23.25.000-896",736,"Рулон","**"]
[null,null,null,"28.23.25.000-897",736,"Рулон","**"]
[null,null,null,"28.23.25.000-898",736,"Рулон","**"]
[458,"28.24.11","Инструменты ручные электрические. Пояснение по требуемой продукции: пистолет клеевой электрический","28.24.11.000-041",796,"Штука","**"]
[459,"28.99.11","Оборудование переплетное, включая брошюровочные машины. Пояснение по требуемой продукции: брошюровщик (на пластиковую пружину)","28.99.11.190-002",796,"Штука","**"]
[460,"28.99.11","Оборудование переплетное, включая брошюровочные машины. Пояснение по требуемой продукции: брошюровщик (на металлическую пружину)","28.99.11.190-003",796,"Штука","**"]
[461,"28.99.11","Оборудование переплетное, включая брошюровочные машины. Пояснение по требуемой продукции: резак для бумаги","28.99.11.111-001",796,"Штука","**"]
[462,"28.99.11","Оборудование переплетное, включая брошюровочные машины. Пояснение по требуемой продукции: степлер брошюровочный","28.99.11.190-001",796,"Штука","**"]
[463,"32.13.10","Бижутерия и подобные изделия. Пояснение по требуемой продукции: медаль за особые успехи в учении","32.13.10.120-005",839,"Комплект","**"]
[464,"32.40.42","Изделия и принадлежности для бильярда, изделия для увеселительных, настольных или комнатных игр; прочие игры, действующие при опускании монет или жетонов. Пояснение по требуемой продукции: мольберт детский","32.40.42.199-025",796,"Штука","**"]
[465,"32.40.42","Изделия и принадлежности для бильярда, изделия для увеселительных, настольных или комнатных игр; прочие игры, действующие при опускании монет или жетонов. Пояснение по требуемой продукции: набор для детского творчества (для выжигания)","32.40.42.199-027",704,"Набор","**"]
[466,"32.91.12","Зубные щетки, щетки для волос и прочие туалетные щетки для ухода за внешностью; художественные кисти, кисточки для письма, косметические кисточки. Пояснение по требуемой продукции: кисть художественная","32.91.12.140-002",796,"Штука","**"]
[null,null,null,"32.91.12.140-003",796,"Штука","**"]
[null,null,null,"32.91.12.140-004",796,"Штука","**"]
[null,null,null,"32.91.12.140-005",796,"Штука","**"]
[null,null,null,"32.91.12.140-006",796,"Штука","**"]
[null,null,null,"32.91.12.140-009",796,"Штука","**"]
[null,null,null,"32.91.12.140-010",796,"Штука","**"]
[null,null,null,"32.91.12.140-011",796,"Штука","**"]
[null,null,null,"32.91.12.140-012",796,"Штука","**"]
[null,null,null,"32.91.12.140-013",796,"Штука","**"]
[null,null,null,"32.91.12.140-014",796,"Штука","**"]
[null,null,null,"32.91.12.140-015",796,"Штука","**"]
[null,null,null,"32.91.12.140-016",796,"Штука","**"]
[null,null,null,"32.91.12.140-017",796,"Штука","**"]
[null,null,null,"32.91.12.140-018",796,"Штука","**"]
[null,null,null,"32.91.12.140-019",796,"Штука","**"]
[null,null,null,"32.91.12.140-020",796,"Штука","**"]
[null,null,null,"32.91.12.140-021",796,"Штука","**"]
[null,null,null,"32.91.12.140-022",796,"Штука","**"]
[null,null,null,"32.91.12.140-023",796,"Штука","**"]
[null,null,null,"32.91.12.140-024",796,"Штука","**"]
[null,null,null,"32.91.12.140-028",796,"Штука","**"]
[null,null,null,"32.91.12.140-031",796,"Штука","**"]
[null,null,null,"32.91.12.140-032",796,"Штука","**"]
[null,null,null,"32.91.12.140-034",796,"Штука","**"]
[null,null,null,"32.91.12.140-035",796,"Штука","**"]
[null,null,null,"32.91.12.140-036",796,"Штука","**"]
[null,null,null,"32.91.12.140-037",796,"Штука","**"]
[null,null,null,"32.91.12.140-038",796,"Штука","**"]
[null,null,null,"32.91.12.140-040",796,"Штука","**"]
[null,null,null,"32.91.12.140-041",796,"Штука","**"]
[467,"32.99.12","Ручки шариковые; ручки и маркеры с наконечником из фетра и прочих пористых материалов; механические карандаши. Пояснение по требуемой продукции: карандаш механический","32.99.12.130-001",796,"Штука","**"]
[null,null,null,"32.99.12.130-003",796,"Штука","**"]
[null,null,null,"32.99.12.130-002",796,"Штука","**"]
[468,"32.99.12","Ручки шариковые; ручки и маркеры с наконечником из фетра и прочих пористых материалов; механические карандаши. Пояснение по требуемой продукции: маркер","32.99.12.120-010",796,"Штука","**"]
[null,null,null,"32.99.12.120-017",796,"Штука","**"]
[null,null,null,"32.99.12.120-014",796,"Штука","**"]
[null,null,null,"32.99.12.120-011",796,"Штука","**"]
[null,null,null,"32.99.12.120-012",796,"Штука","**"]
[null,null,null,"32.99.12.120-013",796,"Штука","**"]
[null,null,null,"32.99.12.120-015",796,"Штука","**"]
[null,null,null,"32.99.12.120-016",796,"Штука","**"]
[null,null,null,"32.99.12.120-020",796,"Штука","**"]
[null,null,null,"32.99.12.120-021",796,"Штука","**"]
[null,null,null,"32.99.12.120-022",796,"Штука","**"]
[469,"32.99.12","Ручки шариковые; ручки и маркеры с наконечником из фетра и прочих пористых материалов; механические карандаши. Пояснение по требуемой продукции: маркер (в наборе)","32.99.12.120-019",796,"Штука","**"]
[null,null,null,"32.99.12.120-018",796,"Штука","**"]
[470,"32.99.12","Ручки шариковые; ручки и маркеры с наконечником из фетра и прочих пористых материалов; механические карандаши. Пояснение по требуемой продукции: ручка канцелярская (в наборе)","32.99.12.110-011",796,"Штука","**"]
[null,null,null,"32.99.12.110-013",796,"Штука","**"]
[471,"32.99.12","Ручки шариковые; ручки и маркеры с наконечником из фетра и прочих пористых материалов; механические карандаши. Пояснение по требуемой продукции: ручка канцелярская (неавтоматическая)","32.99.12.110-009",796,"Штука","**"]
[null,null,null,"32.99.12.110-008",796,"Штука","**"]
[null,null,null,"32.99.12.110-010",796,"Штука","**"]
[null,null,null,"32.99.12.110-012",796,"Штука","**"]
[472,"32.99.12","Ручки шариковые; ручки и маркеры с наконечником из фетра и прочих пористых материалов; механические карандаши. Пояснение по требуемой продукции: ручка канцелярская (ручка неавтоматическая на подставке)","32.99.12.110-007",796,"Штука","**"]
[473,"32.99.13","Ручки чертежные для туши; авторучки, стилографы и прочие ручки. Пояснение по требуемой продукции: ручка канцелярская (автоматическая)","32.99.13.122-002",796,"Штука","**"]
[null,null,null,"32.99.13.122-001",796,"Штука","**"]
[474,"32.99.13","Ручки чертежные для туши; авторучки, стилографы и прочие ручки. Пояснение по требуемой продукции: фломастер","32.99.13.123-001",704,"Набор","**"]
[null,null,null,"32.99.13.123-002",704,"Набор","**"]
[null,null,null,"32.99.13.123-003",704,"Набор","**"]
[null,null,null,"32.99.13.123-005",704,"Набор","**"]
[null,null,null,"32.99.13.123-006",704,"Набор","**"]
[475,"32.99.14","Наборы пишущих принадлежностей, держатели для ручек и карандашей и аналогичные держатели; части пишущих принадлежностей. Пояснение по требуемой продукции: стержень для ручки канцелярской","32.99.14.130-001",796,"Штука","**"]
[null,null,null,"32.99.14.130-002",796,"Штука","**"]
[476,"32.99.15","Карандаши, цветные карандаши, грифели для карандашей, пастели, угольные карандаши для рисования, мелки для письма и рисования, мелки для портных. Пояснение по требуемой продукции: грифель для карандаша механического","32.99.15.120-001",778,"Упаковка","**"]
[null,null,null,"32.99.15.120-002",778,"Упаковка","**"]
[477,"32.99.15","Карандаши, цветные карандаши, грифели для карандашей, пастели, угольные карандаши для рисования, мелки для письма и рисования, мелки для портных. Пояснение по требуемой продукции: карандаш химический","32.99.15.110-006",796,"Штука","**"]
[478,"32.99.15","Карандаши, цветные карандаши, грифели для карандашей, пастели, угольные карандаши для рисования, мелки для письма и рисования, мелки для портных. Пояснение по требуемой продукции: карандаш цветной в твердой оболочке","32.99.15.110-002",796,"Штука","**"]
[null,null,null,"32.99.15.110-003",796,"Штука","**"]
[null,null,null,"32.99.15.110-004",796,"Штука","**"]
[null,null,null,"32.99.15.110-005",796,"Штука","**"]
[null,null,null,"32.99.15.110-007",796,"Штука","**"]
[null,null,null,"32.99.15.110-008",796,"Штука","**"]
[null,null,null,"32.99.15.110-009",796,"Штука","**"]
[null,null,null,"32.99.15.110-010",796,"Штука","**"]
[null,null,null,"32.99.15.110-011",796,"Штука","**"]
[479,"32.99.15","Карандаши, цветные карандаши, грифели для карандашей, пастели, угольные карандаши для рисования, мелки для письма и рисования, мелки для портных. Пояснение по требуемой продукции: карандаш чернографитный","32.99.15.110-001",796,"Штука","**"]
[480,"32.99.15","Карандаши, цветные карандаши, грифели для карандашей, пастели, угольные карандаши для рисования, мелки для письма и рисования, мелки для портных. Пояснение по требуемой продукции: мел канцелярский","32.99.15.140-002",778,"Упаковка","**"]
[null,null,null,"32.99.15.140-003",778,"Упаковка","**"]
[null,null,null,"32.99.15.140-004",778,"Упаковка","**"]
[null,null,null,"32.99.15.140-005",778,"Упаковка","**"]
[null,null,null,"32.99.15.140-006",778,"Упаковка","**"]
[481,"32.99.15","Карандаши, цветные карандаши, грифели для карандашей, пастели, угольные карандаши для рисования, мелки для письма и рисования, мелки для портных. Пояснение по требуемой продукции: набор карандашей цветных восковых (мелки)","32.99.15.140-001",796,"Штука","**"]
[null,null,null,"32.99.15.140-009",796,"Штука","**"]
[null,null,null,"32.99.15.140-008",796,"Штука","**"]
[null,null,null,"32.99.15.140-010",796,"Штука","**"]
[482,"32.99.16","Доски грифельные; штемпели для датирования, запечатывания или нумерации и аналогичные изделия; ленты для пишущих машинок или аналогичные ленты; штемпельные подушки. Пояснение по требуемой продукции: оснастка для печати","32.99.16.120-015",796,"Штука","**"]
[483,"32.99.16","Доски грифельные; штемпели для датирования, запечатывания или нумерации и аналогичные изделия; ленты для пишущих машинок или аналогичные ленты; штемпельные подушки. Пояснение по требуемой продукции: оснастка для штампа","32.99.16.120-016",796,"Штука","**"]
[484,"32.99.16","Доски грифельные; штемпели для датирования, запечатывания или нумерации и аналогичные изделия; ленты для пишущих машинок или аналогичные ленты; штемпельные подушки. Пояснение по требуемой продукции: подушка штемпельная (настольная)","32.99.16.140-002",796,"Штука","**"]
[null,null,null,"32.99.16.140-003",796,"Штука","**"]
[null,null,null,"32.99.16.140-011",796,"Штука","**"]
[485,"32.99.16","Доски грифельные; штемпели для датирования, запечатывания или нумерации и аналогичные изделия; ленты для пишущих машинок или аналогичные ленты; штемпельные подушки. Пояснение по требуемой продукции: подушка штемпельная (сменная)","32.99.16.140-005",796,"Штука","**"]
[null,null,null,"32.99.16.140-006",796,"Штука","**"]
[null,null,null,"32.99.16.140-007",796,"Штука","**"]
[null,null,null,"32.99.16.140-008",796,"Штука","**"]
[null,null,null,"32.99.16.140-009",796,"Штука","**"]
[null,null,null,"32.99.16.140-010",796,"Штука","**"]
[486,"32.99.16","Доски грифельные; штемпели для датирования, запечатывания или нумерации и аналогичные изделия; ленты для пишущих машинок или аналогичные ленты; штемпельные подушки. Пояснение по требуемой продукции: штемпель (датер автоматический)","32.99.16.120-007",796,"Штука","**"]
[null,null,null,"32.99.16.120-003",796,"Штука","**"]
[null,null,null,"32.99.16.120-010",796,"Штука","**"]
[487,"32.99.16","Доски грифельные; штемпели для датирования, запечатывания или нумерации и аналогичные изделия; ленты для пишущих машинок или аналогичные ленты; штемпельные подушки. Пояснение по требуемой продукции: штемпель (датер самонаборный)","32.99.16.120-002",796,"Штука","**"]
[null,null,null,"32.99.16.120-006",796,"Штука","**"]
[null,null,null,"32.99.16.120-008",796,"Штука","**"]
[null,null,null,"32.99.16.120-009",796,"Штука","**"]
[488,"32.99.16","Доски грифельные; штемпели для датирования, запечатывания или нумерации и аналогичные изделия; ленты для пишущих машинок или аналогичные ленты; штемпельные подушки. Пояснение по требуемой продукции: штемпель (нумератор автоматический)","32.99.16.120-004",796,"Штука","**"]
[489,"32.99.16","Доски грифельные; штемпели для датирования, запечатывания или нумерации и аналогичные изделия; ленты для пишущих машинок или аналогичные ленты; штемпельные подушки. Пояснение по требуемой продукции: штемпель (штамп самонаборный)","32.99.16.120-001",796,"Штука","**"]
[null,null,null,"32.99.16.120-005",796,"Штука","**"]
[null,null,null,"32.99.16.120-011",796,"Штука","**"]
[null,null,null,"32.99.16.120-012",796,"Штука","**"]
[null,null,null,"32.99.16.120-013",796,"Штука","**"]
[null,null,null,"32.99.16.120-014",796,"Штука","**"]
[490,"32.99.53","Приборы, аппаратура и модели, предназначенные для демонстрационных целей. Пояснение по требуемой продукции: доска магнитно-маркерная","32.99.53.139-017",796,"Штука","**"]
[null,null,null,"32.99.53.139-018",796,"Штука","**"]
[null,null,null,"32.99.53.139-019",796,"Штука","**"]
[null,null,null,"32.99.53.139-022",796,"Штука","**"]
[null,null,null,"32.99.53.139-030",796,"Штука","**"]
[null,null,null,"32.99.53.139-032",796,"Штука","**"]
[null,null,null,"32.99.53.139-035",796,"Штука","**"]
[491,"32.99.53","Приборы, аппаратура и модели, предназначенные для демонстрационных целей. Пояснение по требуемой продукции: доска магнитно-меловая","32.99.53.139-020",796,"Штука","**"]
[null,null,null,"32.99.53.139-021",796,"Штука","**"]
[null,null,null,"32.99.53.139-031",796,"Штука","**"]
[492,"32.99.53","Приборы, аппаратура и модели, предназначенные для демонстрационных целей. Пояснение по требуемой продукции: мольберт","32.99.53.139-027",796,"Штука","**"]
[null,null,null,"32.99.53.139-028",796,"Штука","**"]
[null,null,null,"32.99.53.139-033",796,"Штука","**"]
[null,null,null,"32.99.53.139-034",796,"Штука","**"]
[493,"32.99.53","Приборы, аппаратура и модели, предназначенные для демонстрационных целей. Пояснение по требуемой продукции: стенд для поделок","32.99.53.199-015",796,"Штука","**"]
[494,"32.99.53","Приборы, аппаратура и модели, предназначенные для демонстрационных целей. Пояснение по требуемой продукции: стенд информационный","32.99.53.199-010",796,"Штука","**"]
[null,null,null,"32.99.53.199-011",796,"Штука","**"]
[null,null,null,"32.99.53.199-014",796,"Штука","**"]
[null,null,null,"32.99.53.199-012",796,"Штука","**"]
[495,"58.11.13","Книги печатные для детей. Пояснение по требуемой продукции: раскраска","58.11.13.000-008",796,"Штука","**"]
[null,null,null,"58.11.13.000-005",796,"Штука","**"]
[null,null,null,"58.11.13.000-007",796,"Штука","**"]
[496,"58.19.11","Открытки почтовые печатные, открытки поздравительные и прочая издательская продукция печатная. Пояснение по требуемой продукции: благодарность","58.19.11.200-001",796,"Штука","**"]
[497,"58.19.11","Открытки почтовые печатные, открытки поздравительные и прочая издательская продукция печатная. Пояснение по требуемой продукции: благодарственное письмо","58.19.11.200-002",796,"Штука","**"]
[498,"58.19.11","Открытки почтовые печатные, открытки поздравительные и прочая издательская продукция печатная. Пояснение по требуемой продукции: грамота","58.19.11.200-003",796,"Штука","**"]
[499,"58.19.11","Открытки почтовые печатные, открытки поздравительные и прочая издательская продукция печатная. Пояснение по требуемой продукции: диплом наградной","58.19.11.200-004",796,"Штука","**"]
[500,"58.19.11","Открытки почтовые печатные, открытки поздравительные и прочая издательская продукция печатная. Пояснение по требуемой продукции: почетная грамота исполнительного органа государственной власти Санкт-Петербурга","58.19.11.200-008",839,"Комплект","**"]
[null,null,null,"58.19.11.200-009",839,"Комплект","**"]
[501,"58.19.11","Открытки почтовые печатные, открытки поздравительные и прочая издательская продукция печатная. Пояснение по требуемой продукции: открытка поздравительная","58.19.11.100-002",796,"Штука","**"]
[502,"58.19.13","Картинки переводные (декалькомания) и календари печатные. Пояснение по требуемой продукции: календарь (трехблочный)","58.19.13.120-001",796,"Штука","**"]
[503,"58.19.13","Картинки переводные (декалькомания) и календари печатные. Пояснение по требуемой продукции: календарь (настольный)","58.19.13.120-003",796,"Штука","**"]
[null,null,null,"58.19.13.120-005",796,"Штука","**"]
[504,"58.19.13","Картинки переводные (декалькомания) и календари печатные. Пояснение по требуемой продукции: календарь (календарь-табель)","58.19.13.120-002",796,"Штука","**"]
[505,"58.19.13","Картинки переводные (декалькомания) и календари печатные. Пояснение по требуемой продукции: календарь (перекидной)","58.19.13.120-004",796,"Штука","**"]
[506,"58.19.14","Марки почтовые негашеные, гербовые и аналогичные марки; бумага гербовая; книжки чековые, банкноты, акции и аналогичные виды ценных бумаг. Пояснение по требуемой продукции: марка почтовая","58.19.14.110-001",796,"Штука","**"]
[null,null,null,"58.19.14.110-002",796,"Штука","**"]
[null,null,null,"58.19.14.110-003",796,"Штука","**"]
[null,null,null,"58.19.14.110-004",796,"Штука","**"]
[null,null,null,"58.19.14.110-005",796,"Штука","**"]
[null,null,null,"58.19.14.110-006",796,"Штука","**"]
[null,null,null,"58.19.14.110-007",796,"Штука","**"]
[null,null,null,"58.19.14.110-008",796,"Штука","**"]
[null,null,null,"58.19.14.110-009",796,"Штука","**"]
[null,null,null,"58.19.14.110-010",796,"Штука","**"]
[null,null,null,"58.19.14.110-011",796,"Штука","**"]
["2.3. Перечень товарных позиций части \"Средства автотранспортные, прицепы и полуприцепы\""]
[null,null,null,"В соответствии с кодом конечного каталожного наименования (ККН)",null,null,"Предельная цена (руб. с НДС)"]
[507,"29.10.21","Средства транспортные с двигателем с искровым зажиганием, с рабочим объемом цилиндров не более 1500 см3, новые. Пояснение по требуемой продукции: автомобили легковые","29.10.21.000-001",796,"Штука","**",null,"**"]
[null,null,null,"29.10.21.000-002",796,"Штука","**",null,"**"]
[null,null,null,"29.10.21.000-004",796,"Штука","**",null,"**"]
[508,"29.10.22","Средства транспортные с двигателем с искровым зажиганием, с рабочим объемом цилиндров более 1500 см3, новые. Пояснение по требуемой продукции: автомобили легковые","29.10.22.000-002",796,"Штука","**",null,"**"]
[null,null,null,"29.10.22.000-003",796,"Штука","**",null,"**"]
[null,null,null,"29.10.22.000-006",796,"Штука","**",null,"**"]
[509,"29.10.23","Средства транспортные с поршневым двигателем внутреннего сгорания с воспламенением от сжатия (дизелем или полудизелем), новые. Пояснение по требуемой продукции: автомобили легковые","29.10.23.000-004",796,"Штука","**",null,"**"]
[510,"29.10.24","Средства автотранспортные для перевозки людей прочие. Пояснение по требуемой продукции: микроавтобусы","29.10.24.190-001",796,"Штука","**"]
[511,"29.10.24","Средства автотранспортные для перевозки людей прочие. Пояснение по требуемой продукции: автомобили легковые","29.10.24.110-001",796,"Штука","**"]
[null,null,null,"29.10.24.110-002",796,"Штука","**"]
[512,"29.10.30","Средства автотранспортные для перевозки 10 или более человек. Пояснение по требуемой продукции: микроавтобусы","29.10.30.190-001",796,"Штука","**"]
[null,null,null,"29.10.30.190-002",796,"Штука","**"]
[null,null,null,"29.10.30.190-003",796,"Штука","**"]
[null,null,null,"29.10.30.190-004",796,"Штука","**"]
[null,null,null,"29.10.30.190-005",796,"Штука","**"]
[513,"29.10.30","Средства автотранспортные для перевозки 10 или более человек. Пояснение по требуемой продукции: автобусы городские","29.10.30.111-001",796,"Штука","**"]
[null,null,null,"29.10.30.111-003",796,"Штука","**"]
[514,"29.10.30","Средства автотранспортные для перевозки 10 или более человек. Пояснение по требуемой продукции: автобусы для перевозки детей","29.10.30.111-004",796,"Штука","**"]
[515,"29.10.41","Средства автотранспортные грузовые с поршневым двигателем внутреннего сгорания с воспламенением от сжатия (дизелем или полудизелем), грузовые транспортные средства, приводимые в движение исключительно электрическим двигателем и заряжаемые с помощью внешнего источника электроэнергии, новые. Пояснение по требуемой продукции: автомобили грузовые с дизельным двигателем, имеющие технически допустимую максимальную массу не более 3,5 т","29.10.41.111-001",796,"Штука","**"]
[null,null,null,"29.10.41.111-002",796,"Штука","**"]
[516,"29.10.41","Средства автотранспортные грузовые с поршневым двигателем внутреннего сгорания с воспламенением от сжатия (дизелем или полудизелем), грузовые транспортные средства, приводимые в движение исключительно электрическим двигателем и заряжаемые с помощью внешнего источника электроэнергии, новые. Пояснение по требуемой продукции: автомобили грузовые с дизельным двигателем, имеющие технически допустимую максимальную массу свыше 3,5 т и не более 12 т","29.10.41.112-001",796,"Штука","**"]
[517,"29.10.41","Средства автотранспортные грузовые с поршневым двигателем внутреннего сгорания с воспламенением от сжатия (дизелем или полудизелем), грузовые транспортные средства, приводимые в движение исключительно электрическим двигателем и заряжаемые с помощью внешнего источника электроэнергии, новые. Пояснение по требуемой продукции: автомобили грузовые с дизельным двигателем, имеющие технически допустимую максимальную массу свыше 12 т","29.10.41.113-001",796,"Штука","**"]
[518,"29.10.42","Средства автотранспортные грузовые с поршневым двигателем внутреннего сгорания с искровым зажиганием; прочие грузовые транспортные средства, новые. Пояснение по требуемой продукции: автомобили грузовые с бензиновым двигателем, имеющие технически допустимую максимальную массу не более 3,5 т","29.10.42.111-001",796,"Штука","**"]
[null,null,null,"29.10.42.111-002",796,"Штука","**"]
[519,"29.10.43","Автомобили-тягачи седельные для полуприцепов. Пояснение по требуемой продукции: тягачи","29.10.43.000-001",796,"Штука","**"]
[520,"29.10.44","Шасси с установленными двигателями для автотранспортных средств. Пояснение по требуемой продукции: шасси","29.10.44.000-001",796,"Штука","**"]
["2.4. Перечень товарных позиций части «Оборудование компьютерное, электронное и оптическое»"]
[null,null,null,"В соответствии с кодом конечного каталожного наименования (ККН)",null,null,"Предельная цена (руб. с НДС)"]
[521,"26.20.11","Компьютеры портативные массой не более 10 кг, такие как ноутбуки, планшетные компьютеры, карманные компьютеры, в том числе совмещающие функции мобильного телефонного аппарата, электронные записные книжки и аналогичная компьютерная техника. Пояснение по требуемой продукции: ноутбук","26.20.11.110-001",796,"Штука","**",null,"**"]
[null,null,null,"26.20.11.110-002",796,"Штука","**",null,"**"]
[null,null,null,"26.20.11.110-005",796,"Штука","**",null,"**"]
[null,null,null,"26.20.11.110-008",796,"Штука","**",null,"**"]
[null,null,null,"26.20.11.110-009",796,"Штука","**",null,"**"]
[null,null,null,"26.20.11.110-010",796,"Штука","**",null,"**"]
[null,null,null,"26.20.11.110-011",796,"Штука","**",null,"**"]
[null,null,null,"26.20.11.110-101",796,"Штука","**",null,"**"]
[null,null,null,"26.20.11.110-102",796,"Штука","**",null,"**"]
[null,null,null,"26.20.11.110-105",796,"Штука","**",null,"**"]
[null,null,null,"26.20.11.110-108",796,"Штука","**",null,"**"]
[null,null,null,"26.20.11.110-109",796,"Штука","**",null,"**"]
[null,null,null,"26.20.11.110-110",796,"Штука","**",null,"**"]
[null,null,null,"26.20.11.110-111",796,"Штука","**",null,"**"]
[522,"26.20.11","Компьютеры портативные массой не более 10 кг, такие как ноутбуки, планшетные компьютеры, карманные компьютеры, в том числе совмещающие функции мобильного телефонного аппарата, электронные записные книжки и аналогичная компьютерная техника. Пояснение по требуемой продукции: планшетный компьютер","26.20.11.110-003",796,"Штука","**",null,"**"]
[null,null,null,"26.20.11.110-004",796,"Штука","**",null,"**"]
[null,null,null,"26.20.11.110-006",796,"Штука","**",null,"**"]
[null,null,null,"26.20.11.110-007",796,"Штука","**",null,"**"]
[null,null,null,"26.20.11.110-106",796,"Штука","**",null,"**"]
[null,null,null,"26.20.11.110-107",796,"Штука","**",null,"**"]
[523,"26.20.13","Машины вычислительные электронные цифровые, содержащие в одном корпусе центральный процессор и устройство ввода и вывода, объединенные или нет для автоматической обработки данных. Пояснение по требуемой продукции: интерактивный стол","26.20.13.000-001",796,"Штука","**"]
[null,null,null,"26.20.13.000-002",796,"Штука","**"]
[null,null,null,"26.20.13.000-101",796,"Штука","**"]
[null,null,null,"26.20.13.000-102",796,"Штука","**"]
[524,"26.20.13","Машины вычислительные электронные цифровые, содержащие в одном корпусе центральный процессор и устройство ввода и вывода, объединенные или нет для автоматической обработки данных. Пояснение по требуемой продукции: интерактивная панель","26.20.13.000-003",796,"Штука","**"]
[null,null,null,"26.20.13.000-004",796,"Штука","**"]
[null,null,null,"26.20.13.000-005",796,"Штука","**"]
[null,null,null,"26.20.13.000-007",796,"Штука","**"]
[null,null,null,"26.20.13.000-103",796,"Штука","**"]
[null,null,null,"26.20.13.000-104",796,"Штука","**"]
[null,null,null,"26.20.13.000-105",796,"Штука","**"]
[null,null,null,"26.20.13.000-107",796,"Штука","**"]
[525,"26.20.15","Машины вычислительные электронные цифровые прочие, содержащие или не содержащие в одном корпусе одно или два из следующих устройств для автоматической обработки данных: запоминающие устройства, устройства ввода, устройства вывода. Пояснение по требуемой продукции: компьютер персональный настольный (моноблок)","26.20.15.140-012",796,"Штука","**",null,"**"]
[null,null,null,"26.20.15.140-112",796,"Штука","**",null,"**"]
[null,null,null,"26.20.15.140-001",796,"Штука","**",null,"**"]
[null,null,null,"26.20.15.140-002",796,"Штука","**",null,"**"]
[null,null,null,"26.20.15.140-013",796,"Штука","**",null,"**"]
[null,null,null,"26.20.15.140-101",796,"Штука","**",null,"**"]
[null,null,null,"26.20.15.140-102",796,"Штука","**",null,"**"]
[null,null,null,"26.20.15.140-313",796,"Штука","**",null,"**"]
[526,"26.20.15","Машины вычислительные электронные цифровые прочие, содержащие или не содержащие в одном корпусе одно или два из следующих устройств для автоматической обработки данных: запоминающие устройства, устройства ввода, устройства вывода. Пояснение по требуемой продукции: рабочая станция","26.20.15.150-007",796,"Штука","**"]
[null,null,null,"26.20.15.150-008",796,"Штука","**"]
[null,null,null,"26.20.15.150-010",796,"Штука","**"]
[null,null,null,"26.20.15.150-011",796,"Штука","**"]
[null,null,null,"26.20.15.150-015",796,"Штука","**"]
[null,null,null,"26.20.15.150-016",796,"Штука","**"]
[null,null,null,"26.20.15.150-018",796,"Штука","**"]
[null,null,null,"26.20.15.150-107",796,"Штука","**"]
[null,null,null,"26.20.15.150-108",796,"Штука","**"]
[null,null,null,"26.20.15.150-110",796,"Штука","**"]
[null,null,null,"26.20.15.150-111",796,"Штука","**"]
[null,null,null,"26.20.15.150-115",796,"Штука","**"]
[null,null,null,"26.20.15.150-116",796,"Штука","**"]
[null,null,null,"26.20.15.150-118",796,"Штука","**"]
[527,"26.20.15","Машины вычислительные электронные цифровые прочие, содержащие или не содержащие в одном корпусе одно или два из следующих устройств для автоматической обработки данных: запоминающие устройства, устройства ввода, устройства вывода. Пояснение по требуемой продукции: системный блок","26.20.15.120-017",796,"Штука","**",null,"**"]
[null,null,null,"26.20.15.120-103",796,"Штука","**",null,"**"]
[null,null,null,"26.20.15.120-104",796,"Штука","**",null,"**"]
[null,null,null,"26.20.15.120-109",796,"Штука","**",null,"**"]
[null,null,null,"26.20.15.120-113",796,"Штука","**",null,"**"]
[null,null,null,"26.20.15.120-114",796,"Штука","**",null,"**"]
[null,null,null,"26.20.15.120-117",796,"Штука","**",null,"**"]
[null,null,null,"26.20.15.120-203",796,"Штука","**",null,"**"]
[null,null,null,"26.20.15.120-204",796,"Штука","**",null,"**"]
[null,null,null,"26.20.15.120-209",796,"Штука","**",null,"**"]
[null,null,null,"26.20.15.120-213",796,"Штука","**",null,"**"]
[null,null,null,"26.20.15.120-214",796,"Штука","**",null,"**"]
[528,"26.20.16","Устройства ввода или вывода, содержащие или не содержащие в одном корпусе запоминающие устройства. Пояснение по требуемой продукции: принтер термотрансферный","26.20.16.125-007",796,"Штука","**"]
[529,"26.20.16","Устройства ввода или вывода, содержащие или не содержащие в одном корпусе запоминающие устройства. Пояснение по требуемой продукции: принтер","26.20.16.123-001",796,"Штука","**"]
[null,null,null,"26.20.16.123-002",796,"Штука","**"]
[null,null,null,"26.20.16.122-003",796,"Штука","**"]
[null,null,null,"26.20.16.122-004",796,"Штука","**"]
[null,null,null,"26.20.16.122-005",796,"Штука","**"]
[null,null,null,"26.20.16.122-006",796,"Штука","**"]
[null,null,null,"26.20.16.122-010",796,"Штука","**"]
[530,"26.20.16","Устройства ввода или вывода, содержащие или не содержащие в одном корпусе запоминающие устройства. Пояснение по требуемой продукции: сканер","26.20.16.151-001",796,"Штука","**"]
[null,null,null,"26.20.16.151-002",796,"Штука","**"]
[null,null,null,"26.20.16.151-003",796,"Штука","**"]
[null,null,null,"26.20.16.151-004",796,"Штука","**"]
[531,"26.20.16","Устройства ввода или вывода, содержащие или не содержащие в одном корпусе запоминающие устройства. Пояснение по требуемой продукции: клавиатура","26.20.16.110-001",796,"Штука","**"]
[null,null,null,"26.20.16.110-101",796,"Штука","**"]
[null,null,null,"26.20.16.110-003",796,"Штука","**"]
[null,null,null,"26.20.16.110-002",796,"Штука","**"]
[532,"26.20.16","Устройства ввода или вывода, содержащие или не содержащие в одном корпусе запоминающие устройства. Пояснение по требуемой продукции: мышь компьютерная","26.20.16.170-002",796,"Штука","**"]
[null,null,null,"26.20.16.170-001",796,"Штука","**"]
[null,null,null,"26.20.16.170-101",796,"Штука","**"]
[null,null,null,"26.20.16.170-003",796,"Штука","**"]
[533,"26.20.16","Устройства ввода или вывода, содержащие или не содержащие в одном корпусе запоминающие устройства. Пояснение по требуемой продукции: сканер штрих-кодов","26.20.16.154-005",796,"Штука","**"]
[534,"26.20.16","Устройства ввода или вывода, содержащие или не содержащие в одном корпусе запоминающие устройства. Пояснение по требуемой продукции: интерактивная доска","26.20.16.161-001",796,"Штука","**"]
[535,"26.20.16","Устройства ввода или вывода, содержащие или не содержащие в одном корпусе запоминающие устройства. Пояснение по требуемой продукции: графический планшет","26.20.16.161-002",796,"Штука","**"]
[null,null,null,"26.20.16.161-003",796,"Штука","**"]
[null,null,null,"26.20.16.161-004",796,"Штука","**"]
[536,"26.20.17","Мониторы и проекторы, преимущественно используемые в системах автоматической обработки данных. Пояснение по требуемой продукции: монитор, подключаемый к компьютеру","26.20.17.110-101",796,"Штука","**",null,"**"]
[null,null,null,"26.20.17.110-102",796,"Штука","**",null,"**"]
[null,null,null,"26.20.17.110-103",796,"Штука","**",null,"**"]
[null,null,null,"26.20.17.110-104",796,"Штука","**",null,"**"]
[null,null,null,"26.20.17.110-202",796,"Штука","**",null,"**"]
[null,null,null,"26.20.17.110-105",796,"Штука","**",null,"**"]
[null,null,null,"26.20.17.110-106",796,"Штука","**",null,"**"]
[null,null,null,"26.20.17.110-107",796,"Штука","**",null,"**"]
[null,null,null,"26.20.17.110-205",796,"Штука","**",null,"**"]
[537,"26.20.17","Мониторы и проекторы, преимущественно используемые в системах автоматической обработки данных. Пояснение по требуемой продукции: проектор","26.20.17.120-001",796,"Штука","**"]
[null,null,null,"26.20.17.120-002",796,"Штука","**"]
[null,null,null,"26.20.17.120-003",796,"Штука","**"]
[538,"26.20.18","Устройства периферийные с двумя или более функциями: печать данных, копирование, сканирование, прием и передача факсимильных сообщений. Пояснение по требуемой продукции: многофункциональное устройство (МФУ) (лазерное)","26.20.18.120-003",796,"Штука","**"]
[null,null,null,"26.20.18.120-006",796,"Штука","**"]
[null,null,null,"26.20.18.120-007",796,"Штука","**"]
[null,null,null,"26.20.18.120-008",796,"Штука","**"]
[null,null,null,"26.20.18.120-009",796,"Штука","**"]
[539,"26.20.18","Устройства периферийные с двумя или более функциями: печать данных, копирование, сканирование, прием и передача факсимильных сообщений. Пояснение по требуемой продукции: многофункциональное устройство (МФУ) (струйное)","26.20.18.120-001",796,"Штука","**"]
[null,null,null,"26.20.18.120-002",796,"Штука","**"]
[540,"26.20.21","Устройства запоминающие. Пояснение по требуемой продукции: накопитель данных (внешний жесткий диск)","26.20.21.120-008",796,"Штука","**"]
[null,null,null,"26.20.21.120-006",796,"Штука","**"]
[null,null,null,"26.20.21.120-007",796,"Штука","**"]
[null,null,null,"26.20.21.120-009",796,"Штука","**"]
[null,null,null,"26.20.21.120-010",796,"Штука","**"]
[null,null,null,"26.20.21.120-011",796,"Штука","**"]
[null,null,null,"26.20.21.120-012",796,"Штука","**"]
[null,null,null,"26.20.21.120-013",796,"Штука","**"]
[null,null,null,"26.20.21.120-014",796,"Штука","**"]
[null,null,null,"26.20.21.120-015",796,"Штука","**"]
[null,null,null,"26.20.21.120-018",796,"Штука","**"]
[541,"26.20.22","Устройства запоминающие полупроводниковые, сохраняющие информацию при выключении питания. Пояснение по требуемой продукции: накопитель USB","26.20.22.190-002",796,"Штука","**"]
[null,null,null,"26.20.22.190-003",796,"Штука","**"]
[null,null,null,"26.20.22.190-004",796,"Штука","**"]
[null,null,null,"26.20.22.190-026",796,"Штука","**"]
[null,null,null,"26.20.22.190-028",796,"Штука","**"]
[null,null,null,"26.20.22.190-029",796,"Штука","**"]
[542,"26.20.22","Устройства запоминающие полупроводниковые, сохраняющие информацию при выключении питания. Пояснение по требуемой продукции: накопитель данных внешний твердотельный ","26.20.22.110-016",796,"Штука","**"]
[null,null,null,"26.20.22.110-017",796,"Штука","**"]
[null,null,null,"26.20.22.110-032",796,"Штука","**"]
[543,"26.20.40","Блоки, части и принадлежности вычислительных машин. Пояснение по требуемой продукции: источник бесперебойного питания (интерактивный)","26.20.40.111-014",796,"Штука","**"]
[null,null,null,"26.20.40.111-011",796,"Штука","**"]
[null,null,null,"26.20.40.111-013",796,"Штука","**"]
[null,null,null,"26.20.40.111-009",796,"Штука","**"]
[null,null,null,"26.20.40.111-010",796,"Штука","**"]
[544,"26.20.40","Блоки, части и принадлежности вычислительных машин. Пояснение по требуемой продукции: источник бесперебойного питания (резервный)","26.20.40.111-020",796,"Штука","**"]
[null,null,null,"26.20.40.111-021",796,"Штука","**"]
[545,"26.30.11","Аппаратура коммуникационная передающая с приемными устройствами. Пояснение по требуемой продукции: wi-fi роутер","26.30.11.111-006",796,"Штука","**"]
[null,null,null,"26.30.11.111-007",796,"Штука","**"]
[546,"26.30.11","Аппаратура коммуникационная передающая с приемными устройствами. Пояснение по требуемой продукции: IP-телефон","26.30.11.119-033",796,"Штука","**"]
[null,null,null,"26.30.11.119-034",796,"Штука","**"]
[null,null,null,"26.30.11.119-035",796,"Штука","**"]
[547,"26.30.13","Камеры телевизионные. Пояснение по требуемой продукции: документ-камера","26.30.13.000-002",796,"Штука","**"]
[548,"26.30.21","Аппараты телефонные проводные с беспроводной трубкой. Пояснение по требуемой продукции: радиотелефон","26.30.21.000-001",796,"Штука","**"]
[null,null,null,"26.30.21.000-003",796,"Штука","**"]
[null,null,null,"26.30.21.000-004",796,"Штука","**"]
[549,"26.30.22","Аппараты телефонные для сотовых сетей связи или для прочих беспроводных сетей. Пояснение по требуемой продукции: мобильный телефон (смартфон)","26.30.22.110-029",796,"Штука","**",null,"**"]
[null,null,null,"26.30.22.110-028",796,"Штука","**",null,"**"]
[null,null,null,"26.30.22.110-032",796,"Штука","**",null,"**"]
[550,"26.30.22","Аппараты телефонные для сотовых сетей связи или для прочих беспроводных сетей. Пояснение по требуемой продукции: телефон мобильный","26.30.22.110-030",796,"Штука","**",null,"**"]
[null,null,null,"26.30.22.110-031",796,"Штука","**",null,"**"]
[551,"26.30.23","Аппараты телефонные прочие, устройства и аппаратура для передачи и приема речи, изображений или других данных, включая оборудование коммуникационное для работы в проводных или беспроводных сетях связи (например, локальных и глобальных сетях). Пояснение по требуемой продукции: модуль wi-fi","26.30.23.113-035",796,"Штука","**"]
[null,null,null,"26.30.23.113-036",796,"Штука","**"]
[552,"26.30.23","Аппараты телефонные прочие, устройства и аппаратура для передачи и приема речи, изображений или других данных, включая оборудование коммуникационное для работы в проводных или беспроводных сетях связи (например, локальных и глобальных сетях). Пояснение по требуемой продукции: телефонный аппарат","26.30.23.170-001",796,"Штука","**"]
[null,null,null,"26.30.23.170-002",796,"Штука","**"]
[553,"26.40.31","Устройства электропроигрывающие, проигрыватели грампластинок, кассетные проигрыватели и прочая аппаратура для воспроизведения звука. Пояснение по требуемой продукции: колонки компьютерные","26.40.31.190-001",796,"Штука","**"]
[null,null,null,"26.40.31.190-003",796,"Штука","**"]
[null,null,null,"26.40.31.190-004",796,"Штука","**"]
[null,null,null,"26.40.31.190-005",796,"Штука","**"]
[null,null,null,"26.40.31.190-002",796,"Штука","**"]
[554,"26.40.33","Видеокамеры для записи и прочая аппаратура для записи или воспроизведения изображения. Пояснение по требуемой продукции: IP-видеорегистратор","26.40.33.114-001",796,"Штука","**"]
[null,null,null,"26.40.33.114-002",796,"Штука","**"]
[null,null,null,"26.40.33.114-003",796,"Штука","**"]
[null,null,null,"26.40.33.114-004",796,"Штука","**"]
[555,"26.40.42","Громкоговорители; головные телефоны, наушники и комбинированные устройства, состоящие из микрофона громкоговорителя. Пояснение по требуемой продукции: гарнитура","26.40.42.120-003",796,"Штука","**"]
[null,null,null,"26.40.42.120-004",796,"Штука","**"]
[556,"26.70.13","Видеокамеры цифровые. Пояснение по требуемой продукции: веб-камера","26.70.13.000-002",796,"Штука","**"]
[null,null,null,"26.70.13.000-010",796,"Штука","**"]
[null,null,null,"26.70.13.000-001",796,"Штука","**"]
[557,"26.70.13","Видеокамеры цифровые. Пояснение по требуемой продукции: камера видеонаблюдения","26.70.13.000-004",796,"Штука","**"]
[null,null,null,"26.70.13.000-005",796,"Штука","**"]
[null,null,null,"26.70.13.000-006",796,"Штука","**"]
[null,null,null,"26.70.13.000-007",796,"Штука","**"]
[null,null,null,"26.70.13.000-008",796,"Штука","**"]
[null,null,null,"26.70.13.000-009",796,"Штука","**"]
[null,null,null,"26.70.13.000-104",796,"Штука","**"]
[null,null,null,"26.70.13.000-106",796,"Штука","**"]
[558,"26.70.17","Фотовспышки; фотоувеличители; аппаратура для фотолабораторий; негатоскопы, проекционные экраны. Пояснение по требуемой продукции: экран для проектора","26.70.17.150-001",796,"Штука","**"]
[null,null,null,"26.70.17.150-007",796,"Штука","**"]
[null,null,null,"26.70.17.150-006",796,"Штука","**"]
[null,null,null,"26.70.17.150-004",796,"Штука","**"]
[null,null,null,"26.70.17.150-008",796,"Штука","**"]
[null,null,null,"26.70.17.150-009",796,"Штука","**"]
[null,null,null,"26.70.17.150-002",796,"Штука","**"]
[null,null,null,"26.70.17.150-005",796,"Штука","**"]
[null,null,null,"26.70.17.150-003",796,"Штука","**"]
[559,"26.80.12","Носители данных оптические без записи. Пояснение по требуемой продукции: диск оптический","26.80.12.000-003",796,"Штука","**"]
[null,null,null,"26.80.12.000-004",796,"Штука","**"]
[null,null,null,"26.80.12.000-001",796,"Штука","**"]
[560,"27.33.13","Разъемы, розетки и прочая аппаратура коммутации или защиты электрических цепей, не включенная в другие группировки. Пояснение по требуемой продукции: блок розеток","27.33.13.190-006",796,"Штука","**"]
[null,null,null,"27.33.13.190-007",796,"Штука","**"]
[null,null,null,"27.33.13.190-009",796,"Штука","**"]
[null,null,null,"27.33.13.190-008",796,"Штука","**"]
[null,null,null,"27.33.13.190-010",796,"Штука","**"]
[561,"28.23.23","Машины офисные прочие. Пояснение по требуемой продукции: ламинатор","28.23.23.000-001",796,"Штука","**"]
[null,null,null,"28.23.23.000-002",796,"Штука","**"]
[null,null,null,"28.23.23.000-003",796,"Штука","**"]
[null,null,null,"28.23.23.000-004",796,"Штука","**"]
[562,"28.99.14","Оборудование печатное прочее, кроме печатного оборудования офисного типа. Пояснение по требуемой продукции: ризограф","28.99.14.160-001",796,"Штука","**"]
[null,null,null,"28.99.14.160-002",796,"Штука","**"]
["2.5. Перечень товарных позиций части «Мебель»"]
[null,null,null,"В соответствии с кодом конечного каталожного наименования (ККН)",null,null,"Предельная цена (руб. с НДС)"]
[563,"25.99.21","Сейфы, контейнеры и двери упрочненные металлические бронированные или армированные, ящики, предназначенные для хранения денег и документов, и аналогичные изделия из недрагоценных металлов. Пояснение по требуемой продукции: шкаф бухгалтерский","25.99.21.119-001",796,"Штука","**"]
[null,null,null,"25.99.21.119-003",796,"Штука","**"]
[564,"31.01.11","Мебель металлическая для офисов. Пояснение по требуемой продукции: антресоль металлическая, архивная","31.01.11.122-005",796,"Штука","**"]
[null,null,null,"31.01.11.122-006",796,"Штука","**"]
[565,"31.01.11","Мебель металлическая для офисов. Пояснение по требуемой продукции: диван","31.01.11.150-048",796,"Штука","**"]
[null,null,null,"31.01.11.150-049",796,"Штука","**"]
[566,"31.01.11","Мебель металлическая для офисов. Пояснение по требуемой продукции: конференц-кресло","31.01.11.150-020",796,"Штука","**"]
[567,"31.01.11","Мебель металлическая для офисов. Пояснение по требуемой продукции: кресло офисное","31.01.11.150-021",796,"Штука","**",null,"**"]
[null,null,null,"31.01.11.150-022",796,"Штука","**",null,"**"]
[null,null,null,"31.01.11.150-023",796,"Штука","**",null,"**"]
[null,null,null,"31.01.11.150-024",796,"Штука","**",null,"**"]
[null,null,null,"31.01.11.150-054",796,"Штука","**",null,"**"]
[null,null,null,"31.01.11.150-089",796,"Штука","**",null,"**"]
[null,null,null,"31.01.11.150-086",796,"Штука","**",null,"**"]
[null,null,null,"31.01.11.150-087",796,"Штука","**",null,"**"]
[null,null,null,"31.01.11.150-088",796,"Штука","**",null,"**"]
[null,null,null,"31.01.11.150-094",796,"Штука","**",null,"**"]
[null,null,null,"31.01.11.150-095",796,"Штука","**",null,"**"]
[null,null,null,"31.01.11.150-098",796,"Штука","**",null,"**"]
[null,null,null,"31.01.11.150-102",796,"Штука","**",null,"**"]
[568,"31.01.11","Мебель металлическая для офисов. Пояснение по требуемой продукции: секция стульев многоместная","31.01.11.150-001",796,"Штука","**"]
[null,null,null,"31.01.11.150-002",796,"Штука","**"]
[null,null,null,"31.01.11.150-003",796,"Штука","**"]
[null,null,null,"31.01.11.150-004",796,"Штука","**"]
[null,null,null,"31.01.11.150-005",796,"Штука","**"]
[null,null,null,"31.01.11.150-006",796,"Штука","**"]
[null,null,null,"31.01.11.150-007",796,"Штука","**"]
[null,null,null,"31.01.11.150-008",796,"Штука","**"]
[null,null,null,"31.01.11.150-009",796,"Штука","**"]
[null,null,null,"31.01.11.150-010",796,"Штука","**"]
[null,null,null,"31.01.11.150-011",796,"Штука","**"]
[null,null,null,"31.01.11.150-012",796,"Штука","**"]
[null,null,null,"31.01.11.150-013",796,"Штука","**"]
[null,null,null,"31.01.11.150-055",796,"Штука","**"]
[null,null,null,"31.01.11.150-056",796,"Штука","**"]
[null,null,null,"31.01.11.150-057",796,"Штука","**"]
[null,null,null,"31.01.11.150-058",796,"Штука","**"]
[null,null,null,"31.01.11.150-097",796,"Штука","**"]
[569,"31.01.11","Мебель металлическая для офисов. Пояснение по требуемой продукции: скамья","31.01.11.150-062",796,"Штука","**"]
[null,null,null,"31.01.11.150-063",796,"Штука","**"]
[null,null,null,"31.01.11.150-066",796,"Штука","**"]
[null,null,null,"31.01.11.150-067",796,"Штука","**"]
[570,"31.01.11","Мебель металлическая для офисов. Пояснение по требуемой продукции: стеллаж офисный","31.01.11.130-001",796,"Штука","**"]
[null,null,null,"31.01.11.130-002",796,"Штука","**"]
[571,"31.01.11","Мебель металлическая для офисов. Пояснение по требуемой продукции: стол офисный","31.01.11.110-013",796,"Штука","**"]
[null,null,null,"31.01.11.110-011",796,"Штука","**"]
[null,null,null,"31.01.11.110-007",796,"Штука","**"]
[null,null,null,"31.01.11.110-006",796,"Штука","**"]
[null,null,null,"31.01.11.110-004",796,"Штука","**"]
[572,"31.01.11","Мебель металлическая для офисов. Пояснение по требуемой продукции: стол письменный на металлокаркасе","31.01.11.110-019",796,"Штука","**"]
[573,"31.01.11","Мебель металлическая для офисов. Пояснение по требуемой продукции: стол приставной","31.01.11.110-017",796,"Штука","**",null,"**"]
[null,null,null,"31.01.11.110-018",796,"Штука","**",null,"**"]
[null,null,null,"31.01.11.110-016",796,"Штука","**",null,"**"]
[574,"31.01.11","Мебель металлическая для офисов. Пояснение по требуемой продукции: стул на металлическом каркасе для офиса","31.01.11.150-014",796,"Штука","**"]
[null,null,null,"31.01.11.150-015",796,"Штука","**"]
[null,null,null,"31.01.11.150-016",796,"Штука","**"]
[null,null,null,"31.01.11.150-017",796,"Штука","**"]
[null,null,null,"31.01.11.150-018",796,"Штука","**"]
[null,null,null,"31.01.11.150-019",796,"Штука","**"]
[575,"31.01.11","Мебель металлическая для офисов. Пояснение по требуемой продукции: стул на металлическом каркасе для столовой","31.01.11.150-070",796,"Штука","**"]
[null,null,null,"31.01.11.150-071",796,"Штука","**"]
[null,null,null,"31.01.11.150-078",796,"Штука","**"]
[null,null,null,"31.01.11.150-079",796,"Штука","**"]
[null,null,null,"31.01.11.150-084",796,"Штука","**"]
[null,null,null,"31.01.11.150-085",796,"Штука","**"]
[null,null,null,"31.01.11.150-100",796,"Штука","**"]
[576,"31.01.11","Мебель металлическая для офисов. Пояснение по требуемой продукции: стул ученический","31.01.11.150-025",796,"Штука","**"]
[null,null,null,"31.01.11.150-026",796,"Штука","**"]
[null,null,null,"31.01.11.150-027",796,"Штука","**"]
[null,null,null,"31.01.11.150-028",796,"Штука","**"]
[null,null,null,"31.01.11.150-029",796,"Штука","**"]
[null,null,null,"31.01.11.150-030",796,"Штука","**"]
[null,null,null,"31.01.11.150-031",796,"Штука","**"]
[null,null,null,"31.01.11.150-032",796,"Штука","**"]
[null,null,null,"31.01.11.150-033",796,"Штука","**"]
[null,null,null,"31.01.11.150-034",796,"Штука","**"]
[null,null,null,"31.01.11.150-035",796,"Штука","**"]
[null,null,null,"31.01.11.150-036",796,"Штука","**"]
[null,null,null,"31.01.11.150-037",796,"Штука","**"]
[null,null,null,"31.01.11.150-038",796,"Штука","**"]
[null,null,null,"31.01.11.150-039",796,"Штука","**"]
[null,null,null,"31.01.11.150-040",796,"Штука","**"]
[null,null,null,"31.01.11.150-099",796,"Штука","**"]
[null,null,null,"31.01.11.150-101",796,"Штука","**"]
[577,"31.01.11","Мебель металлическая для офисов. Пояснение по требуемой продукции: табурет","31.01.11.150-050",796,"Штука","**"]
[null,null,null,"31.01.11.150-051",796,"Штука","**"]
[null,null,null,"31.01.11.150-052",796,"Штука","**"]
[null,null,null,"31.01.11.150-053",796,"Штука","**"]
[578,"31.01.11","Мебель металлическая для офисов. Пояснение по требуемой продукции: шкаф архивный металлический","31.01.11.122-001",796,"Штука","**"]
[null,null,null,"31.01.11.122-002",796,"Штука","**"]
[null,null,null,"31.01.11.122-003",796,"Штука","**"]
[null,null,null,"31.01.11.122-004",796,"Штука","**"]
[null,null,null,"31.01.11.122-007",796,"Штука","**"]
[null,null,null,"31.01.11.122-008",796,"Штука","**"]
[579,"31.01.11","Мебель металлическая для офисов. Пояснение по требуемой продукции: шкаф для одежды металлический","31.01.11.121-001",796,"Штука","**"]
[null,null,null,"31.01.11.121-002",796,"Штука","**"]
[null,null,null,"31.01.11.121-003",796,"Штука","**"]
[null,null,null,"31.01.11.121-004",796,"Штука","**"]
[null,null,null,"31.01.11.121-005",796,"Штука","**"]
[null,null,null,"31.01.11.121-006",796,"Штука","**"]
[null,null,null,"31.01.11.121-007",796,"Штука","**"]
[580,"31.01.11","Мебель металлическая для офисов. Пояснение по требуемой продукции: шкаф картотечный металлический","31.01.11.123-001",796,"Штука","**"]
[null,null,null,"31.01.11.123-002",796,"Штука","**"]
[null,null,null,"31.01.11.123-003",796,"Штука","**"]
[581,"31.01.11","Мебель металлическая для офисов. Пояснение по требуемой продукции: шкаф хозяйственный металлический","31.01.11.129-006",796,"Штука","**"]
[null,null,null,"31.01.11.129-007",796,"Штука","**"]
[582,"31.01.12","Мебель деревянная для офисов. Пояснение по требуемой продукции: диван на деревянном каркасе","31.01.12.160-026",796,"Штука","**"]
[null,null,null,"31.01.12.160-027",796,"Штука","**"]
[583,"31.01.12","Мебель деревянная для офисов. Пояснение по требуемой продукции: конференц-кресло","31.01.12.160-002",796,"Штука","**"]
[null,null,null,"31.01.12.160-003",796,"Штука","**"]
[584,"31.01.12","Мебель деревянная для офисов. Пояснение по требуемой продукции: полка для клавиатуры","31.01.12.190-002",796,"Штука","**"]
[585,"31.01.12","Мебель деревянная для офисов. Пояснение по требуемой продукции: приставка для письменного стола","31.01.12.190-001",796,"Штука","**"]
[586,"31.01.12","Мебель деревянная для офисов. Пояснение по требуемой продукции: скамья","31.01.12.160-006",796,"Штука","**"]
[587,"31.01.12","Мебель деревянная для офисов. Пояснение по требуемой продукции: стеллаж офисный деревянный, прямой","31.01.12.140-003",796,"Штука","**",null,"**"]
[null,null,null,"31.01.12.140-004",796,"Штука","**",null,"**"]
[null,null,null,"31.01.12.140-005",796,"Штука","**",null,"**"]
[588,"31.01.12","Мебель деревянная для офисов. Пояснение по требуемой продукции: стеллаж офисный деревянный, угловой","31.01.12.140-006",796,"Штука","**"]
[589,"31.01.12","Мебель деревянная для офисов. Пояснение по требуемой продукции: стол детский для дошкольных учреждений на деревянном каркасе","31.01.12.121-005",796,"Штука","**"]
[null,null,null,"31.01.12.121-010",796,"Штука","**"]
[590,"31.01.12","Мебель деревянная для офисов. Пояснение по требуемой продукции: стол детский для дошкольных учреждений на металлическом каркасе","31.01.12.121-002",796,"Штука","**"]
[null,null,null,"31.01.12.121-004",796,"Штука","**"]
[null,null,null,"31.01.12.121-006",796,"Штука","**"]
[null,null,null,"31.01.12.121-007",796,"Штука","**"]
[null,null,null,"31.01.12.121-011",796,"Штука","**"]
[591,"31.01.12","Мебель деревянная для офисов. Пояснение по требуемой продукции: стол для переговоров","31.01.12.110-006",796,"Штука","**"]
[null,null,null,"31.01.12.110-029",796,"Штука","**"]
[592,"31.01.12","Мебель деревянная для офисов. Пояснение по требуемой продукции: стол игровой для дошкольных учреждений","31.01.12.121-009",796,"Штука","**"]
[593,"31.01.12","Мебель деревянная для офисов. Пояснение по требуемой продукции: стол логопедический для дошкольных учреждений","31.01.12.121-008",796,"Штука","**"]
[594,"31.01.12","Мебель деревянная для офисов. Пояснение по требуемой продукции: стол письменный","31.01.12.110-001",796,"Штука","**",null,"**"]
[null,null,null,"31.01.12.110-002",796,"Штука","**",null,"**"]
[null,null,null,"31.01.12.110-003",796,"Штука","**",null,"**"]
[null,null,null,"31.01.12.110-004",796,"Штука","**",null,"**"]
[null,null,null,"31.01.12.110-005",796,"Штука","**",null,"**"]
[null,null,null,"31.01.12.110-020",796,"Штука","**",null,"**"]
[null,null,null,"31.01.12.110-021",796,"Штука","**",null,"**"]
[null,null,null,"31.01.12.110-022",796,"Штука","**",null,"**"]
[null,null,null,"31.01.12.110-024",796,"Штука","**",null,"**"]
[null,null,null,"31.01.12.110-007",796,"Штука","**",null,"**"]
[null,null,null,"31.01.12.110-011",796,"Штука","**",null,"**"]
[null,null,null,"31.01.12.110-014",796,"Штука","**",null,"**"]
[null,null,null,"31.01.12.110-026",796,"Штука","**",null,"**"]
[null,null,null,"31.01.12.110-027",796,"Штука","**",null,"**"]
[null,null,null,"31.01.12.110-030",796,"Штука","**",null,"**"]
[595,"31.01.12","Мебель деревянная для офисов. Пояснение по требуемой продукции: стол приставной деревянный","31.01.12.110-028",796,"Штука","**",null,"**"]
[596,"31.01.12","Мебель деревянная для офисов. Пояснение по требуемой продукции: стол ученический","31.01.12.122-011",796,"Штука","**"]
[null,null,null,"31.01.12.122-012",796,"Штука","**"]
[null,null,null,"31.01.12.122-013",796,"Штука","**"]
[null,null,null,"31.01.12.122-014",796,"Штука","**"]
[null,null,null,"31.01.12.122-015",796,"Штука","**"]
[null,null,null,"31.01.12.122-016",796,"Штука","**"]
[null,null,null,"31.01.12.122-017",796,"Штука","**"]
[null,null,null,"31.01.12.122-018",796,"Штука","**"]
[null,null,null,"31.01.12.122-019",796,"Штука","**"]
[null,null,null,"31.01.12.122-020",796,"Штука","**"]
[null,null,null,"31.01.12.122-021",796,"Штука","**"]
[null,null,null,"31.01.12.122-022",796,"Штука","**"]
[null,null,null,"31.01.12.122-023",796,"Штука","**"]
[null,null,null,"31.01.12.122-024",796,"Штука","**"]
[null,null,null,"31.01.12.122-025",796,"Штука","**"]
[null,null,null,"31.01.12.122-027",796,"Штука","**"]
[null,null,null,"31.01.12.122-029",796,"Штука","**"]
[null,null,null,"31.01.12.122-030",796,"Штука","**"]
[null,null,null,"31.01.12.122-031",796,"Штука","**"]
[null,null,null,"31.01.12.122-032",796,"Штука","**"]
[null,null,null,"31.01.12.122-033",796,"Штука","**"]
[null,null,null,"31.01.12.122-036",796,"Штука","**"]
[null,null,null,"31.01.12.122-037",796,"Штука","**"]
[null,null,null,"31.01.12.122-038",796,"Штука","**"]
[null,null,null,"31.01.12.122-039",796,"Штука","**"]
[null,null,null,"31.01.12.122-040",796,"Штука","**"]
[null,null,null,"31.01.12.122-042",796,"Штука","**"]
[null,null,null,"31.01.12.122-043",796,"Штука","**"]
[null,null,null,"31.01.12.122-045",796,"Штука","**"]
[null,null,null,"31.01.12.122-049",796,"Штука","**"]
[null,null,null,"31.01.12.122-051",796,"Штука","**"]
[null,null,null,"31.01.12.122-052",796,"Штука","**"]
[null,null,null,"31.01.12.122-053",796,"Штука","**"]
[null,null,null,"31.01.12.122-054",796,"Штука","**"]
[null,null,null,"31.01.12.122-055",796,"Штука","**"]
[null,null,null,"31.01.12.122-063",796,"Штука","**"]
[null,null,null,"31.01.12.122-064",796,"Штука","**"]
[597,"31.01.12","Мебель деревянная для офисов. Пояснение по требуемой продукции: стул на деревянном каркасе","31.01.12.160-004",796,"Штука","**",null,"**"]
[null,null,null,"31.01.12.160-025",796,"Штука","**",null,"**"]
[598,"31.01.12","Мебель деревянная для офисов. Пояснение по требуемой продукции: табурет","31.01.12.160-001",796,"Штука","**"]
[599,"31.01.12","Мебель деревянная для офисов. Пояснение по требуемой продукции: тумба офисная деревянная","31.01.12.150-001",796,"Штука","**",null,"**"]
[null,null,null,"31.01.12.150-002",796,"Штука","**",null,"**"]
[null,null,null,"31.01.12.150-003",796,"Штука","**",null,"**"]
[null,null,null,"31.01.12.150-004",796,"Штука","**",null,"**"]
[null,null,null,"31.01.12.150-005",796,"Штука","**",null,"**"]
[null,null,null,"31.01.12.150-006",796,"Штука","**",null,"**"]
[null,null,null,"31.01.12.150-009",796,"Штука","**",null,"**"]
[null,null,null,"31.01.12.150-010",796,"Штука","**",null,"**"]
[null,null,null,"31.01.12.150-011",796,"Штука","**",null,"**"]
[600,"31.01.12","Мебель деревянная для офисов. Пояснение по требуемой продукции: шкаф деревянный для документов, закрытый","31.01.12.139-001",796,"Штука","**"]
[null,null,null,"31.01.12.139-015",796,"Штука","**"]
[601,"31.01.12","Мебель деревянная для офисов. Пояснение по требуемой продукции: шкаф деревянный для документов, комбинированный","31.01.12.139-002",796,"Штука","**"]
[null,null,null,"31.01.12.139-016",796,"Штука","**"]
[602,"31.01.12","Мебель деревянная для офисов. Пояснение по требуемой продукции: шкаф деревянный для документов, низкий, закрытый","31.01.12.139-009",796,"Штука","**"]
[null,null,null,"31.01.12.139-019",796,"Штука","**"]
[603,"31.01.12","Мебель деревянная для офисов. Пояснение по требуемой продукции: шкаф деревянный для документов, низкий, открытый","31.01.12.139-011",796,"Штука","**"]
[604,"31.01.12","Мебель деревянная для офисов. Пояснение по требуемой продукции: шкаф деревянный для документов, низкий, полузакрытый","31.01.12.139-008",796,"Штука","**"]
[605,"31.01.12","Мебель деревянная для офисов. Пояснение по требуемой продукции: шкаф деревянный для документов, полузакрытый","31.01.12.139-003",796,"Штука","**"]
[null,null,null,"31.01.12.139-007",796,"Штука","**"]
[null,null,null,"31.01.12.139-018",796,"Штука","**"]
[null,null,null,"31.01.12.139-004",796,"Штука","**"]
[606,"31.01.12","Мебель деревянная для офисов. Пояснение по требуемой продукции: шкаф для одежды деревянный","31.01.12.131-001",796,"Штука","**",null,"**"]
[null,null,null,"31.01.12.131-002",796,"Штука","**",null,"**"]
[null,null,null,"31.01.12.131-003",796,"Штука","**",null,"**"]
[null,null,null,"31.01.12.131-004",796,"Штука","**",null,"**"]
[607,"31.09.11","Мебель металлическая, не включенная в другие группировки. Пояснение по требуемой продукции: кровать детская, подъемная в шкафу","31.09.11.110-001",796,"Штука","**"]
[608,"31.09.11","Мебель металлическая, не включенная в другие группировки. Пояснение по требуемой продукции: раскладушка детская на металлическом каркасе","31.09.11.190-012",796,"Штука","**"]
[null,null,null,"31.09.11.190-013",796,"Штука","**"]
[609,"31.09.11","Мебель металлическая, не включенная в другие группировки. Пояснение по требуемой продукции: раскладушка подростковая на металлическом каркасе","31.09.11.190-014",796,"Штука","**"]
[null,null,null,"31.09.11.190-015",796,"Штука","**"]
[610,"31.09.11","Мебель металлическая, не включенная в другие группировки. Пояснение по требуемой продукции: стеллаж складской металлический","31.09.11.120-005",796,"Штука","**"]
[null,null,null,"31.09.11.120-006",796,"Штука","**"]
[null,null,null,"31.09.11.120-002",796,"Штука","**"]
[null,null,null,"31.09.11.120-003",796,"Штука","**"]
[null,null,null,"31.09.11.120-004",796,"Штука","**"]
[611,"31.09.11","Мебель металлическая, не включенная в другие группировки. Пояснение по требуемой продукции: стол лабораторный","31.09.11.140-001",796,"Штука","**"]
[null,null,null,"31.09.11.140-002",796,"Штука","**"]
[null,null,null,"31.09.11.140-003",796,"Штука","**"]
[null,null,null,"31.09.11.140-004",796,"Штука","**"]
[null,null,null,"31.09.11.140-005",796,"Штука","**"]
[null,null,null,"31.09.11.140-006",796,"Штука","**"]
[null,null,null,"31.09.11.140-007",796,"Штука","**"]
[null,null,null,"31.09.11.140-008",796,"Штука","**"]
[null,null,null,"31.09.11.140-009",796,"Штука","**"]
[null,null,null,"31.09.11.140-010",796,"Штука","**"]
[null,null,null,"31.09.11.140-011",796,"Штука","**"]
[null,null,null,"31.09.11.140-012",796,"Штука","**"]
[null,null,null,"31.09.11.140-013",796,"Штука","**"]
[null,null,null,"31.09.11.140-014",796,"Штука","**"]
[null,null,null,"31.09.11.140-015",796,"Штука","**"]
[612,"31.09.12","Мебель деревянная для спальни, столовой и гостиной. Пояснение по требуемой продукции: журнальный стол","31.09.12.132-001",796,"Штука","**",null,"**"]
[null,null,null,"31.09.12.132-002",796,"Штука","**",null,"**"]
[613,"31.09.12","Мебель деревянная для спальни, столовой и гостиной. Пояснение по требуемой продукции: кровать детская","31.09.12.122-007",796,"Штука","**"]
[null,null,null,"31.09.12.122-008",796,"Штука","**"]
[614,"31.09.12","Мебель деревянная для спальни, столовой и гостиной. Пояснение по требуемой продукции: кровать детская выкатная","31.09.12.122-001",796,"Штука","**"]
[null,null,null,"31.09.12.122-002",796,"Штука","**"]
[null,null,null,"31.09.12.122-003",796,"Штука","**"]
[null,null,null,"31.09.12.122-004",796,"Штука","**"]
[null,null,null,"31.09.12.122-005",796,"Штука","**"]
[615,"31.09.12","Мебель деревянная для спальни, столовой и гостиной. Пояснение по требуемой продукции: кровать детская (для детей в возрасте от 3 до 7 лет)","31.09.12.122-009",796,"Штука","**"]
[null,null,null,"31.09.12.122-010",796,"Штука","**"]
[616,"31.09.12","Мебель деревянная для спальни, столовой и гостиной. Пояснение по требуемой продукции: раскладушка детская, деревянная","31.09.12.129-001",796,"Штука","**"]
[617,"31.09.12","Мебель деревянная для спальни, столовой и гостиной. Пояснение по требуемой продукции: стол обеденный школьный","31.09.12.131-001",796,"Штука","**"]
[null,null,null,"31.09.12.131-002",796,"Штука","**"]
[null,null,null,"31.09.12.131-003",796,"Штука","**"]
[618,"31.09.13","Мебель деревянная, не включенная в другие группировки. Пояснение по требуемой продукции: банкетка","31.09.13.190-017",796,"Штука","**"]
[null,null,null,"31.09.13.190-018",796,"Штука","**"]
[null,null,null,"31.09.13.190-019",796,"Штука","**"]
[null,null,null,"31.09.13.190-020",796,"Штука","**"]
[null,null,null,"31.09.13.190-021",796,"Штука","**"]
[null,null,null,"31.09.13.190-022",796,"Штука","**"]
[619,"31.09.13","Мебель деревянная, не включенная в другие группировки. Пояснение по требуемой продукции: диван детский для дошкольных учреждений","31.09.13.149-038",796,"Штука","**"]
[null,null,null,"31.09.13.149-039",796,"Штука","**"]
[null,null,null,"31.09.13.149-040",796,"Штука","**"]
[620,"31.09.13","Мебель деревянная, не включенная в другие группировки. Пояснение по требуемой продукции: кресло детское для дошкольных учреждений","31.09.13.149-041",796,"Штука","**"]
[621,"31.09.13","Мебель деревянная, не включенная в другие группировки. Пояснение по требуемой продукции: набор детской мебели","31.09.13.142-001",796,"Штука","**"]
[622,"31.09.13","Мебель деревянная, не включенная в другие группировки. Пояснение по требуемой продукции: надстройка на кровать","31.09.13.149-046",796,"Штука","**"]
[623,"31.09.13","Мебель деревянная, не включенная в другие группировки. Пояснение по требуемой продукции: стеллаж детский","31.09.13.149-013",796,"Штука","**"]
[null,null,null,"31.09.13.149-014",796,"Штука","**"]
[null,null,null,"31.09.13.149-015",796,"Штука","**"]
[null,null,null,"31.09.13.149-016",796,"Штука","**"]
[null,null,null,"31.09.13.149-017",796,"Штука","**"]
[624,"31.09.13","Мебель деревянная, не включенная в другие группировки. Пояснение по требуемой продукции: стол демонстрационный для кабинета физики","31.09.13.190-026",796,"Штука","**"]
[625,"31.09.13","Мебель деревянная, не включенная в другие группировки. Пояснение по требуемой продукции: стол дидактический","31.09.13.149-047",796,"Штука","**"]
[null,null,null,"31.09.13.149-048",796,"Штука","**"]
[626,"31.09.13","Мебель деревянная, не включенная в другие группировки. Пояснение по требуемой продукции: стол компьютерный","31.09.13.190-012",796,"Штука","**"]
[null,null,null,"31.09.13.190-013",796,"Штука","**"]
[null,null,null,"31.09.13.190-025",796,"Штука","**"]
[627,"31.09.13","Мебель деревянная, не включенная в другие группировки. Пояснение по требуемой продукции: стул детский для дошкольных учреждений на деревянном каркасе","31.09.13.149-025",796,"Штука","**"]
[null,null,null,"31.09.13.149-026",796,"Штука","**"]
[null,null,null,"31.09.13.149-027",796,"Штука","**"]
[null,null,null,"31.09.13.149-028",796,"Штука","**"]
[null,null,null,"31.09.13.149-029",796,"Штука","**"]
[null,null,null,"31.09.13.149-030",796,"Штука","**"]
[null,null,null,"31.09.13.149-042",796,"Штука","**"]
[628,"31.09.13","Мебель деревянная, не включенная в другие группировки. Пояснение по требуемой продукции: стул детский для дошкольных учреждений на металлическом каркасе, жесткий (необитый)","31.09.13.149-024",796,"Штука","**"]
[629,"31.09.13","Мебель деревянная, не включенная в другие группировки. Пояснение по требуемой продукции: стул детский для дошкольных учреждений на металлическом каркасе, мягкий (обитый)","31.09.13.149-020",796,"Штука","**"]
[null,null,null,"31.09.13.149-021",796,"Штука","**"]
[null,null,null,"31.09.13.149-022",796,"Штука","**"]
[null,null,null,"31.09.13.149-023",796,"Штука","**"]
[630,"31.09.13","Мебель деревянная, не включенная в другие группировки. Пояснение по требуемой продукции: табурет игровой для дошкольных учреждений","31.09.13.149-045",796,"Штука","**"]
[631,"31.09.13","Мебель деревянная, не включенная в другие группировки. Пояснение по требуемой продукции: тумба под школьную доску","31.09.13.190-010",796,"Штука","**"]
[null,null,null,"31.09.13.190-011",796,"Штука","**"]
[632,"31.09.13","Мебель деревянная, не включенная в другие группировки. Пояснение по требуемой продукции: шкаф детский для горшков","31.09.13.149-032",796,"Штука","**"]
[633,"31.09.13","Мебель деревянная, не включенная в другие группировки. Пояснение по требуемой продукции: шкаф для одежды","31.09.13.149-004",796,"Штука","**"]
[null,null,null,"31.09.13.149-005",796,"Штука","**"]
[null,null,null,"31.09.13.149-006",796,"Штука","**"]
[null,null,null,"31.09.13.149-007",796,"Штука","**"]
[null,null,null,"31.09.13.149-008",796,"Штука","**"]
[null,null,null,"31.09.13.149-009",796,"Штука","**"]
[null,null,null,"31.09.13.149-010",796,"Штука","**"]
[null,null,null,"31.09.13.149-011",796,"Штука","**"]
[null,null,null,"31.09.13.149-012",796,"Штука","**"]
[null,null,null,"31.09.13.149-018",796,"Штука","**"]
[null,null,null,"31.09.13.149-019",796,"Штука","**"]
[null,null,null,"31.09.13.149-033",796,"Штука","**"]
[null,null,null,"31.09.13.149-034",796,"Штука","**"]
[null,null,null,"31.09.13.149-035",796,"Штука","**"]
[null,null,null,"31.09.13.149-036",796,"Штука","**"]
[null,null,null,"31.09.13.149-037",796,"Штука","**"]
[634,"31.09.13","Мебель деревянная, не включенная в другие группировки. Пояснение по требуемой продукции: шкаф для полотенец","31.09.13.149-001",796,"Штука","**"]
[null,null,null,"31.09.13.149-002",796,"Штука","**"]
[null,null,null,"31.09.13.149-003",796,"Штука","**"]
[null,null,null,"31.09.13.149-031",796,"Штука","**"]
[635,"31.09.13","Мебель деревянная, не включенная в другие группировки. Пояснение по требуемой продукции: шкаф для хозяйственного инвентаря","31.09.13.190-006",796,"Штука","**"]
["2.6. Перечень товарных позиций части \"Хозяйственные товары\""]
[null,null,null,"В соответствии с кодом конечного каталожного наименования (ККН)",null,null,"Предельная цена (руб. с НДС)"]
[636,"13.92.14","Белье туалетное и кухонное. Пояснение по требуемой продукции: полотенце текстильное (махровое для ванной комнаты)","13.92.14.110-002",796,"Штука","**"]
[null,null,null,"13.92.14.110-005",796,"Штука","**"]
[null,null,null,"13.92.14.110-006",796,"Штука","**"]
[637,"13.92.14","Белье туалетное и кухонное. Пояснение по требуемой продукции: полотенце текстильное (вафельное)","13.92.14.120-001",796,"Штука","**"]
[null,null,null,"13.92.14.110-007",796,"Штука","**"]
[638,"13.92.14","Белье туалетное и кухонное. Пояснение по требуемой продукции: полотенце текстильное (салфетка махровая)","13.92.14.110-003",796,"Штука","**"]
[639,"13.92.29","Изделия текстильные готовые прочие (включая тряпки для мытья полов, посуды, удаления пыли и аналогичные текстильные изделия, спасательные жилеты и пояса). Пояснение по требуемой продукции: тряпка для очистки поверхностей (полотно в рулоне)","13.92.29.110-107",796,"Штука","**"]
[null,null,null,"13.92.29.110-108",796,"Штука","**"]
[null,null,null,"13.92.29.110-109",796,"Штука","**"]
[640,"13.92.29","Изделия текстильные готовые прочие (включая тряпки для мытья полов, посуды, удаления пыли и аналогичные текстильные изделия, спасательные жилеты и пояса). Пояснение по требуемой продукции: тряпка для очистки поверхностей (насадка для швабры)","13.92.29.110-088",796,"Штука","**"]
[null,null,null,"13.92.29.110-091",796,"Штука","**"]
[null,null,null,"13.92.29.110-092",796,"Штука","**"]
[null,null,null,"13.92.29.110-110",796,"Штука","**"]
[null,null,null,"13.92.29.110-111",796,"Штука","**"]
[641,"13.92.29","Изделия текстильные готовые прочие (включая тряпки для мытья полов, посуды, удаления пыли и аналогичные текстильные изделия, спасательные жилеты и пояса). Пояснение по требуемой продукции: тряпка для очистки поверхностей (универсальные в упаковке)","13.92.29.110-008",796,"Штука","**"]
[null,null,null,"13.92.29.120-001",796,"Штука","**"]
[null,null,null,"13.92.29.110-102",796,"Штука","**"]
[642,"13.92.29","Изделия текстильные готовые прочие (включая тряпки для мытья полов, посуды, удаления пыли и аналогичные текстильные изделия, спасательные жилеты и пояса). Пояснение по требуемой продукции: тряпка для очистки поверхностей ","13.92.29.110-093",796,"Штука","**"]
[null,null,null,"13.92.29.110-104",796,"Штука","**"]
[null,null,null,"13.92.29.110-105",796,"Штука","**"]
[643,"13.92.29","Изделия текстильные готовые прочие (включая тряпки для мытья полов, посуды, удаления пыли и аналогичные текстильные изделия, спасательные жилеты и пояса). Пояснение по требуемой продукции: тряпка для очистки поверхностей (для удаления пыли в рулоне)","13.92.29.110-012",796,"Штука","**"]
[null,null,null,"13.92.29.110-100",796,"Штука","**"]
[null,null,null,"13.92.29.110-101",796,"Штука","**"]
[644,"13.92.29","Изделия текстильные готовые прочие (включая тряпки для мытья полов, посуды, удаления пыли и аналогичные текстильные изделия, спасательные жилеты и пояса). Пояснение по требуемой продукции: тряпка для очистки поверхности (полотно в рулоне)","13.92.29.110-002",796,"Штука","**"]
[null,null,null,"13.92.29.110-003",796,"Штука","**"]
[null,null,null,"13.92.29.110-009",796,"Штука","**"]
[null,null,null,"13.92.29.110-011",796,"Штука","**"]
[null,null,null,"13.92.29.110-013",796,"Штука","**"]
[645,"13.92.29","Изделия текстильные готовые прочие (включая тряпки для мытья полов, посуды, удаления пыли и аналогичные текстильные изделия, спасательные жилеты и пояса). Пояснение по требуемой продукции: тряпка для очистки поверхностей","13.92.29.110-010",796,"Штука","**"]
[null,null,null,"13.92.29.110-089",796,"Штука","**"]
[null,null,null,"13.92.29.110-090",796,"Штука","**"]
[null,null,null,"13.92.29.110-094",796,"Штука","**"]
[646,"13.93.19","Ковры и текстильные напольные покрытия прочие (включая войлочные). Пояснение по требуемой продукции: коврик придверный (ворсовый)","13.93.19.110-002",796,"Штука","**"]
[null,null,null,"13.93.19.110-003",796,"Штука","**"]
[null,null,null,"13.93.19.110-004",796,"Штука","**"]
[null,null,null,"13.93.19.110-010",796,"Штука","**"]
[647,"13.93.19","Ковры и текстильные напольные покрытия прочие (включая войлочные). Пояснение по требуемой продукции: коврик придверный (искусственная трава)","13.93.19.110-005",796,"Штука","**"]
[null,null,null,"13.93.19.110-009",796,"Штука","**"]
[null,null,null,"13.93.19.110-011",796,"Штука","**"]
[648,"13.94.11","Шпагат, канаты, веревки и шнуры из джута или прочих текстильных лубяных материалов. Пояснение по требуемой продукции: шпагат бытовой (полипропиленовый)","13.94.12.190-001",796,"Штука","**"]
[null,null,null,"13.94.12.190-002",796,"Штука","**"]
[null,null,null,"13.94.12.190-003",796,"Штука","**"]
[null,null,null,"13.94.12.190-004",796,"Штука","**"]
[null,null,null,"13.94.12.190-005",796,"Штука","**"]
[null,null,null,"13.94.12.190-006",796,"Штука","**"]
[649,"13.99.19","Материалы и изделия текстильные прочие, не включенные в другие группировки. Пояснение по требуемой продукции: прокладки женские гигиенические","13.99.19.121-001",778,"Упаковка","**"]
[null,null,null,"13.99.19.121-002",778,"Упаковка","**"]
[null,null,null,"13.99.19.121-003",778,"Упаковка","**"]
[null,null,null,"13.99.19.121-004",778,"Упаковка","**"]
[650,"13.99.19","Материалы и изделия текстильные прочие, не включенные в другие группировки. Пояснение по требуемой продукции: ватные диски (в упаковке)","13.99.19.129-003",778,"Упаковка","**"]
[null,null,null,"13.99.19.129-004",778,"Упаковка","**"]
[null,null,null,"13.99.19.129-005",778,"Упаковка","**"]
[651,"13.99.19","Материалы и изделия текстильные прочие, не включенные в другие группировки. Пояснение по требуемой продукции: ватные палочки (в упаковке)","13.99.19.129-001",778,"Упаковка","**"]
[null,null,null,"13.99.19.129-002",778,"Упаковка","**"]
[652,"14.12.30","Спецодежда прочая. Пояснение по требуемой продукции: перчатки трикотажные для защиты от внешних воздействий","14.12.30.150-001",715,"Пара (2 шт.)","**"]
[null,null,null,"14.12.30.150-002",715,"Пара (2 шт.)","**"]
[null,null,null,"14.12.30.150-007",715,"Пара (2 шт.)","**"]
[653,"16.29.11","Инструменты, корпуса и рукоятки инструментов, рукоятки и части щеток и метел, блоки для изготовления курительных трубок, сапожные колодки и растяжки для обуви, деревянные. Пояснение по требуемой продукции: рукоятка (черенок)","16.29.11.120-001",796,"Штука","**"]
[null,null,null,"16.29.11.120-003",796,"Штука","**"]
[null,null,null,"16.29.11.120-004",796,"Штука","**"]
[654,"17.22.11","Бумага туалетная, платки носовые, салфетки и полотенца гигиенические или косметические, скатерти и салфетки для стола из бумажной массы, бумаги, целлюлозной ваты и полотна из целлюлозных волокон. Пояснение по требуемой продукции: бумага туалетная","17.22.11.110-009",796,"Штука","**"]
[null,null,null,"17.22.11.110-010",796,"Штука","**"]
[null,null,null,"17.22.11.110-011",796,"Штука","**"]
[null,null,null,"17.22.11.110-012",796,"Штука","**"]
[null,null,null,"17.22.11.110-013",796,"Штука","**"]
[null,null,null,"17.22.11.110-014",796,"Штука","**"]
[null,null,null,"17.22.11.110-015",796,"Штука","**"]
[null,null,null,"17.22.11.110-016",796,"Штука","**"]
[null,null,null,"17.22.11.110-017",796,"Штука","**"]
[null,null,null,"17.22.11.110-018",796,"Штука","**"]
[655,"17.22.11","Бумага туалетная, платки носовые, салфетки и полотенца гигиенические или косметические, скатерти и салфетки для стола из бумажной массы, бумаги, целлюлозной ваты и полотна из целлюлозных волокон. Пояснение по требуемой продукции: салфетка гигиеническая влажная","17.22.11.130-009",778,"Упаковка","**"]
[null,null,null,"17.22.11.130-016",778,"Упаковка","**"]
[656,"17.22.11","Бумага туалетная, платки носовые, салфетки и полотенца гигиенические или косметические, скатерти и салфетки для стола из бумажной массы, бумаги, целлюлозной ваты и полотна из целлюлозных волокон. Пояснение по требуемой продукции: салфетка бумажная для сервировки стола","17.22.11.140-001",778,"Упаковка","**"]
[null,null,null,"17.22.11.140-002",778,"Упаковка","**"]
[null,null,null,"17.22.11.140-004",778,"Упаковка","**"]
[null,null,null,"17.22.11.140-005",778,"Упаковка","**"]
[null,null,null,"17.22.11.140-006",778,"Упаковка","**"]
[657,"17.22.11","Бумага туалетная, платки носовые, салфетки и полотенца гигиенические или косметические, скатерти и салфетки для стола из бумажной массы, бумаги, целлюлозной ваты и полотна из целлюлозных волокон. Пояснение по требуемой продукции: полотенце бумажное (форма выпуска лист, для диспенсеров)","17.22.11.130-002",778,"Упаковка","**"]
[null,null,null,"17.22.11.130-003",778,"Упаковка","**"]
[null,null,null,"17.22.11.130-004",778,"Упаковка","**"]
[null,null,null,"17.22.11.130-005",778,"Упаковка","**"]
[null,null,null,"17.22.11.130-006",778,"Упаковка","**"]
[null,null,null,"17.22.11.130-007",778,"Упаковка","**"]
[null,null,null,"17.22.11.130-011",778,"Упаковка","**"]
[null,null,null,"17.22.11.130-012",778,"Упаковка","**"]
[658,"17.22.11","Бумага туалетная, платки носовые, салфетки и полотенца гигиенические или косметические, скатерти и салфетки для стола из бумажной массы, бумаги, целлюлозной ваты и полотна из целлюлозных волокон. Пояснение по требуемой продукции: полотенце бумажное","17.22.11.130-001",796,"Штука","**"]
[null,null,null,"17.22.11.130-008",796,"Штука","**"]
[null,null,null,"17.22.11.130-022",796,"Штука","**"]
[659,"17.22.11","Бумага туалетная, платки носовые, салфетки и полотенца гигиенические или косметические, скатерти и салфетки для стола из бумажной массы, бумаги, целлюлозной ваты и полотна из целлюлозных волокон. Пояснение по требуемой продукции: скатерть бумажная для сервировки стола","17.22.11.140-003",796,"Штука","**"]
[660,"17.22.11","Бумага туалетная, платки носовые, салфетки и полотенца гигиенические или косметические, скатерти и салфетки для стола из бумажной массы, бумаги, целлюлозной ваты и полотна из целлюлозных волокон. Пояснение по требуемой продукции: полотенце бумажное (форма выпуска рулон, для диспенсеров)","17.22.11.130-017",796,"Штука","**"]
[null,null,null,"17.22.11.130-018",796,"Штука","**"]
[null,null,null,"17.22.11.130-019",796,"Штука","**"]
[null,null,null,"17.22.11.130-020",796,"Штука","**"]
[null,null,null,"17.22.11.130-021",796,"Штука","**"]
[661,"17.22.12","Полотенца санитарно-гигиенические и тампоны, подгузники и пеленки детские и аналогичные изделия санитарно-гигиенического назначения и предметы и аксессуары одежды из бумажной массы, бумаги, целлюлозной ваты и полотна из целлюлозных волокон. Пояснение по требуемой продукции: одноразовое гигиеническое сиденье","17.22.12.130-017",778,"Упаковка","**"]
[null,null,null,"17.22.12.130-018",778,"Упаковка","**"]
[662,"20.13.43","Карбонаты. Пояснение по требуемой продукции: сода кальцинированная","20.13.43.119-001",796,"Штука","**"]
[null,null,null,"20.13.43.119-002",796,"Штука","**"]
[663,"20.20.11","Инсектициды. Пояснение по требуемой продукции: аэрозоль (против насекомых)","20.20.11.000-001",796,"Штука","**"]
[664,"20.20.11","Инсектициды. Пояснение по требуемой продукции: лента липкая (против насекомых)","20.20.11.000-002",796,"Штука","**"]
[665,"20.20.14","Средства дезинфекционные. Пояснение по требуемой продукции: средство дезинфицирующие (жидкость)","20.20.14.000-031",112,"Литр; кубический дециметр","**"]
[null,null,null,"20.20.14.000-032",112,"Литр; кубический дециметр","**"]
[666,"20.20.14","Средства дезинфекционные. Пояснение по требуемой продукции: средство дезинфицирующие (порошок)","20.20.14.000-033",166,"Килограмм","**"]
[667,"20.20.14","Средства дезинфекционные. Пояснение по требуемой продукции: средство дезинфицирующие  (в таблетках)","20.20.14.000-034",166,"Килограмм","**"]
[null,null,null,"20.20.14.000-035",166,"Килограмм","**"]
[668,"20.41.31","Мыло и органические поверхностно-активные вещества и средства, используемые в качестве мыла; бумага, вата, войлок, фетр и нетканые материалы, пропитанные или покрытые мылом или моющим средством. Пояснение по требуемой продукции: мыло хозяйственное твердое","20.41.31.121-002",166,"Килограмм","**"]
[null,null,null,"20.41.31.123-002",166,"Килограмм","**"]
[null,null,null,"20.41.31.123-003",166,"Килограмм","**"]
[669,"20.41.31","Мыло и органические поверхностно-активные вещества и средства, используемые в качестве мыла; бумага, вата, войлок, фетр и нетканые материалы, пропитанные или покрытые мылом или моющим средством. Пояснение по требуемой продукции: мыло хозяйственное жидкое","20.41.31.140-001",112,"Литр; кубический дециметр","**"]
[null,null,null,"20.41.31.140-002",112,"Литр; кубический дециметр","**"]
[670,"20.41.31","Мыло и органические поверхностно-активные вещества и средства, используемые в качестве мыла; бумага, вата, войлок, фетр и нетканые материалы, пропитанные или покрытые мылом или моющим средством. Пояснение по требуемой продукции: мыло туалетное твердое","20.41.31.111-001",796,"Штука","**"]
[null,null,null,"20.41.31.111-002",796,"Штука","**"]
[null,null,null,"20.41.31.111-003",796,"Штука","**"]
[null,null,null,"20.41.31.113-002",796,"Штука","**"]
[null,null,null,"20.41.31.113-003",796,"Штука","**"]
[null,null,null,"20.41.31.114-001",796,"Штука","**"]
[671,"20.41.31","Мыло и органические поверхностно-активные вещества и средства, используемые в качестве мыла; бумага, вата, войлок, фетр и нетканые материалы, пропитанные или покрытые мылом или моющим средством. Пояснение по требуемой продукции: мыло туалетное жидкое","20.41.31.130-007",112,"Литр; кубический дециметр","**"]
[null,null,null,"20.41.31.130-008",112,"Литр; кубический дециметр","**"]
[null,null,null,"20.41.31.130-009",112,"Литр; кубический дециметр","**"]
[null,null,null,"20.41.31.130-010",112,"Литр; кубический дециметр","**"]
[null,null,null,"20.41.31.130-011",112,"Литр; кубический дециметр","**"]
[null,null,null,"20.41.31.130-012",112,"Литр; кубический дециметр","**"]
[null,null,null,"20.41.31.130-013",112,"Литр; кубический дециметр","**"]
[null,null,null,"20.41.31.130-016",796,"Штука","**"]
[null,null,null,"20.41.31.130-015",112,"Литр; кубический дециметр","**"]
[null,null,null,"20.41.31.130-017",112,"Литр; кубический дециметр","**"]
[672,"20.41.32","Средства моющие и стиральные. Пояснение по требуемой продукции: средство для мытья посуды","20.41.32.111-012",796,"Штука","**"]
[null,null,null,"20.41.32.111-013",796,"Штука","**"]
[null,null,null,"20.41.32.111-014",796,"Штука","**"]
[null,null,null,"20.41.32.111-015",796,"Штука","**"]
[673,"20.41.32","Средства моющие и стиральные. Пояснение по требуемой продукции: средство для мытья посуды (ополаскиватель для посуды для посудомоечных машин)","20.41.32.111-018",112,"Литр; кубический дециметр","**"]
[674,"20.41.32","Средства моющие и стиральные. Пояснение по требуемой продукции: средство для мытья посуды (таблетки для посудомоечных машин)","20.41.32.111-002",796,"Штука","**"]
[null,null,null,"20.41.32.111-005",796,"Штука","**"]
[null,null,null,"20.41.32.111-006",796,"Штука","**"]
[675,"20.41.32","Средства моющие и стиральные. Пояснение по требуемой продукции: средство для мытья посуды (порошок для посудомоечных машин)","20.41.32.111-016",166,"Килограмм","**"]
[null,null,null,"20.41.32.111-017",166,"Килограмм","**"]
[676,"20.41.32","Средства моющие и стиральные. Пояснение по требуемой продукции: средство для мытья посуды (жидкость для посудомоечных машин)","20.41.32.111-011",112,"Литр; кубический дециметр","**"]
[677,"20.41.32","Средства моющие и стиральные. Пояснение по требуемой продукции: средства моющие для стекол и зеркал","20.41.32.113-001",112,"Литр; кубический дециметр","**"]
[null,null,null,"20.41.32.113-002",112,"Литр; кубический дециметр","**"]
[678,"20.41.32","Средства моющие и стиральные. Пояснение по требуемой продукции: средства моющие для туалетов и ванных комнат","20.41.32.114-001",796,"Штука","**"]
[null,null,null,"20.41.32.114-002",796,"Штука","**"]
[null,null,null,"20.41.32.114-003",796,"Штука","**"]
[null,null,null,"20.41.32.114-004",796,"Штука","**"]
[679,"20.41.32","Средства моющие и стиральные. Пояснение по требуемой продукции: чистящее средство для кофемашин","20.41.32.119-018",778,"Упаковка","**"]
[680,"20.41.32","Средства моющие и стиральные. Пояснение по требуемой продукции: чистящее средство (жидкое для кухонного оборудования)","20.41.32.119-001",796,"Штука","**"]
[null,null,null,"20.41.32.119-002",796,"Штука","**"]
[null,null,null,"20.41.32.119-007",796,"Штука","**"]
[681,"20.41.32","Средства моющие и стиральные. Пояснение по требуемой продукции: чистящее средство (жидкие для мытья различных поверхностей)","20.41.32.119-006",796,"Штука","**"]
[682,"20.41.32","Средства моющие и стиральные. Пояснение по требуемой продукции: чистящее средство (жидкое для мытья пароконвектоматов)","20.41.32.119-014",796,"Штука","**"]
[null,null,null,"20.41.32.119-015",796,"Штука","**"]
[null,null,null,"20.41.32.119-016",796,"Штука","**"]
[683,"20.41.32","Средства моющие и стиральные. Пояснение по требуемой продукции: чистящее средство (для мытья пароконвектоматов в таблетках)","20.41.32.119-017",796,"Штука","**"]
[null,null,null,"20.41.32.119-019",796,"Штука","**"]
[684,"20.41.32","Средства моющие и стиральные. Пояснение по требуемой продукции: кондиционер для белья","20.41.32.124-001",112,"Литр; кубический дециметр","**"]
[null,null,null,"20.41.32.124-002",112,"Литр; кубический дециметр","**"]
[null,null,null,"20.41.32.124-003",112,"Литр; кубический дециметр","**"]
[null,null,null,"20.41.32.124-004",112,"Литр; кубический дециметр","**"]
[685,"20.41.32","Средства моющие и стиральные. Пояснение по требуемой продукции: средства отбеливающие для стирки","20.41.32.125-004",112,"Литр; кубический дециметр","**"]
[null,null,null,"20.41.32.125-005",166,"Килограмм","**"]
[null,null,null,"20.41.32.125-006",166,"Килограмм","**"]
[686,"20.41.32","Средства моющие и стиральные. Пояснение по требуемой продукции: чистящее средство (жидкое для чистки ковров)","20.41.32.119-022",796,"Штука","**"]
[687,"20.41.32","Средства моющие и стиральные. Пояснение по требуемой продукции: чистящее средство (жидкое для мытья пола)","20.41.32.119-011",796,"Штука","**"]
[null,null,null,"20.41.32.119-012",796,"Штука","**"]
[null,null,null,"20.41.32.119-013",796,"Штука","**"]
[null,null,null,"20.41.32.119-023",796,"Штука","**"]
[688,"20.41.32","Средства моющие и стиральные. Пояснение по требуемой продукции: порошок стиральный","20.41.32.121-013",166,"Килограмм","**"]
[null,null,null,"20.41.32.121-014",166,"Килограмм","**"]
[null,null,null,"20.41.32.121-015",166,"Килограмм","**"]
[null,null,null,"20.41.32.121-016",166,"Килограмм","**"]
[null,null,null,"20.41.32.121-020",166,"Килограмм","**"]
[null,null,null,"20.41.32.121-021",166,"Килограмм","**"]
[null,null,null,"20.41.32.121-023",166,"Килограмм","**"]
[689,"20.41.32","Средства моющие и стиральные. Пояснение по требуемой продукции: гель для стирки","20.41.32.129-001",112,"Литр; кубический дециметр","**"]
[null,null,null,"20.41.32.129-002",112,"Литр; кубический дециметр","**"]
[690,"20.41.32","Средства моющие и стиральные. Пояснение по требуемой продукции: порошок стиральный (для детского белья)","20.41.32.121-017",166,"Килограмм","**"]
[null,null,null,"20.41.32.121-018",166,"Килограмм","**"]
[null,null,null,"20.41.32.121-019",166,"Килограмм","**"]
[null,null,null,"20.41.32.121-022",166,"Килограмм","**"]
[691,"20.41.41","Средства для дезодорирования и ароматизации воздуха в помещениях. Пояснение по требуемой продукции: средства для дезодорирования и ароматизации воздуха в помещениях (освежители воздуха)","20.41.41.000-001",796,"Штука","**"]
[692,"20.41.41","Средства для дезодорирования и ароматизации воздуха в помещениях. Пояснение по требуемой продукции: средства для дезодорирования и ароматизации воздуха в помещениях (автоматические в наборе)","20.41.41.000-002",796,"Штука","**"]
[693,"20.41.41","Средства для дезодорирования и ароматизации воздуха в помещениях. Пояснение по требуемой продукции: средства для дезодорирования и ароматизации воздуха в помещениях (сменные баллоны для диспенсера)","20.41.41.000-003",796,"Штука","**"]
[null,null,null,"20.41.41.000-004",796,"Штука","**"]
[null,null,null,"20.41.41.000-005",796,"Штука","**"]
[694,"20.41.43","Средства, кремы, мастики для обуви, мебели, полов, транспортных средств, стекла или металла полирующие. Пояснение по требуемой продукции: средство полирующее для мебели","20.41.43.120-001",796,"Штука","**"]
[695,"20.41.44","Пасты чистящие, порошки и прочие чистящие средства. Пояснение по требуемой продукции: паста для рук","20.41.44.110-001",796,"Штука","**"]
[696,"20.41.44","Пасты чистящие, порошки и прочие чистящие средства. Пояснение по требуемой продукции: порошок чистящий","20.41.44.120-001",166,"Килограмм","**"]
[null,null,null,"20.41.44.120-002",166,"Килограмм","**"]
[null,null,null,"20.41.44.120-003",166,"Килограмм","**"]
[697,"20.41.44","Пасты чистящие, порошки и прочие чистящие средства. Пояснение по требуемой продукции: чистящее средство (для труб)","20.41.44.190-003",796,"Штука","**"]
[null,null,null,"20.41.44.190-008",796,"Штука","**"]
[698,"20.41.44","Пасты чистящие, порошки и прочие чистящие средства. Пояснение по требуемой продукции: чистящее средство (антивандальное)","20.41.44.190-006",796,"Штука","**"]
[699,"20.42.15","Средства для ухода за кожей, макияжа или защитные средства для кожи (включая солнцезащитные и для загара), не включенные в другие группировки. Пояснение по требуемой продукции: крем для рук","20.42.15.141-001",112,"Литр; кубический дециметр","**"]
[700,"20.42.15","Средства для ухода за кожей, макияжа или защитные средства для кожи (включая солнцезащитные и для загара), не включенные в другие группировки. Пояснение по требуемой продукции: крем защитный","20.42.15.149-001",796,"Штука","**"]
[null,null,null,"20.42.15.149-002",796,"Штука","**"]
[null,null,null,"20.42.15.149-003",796,"Штука","**"]
[null,null,null,"20.42.15.149-004",796,"Штука","**"]
[701,"20.42.16","Шампуни, лаки для волос, средства для завивки или распрямления волос. Пояснение по требуемой продукции: шампунь","20.42.16.110-001",112,"Литр; кубический дециметр","**"]
[null,null,null,"20.42.16.110-002",112,"Литр; кубический дециметр","**"]
[null,null,null,"20.42.16.110-003",112,"Литр; кубический дециметр","**"]
[null,null,null,"20.42.16.110-004",112,"Литр; кубический дециметр","**"]
[702,"20.42.18","Средства гигиены полости рта и зубов (включая фиксирующие пасты и порошки для зубных протезов), нити для чистки зубов. Пояснение по требуемой продукции: паста зубная","20.42.18.111-001",112,"Литр; кубический дециметр","**"]
[null,null,null,"20.42.18.111-002",112,"Литр; кубический дециметр","**"]
[703,"20.42.19","Средства для бритья; дезодоранты и антиперспиранты; средства для ванн, прочие парфюмерные, косметические или туалетные средства, не включенные в другие группировки. Пояснение по требуемой продукции: гель для душа","20.42.19.190-001",796,"Штука","**"]
[null,null,null,"20.42.19.190-002",796,"Штука","**"]
[null,null,null,"20.42.19.190-003",796,"Штука","**"]
[704,"20.59.59","Продукты разные химические, не включенные в другие группировки. Пояснение по требуемой продукции: средство для декальцинации","20.59.59.900-095",778,"Упаковка","**"]
[null,null,null,"20.59.59.900-106",778,"Упаковка","**"]
[705,"20.60.14","Мононити синтетические; нити ленточные и аналогичные плоские нити из синтетических текстильных материалов. Пояснение по требуемой продукции: леска (для триммеров и мотокос в бобине)","20.60.14.110-001",616,"Бобина","**"]
[706,"22.19.60","Предметы одежды и ее аксессуары из вулканизированной резины, кроме твердой резины (эбонита). Пояснение по требуемой продукции: перчатки резиновые общего назначения (кроме медицинских) (латексные)","22.19.60.114-001",715,"Пара (2 шт.)","**"]
[null,null,null,"22.19.60.114-003",715,"Пара (2 шт.)","**"]
[null,null,null,"22.19.60.114-004",715,"Пара (2 шт.)","**"]
[null,null,null,"22.19.60.114-005",715,"Пара (2 шт.)","**"]
[null,null,null,"22.19.60.114-006",715,"Пара (2 шт.)","**"]
[null,null,null,"22.19.60.114-007",715,"Пара (2 шт.)","**"]
[null,null,null,"22.19.60.114-008",715,"Пара (2 шт.)","**"]
[null,null,null,"22.19.60.114-009",715,"Пара (2 шт.)","**"]
[707,"22.19.60","Предметы одежды и ее аксессуары из вулканизированной резины, кроме твердой резины (эбонита). Пояснение по требуемой продукции: перчатки резиновые общего назначения (кроме медицинских)  (виниловые)","22.19.60.114-002",715,"Пара (2 шт.)","**"]
[null,null,null,"22.19.60.114-010",715,"Пара (2 шт.)","**"]
[null,null,null,"22.19.60.114-011",715,"Пара (2 шт.)","**"]
[708,"22.19.60","Предметы одежды и ее аксессуары из вулканизированной резины, кроме твердой резины (эбонита). Пояснение по требуемой продукции: перчатки резиновые общего назначения (кроме медицинских) (полиэтиленовые)","22.19.60.119-020",715,"Пара (2 шт.)","**"]
[null,null,null,"22.19.60.119-021",715,"Пара (2 шт.)","**"]
[709,"22.19.72","Покрытия и коврики напольные из вулканизированной резины, кроме пористой. Пояснение по требуемой продукции: коврик придверный (резиновый грязесборный)","22.19.72.000-009",796,"Штука","**"]
[710,"22.19.72","Покрытия и коврики напольные из вулканизированной резины, кроме пористой. Пояснение по требуемой продукции: коврик придверный (ячеистый резиновый)","22.19.72.000-005",796,"Штука","**"]
[null,null,null,"22.19.72.000-006",796,"Штука","**"]
[711,"22.19.73","Изделия из вулканизированной резины прочие, не включенные в другие группировки; твердая резина во всех формах и изделия из нее; напольные покрытия и коврики из вулканизированной пористой резины. Пояснение по требуемой продукции: вантуз","22.19.73.119-002",796,"Штука","**"]
[712,"22.21.42","Плиты, листы, пленка и полосы (ленты) прочие пластмассовые непористые. Пояснение по требуемой продукции: пленка пищевая","22.21.42.129-001",736,"Рулон","**"]
[null,null,null,"22.21.42.129-002",736,"Рулон","**"]
[713,"22.22.11","Мешки и сумки, включая конические, из полимеров этилена прочие. Пояснение по требуемой продукции: мешок полимерный для мусора","22.22.11.190-003",736,"Рулон","**"]
[null,null,null,"22.22.11.190-004",736,"Рулон","**"]
[null,null,null,"22.22.11.190-005",736,"Рулон","**"]
[null,null,null,"22.22.11.190-006",736,"Рулон","**"]
[null,null,null,"22.22.11.190-007",736,"Рулон","**"]
[null,null,null,"22.22.11.190-008",736,"Рулон","**"]
[null,null,null,"22.22.11.190-009",736,"Рулон","**"]
[null,null,null,"22.22.11.190-010",736,"Рулон","**"]
[null,null,null,"22.22.11.190-011",736,"Рулон","**"]
[null,null,null,"22.22.11.190-012",736,"Рулон","**"]
[null,null,null,"22.22.11.190-013",736,"Рулон","**"]
[null,null,null,"22.22.11.190-023",778,"Упаковка","**"]
[714,"22.22.11","Мешки и сумки, включая конические, из полимеров этилена прочие. Пояснение по требуемой продукции: пакет фасовочный пищевой","22.22.11.190-014",796,"Штука","**"]
[null,null,null,"22.22.11.190-015",796,"Штука","**"]
[null,null,null,"22.22.11.190-016",796,"Штука","**"]
[715,"22.22.11","Мешки и сумки, включая конические, из полимеров этилена прочие. Пояснение по требуемой продукции: мешок полимерный полипропиленовый","22.22.11.190-017",796,"Штука","**"]
[null,null,null,"22.22.11.190-018",796,"Штука","**"]
[716,"22.29.10","Одежда и ее аксессуары, включая пластмассовые перчатки. Пояснение по требуемой продукции: фартук одноразовый","22.29.10.110-001",796,"Штука","**"]
[717,"22.29.23","Посуда столовая и кухонная, прочие предметы домашнего обихода и предметы туалета пластмассовые. Пояснение по требуемой продукции: бак","22.29.23.120-024",796,"Штука","**"]
[null,null,null,"22.29.23.120-040",796,"Штука","**"]
[718,"22.29.23","Посуда столовая и кухонная, прочие предметы домашнего обихода и предметы туалета пластмассовые. Пояснение по требуемой продукции: штора для ванной","22.29.23.120-031",796,"Штука","**"]
[719,"22.29.23","Посуда столовая и кухонная, прочие предметы домашнего обихода и предметы туалета пластмассовые. Пояснение по требуемой продукции: ведро пластмассовое","22.29.23.120-002",796,"Штука","**"]
[null,null,null,"22.29.23.120-023",796,"Штука","**"]
[null,null,null,"22.29.23.120-033",796,"Штука","**"]
[null,null,null,"22.29.23.120-034",796,"Штука","**"]
[null,null,null,"22.29.23.120-035",796,"Штука","**"]
[720,"22.29.23","Посуда столовая и кухонная, прочие предметы домашнего обихода и предметы туалета пластмассовые. Пояснение по требуемой продукции: горшок для цветов","22.29.23.120-004",796,"Штука","**"]
[721,"22.29.23","Посуда столовая и кухонная, прочие предметы домашнего обихода и предметы туалета пластмассовые. Пояснение по требуемой продукции: горшок детский (пластмассовый)","22.29.23.120-007",796,"Штука","**"]
[null,null,null,"22.29.23.120-008",796,"Штука","**"]
[722,"22.29.23","Посуда столовая и кухонная, прочие предметы домашнего обихода и предметы туалета пластмассовые. Пояснение по требуемой продукции: губка для посуды (из поролона)","22.29.23.120-001",796,"Штука","**"]
[723,"22.29.23","Посуда столовая и кухонная, прочие предметы домашнего обихода и предметы туалета пластмассовые. Пояснение по требуемой продукции: держатель для туалетной бумаги","22.29.23.120-006",796,"Штука","**"]
[724,"22.29.23","Посуда столовая и кухонная, прочие предметы домашнего обихода и предметы туалета пластмассовые. Пояснение по требуемой продукции: диспенсер для полотенец  (листовых, пластмассовые)","22.29.23.130-007",796,"Штука","**"]
[null,null,null,"22.29.23.130-008",796,"Штука","**"]
[null,null,null,"22.29.23.130-009",796,"Штука","**"]
[null,null,null,"22.29.23.130-010",796,"Штука","**"]
[725,"22.29.23","Посуда столовая и кухонная, прочие предметы домашнего обихода и предметы туалета пластмассовые. Пояснение по требуемой продукции: диспенсер для полотенец (рулонных, пластмассовые)","22.29.23.130-011",796,"Штука","**"]
[null,null,null,"22.29.23.130-012",796,"Штука","**"]
[null,null,null,"22.29.23.130-013",796,"Штука","**"]
[726,"22.29.23","Посуда столовая и кухонная, прочие предметы домашнего обихода и предметы туалета пластмассовые. Пояснение по требуемой продукции: дозатор для жидких дезинфицирующих средств бытовой","22.29.23.130-005",796,"Штука","**"]
[null,null,null,"22.29.23.130-006",796,"Штука","**"]
[727,"22.29.23","Посуда столовая и кухонная, прочие предметы домашнего обихода и предметы туалета пластмассовые. Пояснение по требуемой продукции: корзина пластмассовая","22.29.23.120-003",796,"Штука","**"]
[null,null,null,"22.29.23.120-042",796,"Штука","**"]
[null,null,null,"22.29.23.120-044",796,"Штука","**"]
[728,"22.29.23","Посуда столовая и кухонная, прочие предметы домашнего обихода и предметы туалета пластмассовые. Пояснение по требуемой продукции: крючок бытовой (пластмассовый в упаковке)","22.29.23.120-021",778,"Упаковка","**"]
[null,null,null,"22.29.23.120-022",778,"Упаковка","**"]
[729,"22.29.23","Посуда столовая и кухонная, прочие предметы домашнего обихода и предметы туалета пластмассовые. Пояснение по требуемой продукции: совок (пластмассовый)","22.29.23.120-005",796,"Штука","**"]
[null,null,null,"22.29.23.120-030",796,"Штука","**"]
[730,"22.29.23","Посуда столовая и кухонная, прочие предметы домашнего обихода и предметы туалета пластмассовые. Пояснение по требуемой продукции: таз (пластмассовый)","22.29.23.120-011",796,"Штука","**"]
[null,null,null,"22.29.23.120-012",796,"Штука","**"]
[null,null,null,"22.29.23.120-013",796,"Штука","**"]
[null,null,null,"22.29.23.120-014",796,"Штука","**"]
[null,null,null,"22.29.23.120-015",796,"Штука","**"]
[null,null,null,"22.29.23.120-016",796,"Штука","**"]
[731,"22.29.23","Посуда столовая и кухонная, прочие предметы домашнего обихода и предметы туалета пластмассовые. Пояснение по требуемой продукции: дозатор жидких средств бытовой (для мыла пластмассовый) ","22.29.23.130-001",796,"Штука","**"]
[null,null,null,"22.29.23.130-002",796,"Штука","**"]
[732,"22.29.23","Посуда столовая и кухонная, прочие предметы домашнего обихода и предметы туалета пластмассовые. Пояснение по требуемой продукции: диспенсер гигиенических средств (для туалетной бумаги пластмассовый) ","22.29.23.130-003",796,"Штука","**"]
[null,null,null,"22.29.23.130-004",796,"Штука","**"]
[733,"22.29.23","Посуда столовая и кухонная, прочие предметы домашнего обихода и предметы туалета пластмассовые. Пояснение по требуемой продукции: вешалка-плечики гардеробная","22.29.23.120-025",796,"Штука","**"]
[null,null,null,"22.29.23.120-026",796,"Штука","**"]
[734,"22.29.23","Посуда столовая и кухонная, прочие предметы домашнего обихода и предметы туалета пластмассовые. Пояснение по требуемой продукции: мыльница","22.29.23.120-027",796,"Штука","**"]
[null,null,null,"22.29.23.120-028",796,"Штука","**"]
[735,"22.29.23","Посуда столовая и кухонная, прочие предметы домашнего обихода и предметы туалета пластмассовые. Пояснение по требуемой продукции: держатель для одноразовых стаканов","22.29.23.120-029",796,"Штука","**"]
[736,"22.29.23","Посуда столовая и кухонная, прочие предметы домашнего обихода и предметы туалета пластмассовые. Пояснение по требуемой продукции: ведро мусорное","22.29.23.120-041",796,"Штука","**"]
[737,"25.73.10","Инструмент ручной, используемый в сельском хозяйстве, садоводстве или лесном хозяйстве. Пояснение по требуемой продукции: грабли","25.73.10.000-001",796,"Штука","**"]
[null,null,null,"25.73.10.000-002",796,"Штука","**"]
[null,null,null,"25.73.10.000-003",796,"Штука","**"]
[null,null,null,"25.73.10.000-004",796,"Штука","**"]
[null,null,null,"25.73.10.000-008",796,"Штука","**"]
[null,null,null,"25.73.10.000-009",796,"Штука","**"]
[738,"25.73.10","Инструмент ручной, используемый в сельском хозяйстве, садоводстве или лесном хозяйстве. Пояснение по требуемой продукции: ножницы садовые","25.73.10.000-006",796,"Штука","**"]
[739,"25.73.10","Инструмент ручной, используемый в сельском хозяйстве, садоводстве или лесном хозяйстве. Пояснение по требуемой продукции: сучкорез садовый","25.73.10.000-005",796,"Штука","**"]
[null,null,null,"25.73.10.000-014",796,"Штука","**"]
[740,"25.73.60","Инструмент прочий. Пояснение по требуемой продукции: ледоруб-топор","25.73.60.190-001",796,"Штука","**"]
[null,null,null,"25.73.60.190-023",796,"Штука","**"]
[741,"25.99.12","Изделия столовые, кухонные и бытовые и их части из черных металлов, меди или алюминия. Пояснение по требуемой продукции: ведро мусорное (с педалью, металлическое)","25.99.12.112-027",796,"Штука","**"]
[null,null,null,"25.99.12.112-028",796,"Штука","**"]
[null,null,null,"25.99.12.112-082",796,"Штука","**"]
[742,"25.99.12","Изделия столовые, кухонные и бытовые и их части из черных металлов, меди или алюминия. Пояснение по требуемой продукции: изделия бытовые из нержавеющей стали (губка из нержавеющей стали для посуды)","25.99.12.112-001",796,"Штука","**"]
[743,"25.99.12","Изделия столовые, кухонные и бытовые и их части из черных металлов, меди или алюминия. Пояснение по требуемой продукции: дозатор жидких средств бытовой (для мыла металлический) ","25.99.12.112-002",796,"Штука","**"]
[null,null,null,"25.99.12.112-107",796,"Штука","**"]
[744,"25.99.12","Изделия столовые, кухонные и бытовые и их части из черных металлов, меди или алюминия. Пояснение по требуемой продукции: диспенсер гигиенических средств (для бумажных полотенец из нержавеющей стали)","25.99.12.112-006",796,"Штука","**"]
[null,null,null,"25.99.12.112-007",796,"Штука","**"]
[null,null,null,"25.99.12.112-008",796,"Штука","**"]
[745,"25.99.12","Изделия столовые, кухонные и бытовые и их части из черных металлов, меди или алюминия. Пояснение по требуемой продукции: диспенсер гигиенических средств (для туалетной бумаги из нержавеющей стали)","25.99.12.112-005",796,"Штука","**"]
[null,null,null,"25.99.12.112-106",796,"Штука","**"]
[746,"25.99.12","Изделия столовые, кухонные и бытовые и их части из черных металлов, меди или алюминия. Пояснение по требуемой продукции:  диспенсер гигиенических средств (для одноразовых гигиенических сидений из нержавеющей стали)","25.99.12.112-176",796,"Штука","**"]
[747,"25.99.12","Изделия столовые, кухонные и бытовые и их части из черных металлов, меди или алюминия. Пояснение по требуемой продукции: изделия бытовые из нержавеющей стали (совок из нержавеющей стали)","25.99.12.112-065",796,"Штука","**"]
[null,null,null,"25.99.12.112-177",796,"Штука","**"]
[748,"25.99.12","Изделия столовые, кухонные и бытовые и их части из черных металлов, меди или алюминия. Пояснение по требуемой продукции: изделия бытовые из нержавеющей стали (ведро из нержавеющей стали)","25.99.12.112-180",796,"Штука","**"]
[null,null,null,"25.99.12.112-181",796,"Штука","**"]
[749,"25.99.12","Изделия столовые, кухонные и бытовые и их части из черных металлов, меди или алюминия. Пояснение по требуемой продукции: изделия бытовые из нержавеющей стали (держатель для бумажных полотенец)","25.99.12.112-172",796,"Штука","**"]
[750,"25.99.12","Изделия столовые, кухонные и бытовые и их части из черных металлов, меди или алюминия. Пояснение по требуемой продукции: горшок детский (металлический эмалированный)","25.99.12.119-012",796,"Штука","**"]
[751,"25.99.29","Изделия из недрагоценных металлов прочие, не включенные в другие группировки. Пояснение по требуемой продукции: лопата штыковая ","25.99.29.129-002",796,"Штука","**"]
[null,null,null,"25.99.29.129-003",796,"Штука","**"]
[null,null,null,"25.99.29.129-007",796,"Штука","**"]
[752,"25.99.29","Изделия из недрагоценных металлов прочие, не включенные в другие группировки. Пояснение по требуемой продукции: лопата совковая","25.99.29.129-014",796,"Штука","**"]
[null,null,null,"25.99.29.129-015",796,"Штука","**"]
[753,"25.99.29","Изделия из недрагоценных металлов прочие, не включенные в другие группировки. Пояснение по требуемой продукции: лопата для уборки снега","25.99.29.129-001",796,"Штука","**"]
[null,null,null,"25.99.29.129-008",796,"Штука","**"]
[null,null,null,"25.99.29.129-009",796,"Штука","**"]
[754,"25.99.29","Изделия прочие из недрагоценных металлов, не включенные в другие группировки. Пояснение по требуемой продукции: сушилка для белья","25.99.29.190-016",796,"Штука","**"]
[755,"27.40.22","Светильники электрические настольные, прикроватные или напольные. Пояснение по требуемой продукции: светильники настольные","27.40.22.130-002",796,"Штука","**"]
[null,null,null,"27.40.22.130-003",796,"Штука","**"]
[null,null,null,"27.40.22.130-004",796,"Штука","**"]
[756,"27.51.23","Приборы электротермические для укладки волос или для сушки рук; электрические утюги. Пояснение по требуемой продукции: электрическая сушилка для рук","27.51.23.120-001",796,"Штука","**"]
[null,null,null,"27.51.23.120-002",796,"Штука","**"]
[757,"28.29.12","Оборудование и установки для фильтрования или очистки жидкостей. Пояснение по требуемой продукции: фильтр-кувшин","28.29.12.134-002",796,"Штука","**"]
[758,"28.29.82","Части центрифуг; части машин и аппаратов для фильтрования или очистки жидкостей или газов. Пояснение по требуемой продукции: картридж для фильтров воды","28.29.82.120-001",796,"Штука","**"]
[759,"31.09.11","Мебель металлическая, не включенная в другие группировки. Пояснение по требуемой продукции: доска гладильная","31.09.11.190-032",796,"Штука","**"]
[760,"32.91.11","Метлы и щетки для домашней уборки. Пояснение по требуемой продукции: щетка для уборки (сметка)","32.91.11.000-015",796,"Штука","**"]
[761,"32.91.11","Метлы и щетки для домашней уборки. Пояснение по требуемой продукции: щетка для уборки (для мытья посуды)","32.91.11.000-019",796,"Штука","**"]
[null,null,null,"32.91.11.000-020",796,"Штука","**"]
[762,"32.91.11","Метлы и щетки для домашней уборки. Пояснение по требуемой продукции: держатель насадок для МОП","32.91.11.000-003",796,"Штука","**"]
[null,null,null,"32.91.11.000-029",796,"Штука","**"]
[null,null,null,"32.91.11.000-030",796,"Штука","**"]
[null,null,null,"32.91.11.000-031",796,"Штука","**"]
[763,"32.91.11","Метлы и щетки для домашней уборки. Пояснение по требуемой продукции: комплект для уборки (набор для уборки совок и щетка)","32.91.11.000-005",839,"Комплект","**"]
[null,null,null,"32.91.11.000-006",839,"Комплект","**"]
[null,null,null,"32.91.11.000-007",839,"Комплект","**"]
[null,null,null,"32.91.11.000-008",839,"Комплект","**"]
[null,null,null,"32.91.11.000-012",839,"Комплект","**"]
[764,"32.91.11","Метлы и щетки для домашней уборки. Пояснение по требуемой продукции: метла для уборки (полипропиленовая метла с деревянной ручкой)","32.91.11.000-004",796,"Штука","**"]
[765,"32.91.11","Метлы и щетки для домашней уборки. Пояснение по требуемой продукции: ручка для МОП","32.91.11.000-002",796,"Штука","**"]
[766,"32.91.11","Метлы и щетки для домашней уборки. Пояснение по требуемой продукции: щетка для уборки (для швабры)","32.91.11.000-001",796,"Штука","**"]
[null,null,null,"32.91.11.000-009",796,"Штука","**"]
[null,null,null,"32.91.11.000-025",796,"Штука","**"]
[767,"32.91.11","Метлы и щетки для домашней уборки. Пояснение по требуемой продукции: метла для уборки (веник хозяйственный)","32.91.11.000-010",796,"Штука","**"]
[768,"32.91.11","Метлы и щетки для домашней уборки. Пояснение по требуемой продукции: щетка для уборки (набор для уборки ручка и щетка)","32.91.11.000-021",796,"Штука","**"]
[769,"32.91.11","Метлы и щетки для домашней уборки. Пояснение по требуемой продукции: метла для уборки (полипропиленовая с металлическим черенком)","32.91.11.000-016",796,"Штука","**"]
[770,"32.91.11","Метлы и щетки для домашней уборки. Пояснение по требуемой продукции: метла для уборки (натуральная с черенком)","32.91.11.000-017",796,"Штука","**"]
[771,"32.91.11","Метлы и щетки для домашней уборки. Пояснение по требуемой продукции: комплект для уборки (набор для уборки держатель насадки МОП и рукоятка)","32.91.11.000-014",839,"Комплект","**"]
[null,null,null,"32.91.11.000-023",839,"Комплект","**"]
[null,null,null,"32.91.11.000-026",839,"Комплект","**"]
[772,"32.91.11","Метлы и щетки для домашней уборки. Пояснение по требуемой продукции: комплект для уборки (с насадкой валик ПВХ с механизмом отжима)","32.91.11.000-024",839,"Комплект","**"]
[773,"32.91.11","Метлы и щетки для домашней уборки. Пояснение по требуемой продукции: рукоятка (черенок из металлопластика)","32.91.11.000-011",796,"Штука","**"]
[null,null,null,"32.91.11.000-022",796,"Штука","**"]
[774,"32.91.11","Метлы и щетки для домашней уборки. Пояснение по требуемой продукции: метла для уборки (натуральная без черенка)","32.91.11.000-018",796,"Штука","**"]
[775,"32.91.11","Метлы и щетки для домашней уборки. Пояснение по требуемой продукции: щетка для мытья окон","32.91.11.000-027",796,"Штука","**"]
[null,null,null,"32.91.11.000-028",796,"Штука","**"]
[776,"32.91.12","Зубные щетки, щетки для волос и прочие туалетные щетки для ухода за внешностью; художественные кисти, кисточки для письма, косметические кисточки. Пояснение по требуемой продукции: мочалка для тела","32.91.12.130-001",796,"Штука","**"]
[null,null,null,"32.91.12.130-002",796,"Штука","**"]
[777,"32.91.12","Зубные щетки, щетки для волос и прочие туалетные щетки для ухода за внешностью; художественные кисти, кисточки для письма, косметические кисточки. Пояснение по требуемой продукции: зубная щетка","32.91.12.110-001",796,"Штука","**"]
[null,null,null,"32.91.12.110-002",796,"Штука","**"]
[778,"32.91.19","Щетки прочие, не включенные в другие группировки. Пояснение по требуемой продукции: ерш","32.91.19.130-001",796,"Штука","**"]
[null,null,null,"32.91.19.130-002",796,"Штука","**"]
[779,"32.99.52","Расчески, гребни для волос и аналогичные изделия; шпильки для волос; зажимы для завивки, бигуди; пульверизаторы для духов и их насадки и головки. Пояснение по требуемой продукции: расческа","32.99.52.110-001",796,"Штука","**"]
["2.7. Перечень товарных позиций части «Средства индивидуальной защиты»"]
[null,null,null,"В соответствии с кодом конечного каталожного наименования (ККН)",null,null,"Предельная цена (руб. с НДС)"]
[780,"14.12.30","Спецодежда прочая. Пояснение по требуемой продукции: маска гигиеническая, многоразовая","14.12.30.190-014",796,"Штука","**"]
[781,"32.99.11","Уборы головные защитные и средства защиты прочие. Пояснение по требуемой продукции: респиратор","32.99.11.120-004",796,"Штука","**"]
[null,null,null,"32.99.11.120-001",796,"Штука","**"]
[null,null,null,"32.99.11.120-002",796,"Штука","**"]
[null,null,null,"32.99.11.120-003",796,"Штука","**"]
[782,"32.99.11","Уборы головные защитные и средства защиты прочие. Пояснение по требуемой продукции: очки защитные","32.99.11.160-002",796,"Штука","**"]
[null,null,null,"32.99.11.160-006",796,"Штука","**"]
[783,"32.99.11","Уборы головные защитные и средства защиты прочие. Пояснение по требуемой продукции: щиток лицевой защитный","32.99.11.160-005",796,"Штука","**"]
["2.8. Перечень работ по уборке внутриквартальных территорий "]
[784,"81.29.19","Ручная уборка в зимний период усовершенствованных покрытий: подметание свежевыпавшего снега толщиной слоя до 2 см, сгребание снега в валы или кучи","Единица измерения","055","Квадратный метр","**"]
[null,null,null,"Предельная цена за 1 кв. м",383,"Рубль","**"]
[785,"81.29.19","Ручная уборка в зимний период усовершенствованных покрытий: сдвигание свежевыпавшего снега толщиной слоя более 2 см движком в валы или кучи","Единица измерения","055","Квадратный метр","**"]
[null,null,null,"Предельная цена за 1 кв. м",383,"Рубль","**"]
[786,"81.29.19","Ручная уборка в зимний период усовершенствованных покрытий: подметание территории в дни без снегопадов","Единица измерения","055","Квадратный метр","**"]
[null,null,null,"Предельная цена за 1 кв. м",383,"Рубль","**"]
[787,"81.29.19","Ручная уборка в зимний период усовершенствованных покрытий: подборка после механизированной уборки (очистка участков территорий от снега и наледи при механизированной уборке: \n1) очистка вручную участков, не доступных для уборки машин; \n2) сдвигание снега и наледи на полосу механизированной уборки)","Единица измерения","055","Квадратный метр","**"]
[null,null,null,"Предельная цена за 1 кв. м",383,"Рубль","**"]
[788,"81.29.19","Ручная уборка в зимний период усовершенствованных покрытий: очистка территорий с усовершенствованным покрытием от уплотненного снега и снежно-ледяных образований","Единица измерения","055","Квадратный метр","**"]
[null,null,null,"Предельная цена за 1 кв. м",383,"Рубль","**"]
[789,"81.29.19","Ручная уборка в зимний период усовершенствованных покрытий: обработка территории противогололедными материалами","Единица измерения","055","Квадратный метр","**"]
[null,null,null,"Предельная цена за 1 кв. м",383,"Рубль","**"]
[790,"81.29.19","Ручная уборка в зимний период неусовершенствованных покрытий: подметание свежевыпавшего снега толщиной слоя до 2 см, сгребание снега в валы или кучи","Единица измерения","055","Квадратный метр","**"]
[null,null,null,"Предельная цена за 1 кв. м",383,"Рубль","**"]
[791,"81.29.19","Ручная уборка в зимний период неусовершенствованных покрытий: сдвигание свежевыпавшего снега толщиной слоя более 2 см движком в валы или кучи","Единица измерения","055","Квадратный метр","**"]
[null,null,null,"Предельная цена за 1 кв. м",383,"Рубль","**"]
[792,"81.29.19","Ручная уборка в зимний период неусовершенствованных покрытий: подметание территории в дни без снегопадов","Единица измерения","055","Квадратный метр","**"]
[null,null,null,"Предельная цена за 1 кв. м",383,"Рубль","**"]
[793,"81.29.19","Ручная уборка в зимний период неусовершенствованных покрытий: подборка после механизированной уборки (очистка участков территорий от снега и наледи при механизированной уборке: \n1) очистка вручную участков, не доступных для уборки машин;\n2) сдвигание снега и наледи на полосу механизированной уборки)","Единица измерения","055","Квадратный метр","**"]
[null,null,null,"Предельная цена за 1 кв. м",383,"Рубль","**"]
[794,"81.29.19","Ручная уборка в зимний период неусовершенствованных покрытий: обработка территории противогололедными материалами","Единица измерения","055","Квадратный метр","**"]
[null,null,null,"Предельная цена за 1 кв. м",383,"Рубль","**"]
[795,"81.29.19","Ручная уборка в зимний период газонов: уборка газонов от мусора","Единица измерения","055","Квадратный метр","**"]
[null,null,null,"Предельная цена за 1 кв. м",383,"Рубль","**"]
[796,"81.29.19","Механизированная уборка в зимний период усовершенствованных покрытий: подметание свежевыпавшего снега толщиной слоя до 2 см ","Единица измерения","055","Квадратный метр","**"]
[null,null,null,"Предельная цена за 1 кв. м",383,"Рубль","**"]
[797,"81.29.19","Механизированная уборка в зимний период усовершенствованных покрытий: уборка свежевыпавшего снега толщиной слоя свыше 2 см (сдвигание свежевыпавшего снега в валы или кучи с помощью плуга с одновременным подметанием щеткой)","Единица измерения","055","Квадратный метр","**"]
[null,null,null,"Предельная цена за 1 кв. м",383,"Рубль","**"]
[798,"81.29.19","Механизированная уборка в зимний период усовершенствованных покрытий: очистка территорий с усовершенствованным покрытием от уплотненного снега и снежно-ледяных образований","Единица измерения","055","Квадратный метр","**"]
[null,null,null,"Предельная цена за 1 кв. м",383,"Рубль","**"]
[799,"81.29.19","Механизированная уборка в зимний период усовершенствованных покрытий: подметание территории в дни без снегопада","Единица измерения","055","Квадратный метр","**"]
[null,null,null,"Предельная цена за 1 кв. м",383,"Рубль","**"]
[800,"81.29.19","Механизированная уборка в зимний период усовершенствованных покрытий: обработка территории противогололедными материалами","Единица измерения","055","Квадратный метр","**"]
[null,null,null,"Предельная цена за 1 кв. м",383,"Рубль","**"]
[801,"81.29.19","Механизированная уборка в зимний период неусовершенствованных покрытий: подметание свежевыпавшего снега толщиной слоя до 2 см","Единица измерения","055","Квадратный метр","**"]
[null,null,null,"Предельная цена за 1 кв. м",383,"Рубль","**"]
[802,"81.29.19","Механизированная уборка в зимний период неусовершенствованных покрытий: уборка свежевыпавшего снега толщиной слоя свыше 2 см (сдвигание свежевыпавшего снега в валы или кучи с помощью плуга с одновременным подметанием щеткой)","Единица измерения","055","Квадратный метр","**"]
[null,null,null,"Предельная цена за 1 кв. м",383,"Рубль","**"]
[803,"81.29.19","Механизированная уборка в зимний период неусовершенствованных покрытий: подметание территории в дни без снегопада","Единица измерения","055","Квадратный метр","**"]
[null,null,null,"Предельная цена за 1 кв. м",383,"Рубль","**"]
[804,"81.29.19","Механизированная уборка в зимний период неусовершенствованных покрытий: обработка территории противогололедными материалами","Единица измерения","055","Квадратный метр","**"]
[null,null,null,"Предельная цена за 1 кв. м",383,"Рубль","**"]
[805,"81.29.19","Прочие работы в зимний период: уборка лотковой зоны с очисткой верха бордюрного камня и усовершенствованного покрытия от него в сторону снежного вала на расстоянии не менее 0,5 м","Единица измерения","055","Квадратный метр","**"]
[null,null,null,"Предельная цена за 1 кв. м",383,"Рубль","**"]
[806,"81.29.19","Прочие работы в зимний период: расчистка крышек люков и амбразур патрубков дождевой канализации от мусора, снега и льда","Единица измерения",796,"Штука","**"]
[null,null,null,"Предельная цена за 1 штуку",383,"Рубль","**"]
[807,"81.29.19","Прочие работы в зимний период: раздвижение снежных валов в местах размещения амбразур для обеспечения постоянного отвода талых вод при наступлении оттепели","Единица измерения",876,"Условная единица","**"]
[null,null,null,"Предельная цена за 1 куб.м",383,"Рубль","**"]
[808,"81.29.19","Прочие работы в зимний период: погрузка, вывоз и утилизация снега","Единица измерения",876,"Условная единица","**"]
[null,null,null,"Предельная цена за 1 куб.м",383,"Рубль","**"]
[809,"81.29.19","Прочие работы в зимний период: очистка урн от мусора","Единица измерения",796,"Штука","**"]
[null,null,null,"Предельная цена за 1 штуку",383,"Рубль","**"]
[810,"81.29.19","Прочие работы в зимний период: промывка урн","Единица измерения",796,"Штука","**"]
[null,null,null,"Предельная цена за 1 штуку",383,"Рубль","**"]
[811,"81.29.19","Ручная уборка территорий в летний период усовершенствованных покрытий: подметание территории (подметание пыли и сора с поверхности покрытий, уборка и транспортировка мусора в установленное место)","Единица измерения","055","Квадратный метр","**"]
[null,null,null,"Предельная цена за 1 кв. м",383,"Рубль","**"]
[812,"81.29.19","Ручная уборка территорий в летний период усовершенствованных покрытий: мойка территории","Единица измерения","055","Квадратный метр","**"]
[null,null,null,"Предельная цена за 1 кв. м",383,"Рубль","**"]
[813,"81.29.19","Ручная уборка территорий в летний период усовершенствованных покрытий: поливка территории","Единица измерения","055","Квадратный метр","**"]
[null,null,null,"Предельная цена за 1 кв. м",383,"Рубль","**"]
[814,"81.29.19","Ручная уборка территорий в летний период неусовершенствованных покрытий: подметание территории (подметание пыли и сора с поверхности покрытий, уборка и транспортировка мусора в установленное место)","Единица измерения","055","Квадратный метр","**"]
[null,null,null,"Предельная цена за 1 кв. м",383,"Рубль","**"]
[815,"81.29.19","Ручная уборка территорий в летний период неусовершенствованных покрытий: мойка территории","Единица измерения","055","Квадратный метр","**"]
[null,null,null,"Предельная цена за 1 кв. м",383,"Рубль","**"]
[816,"81.29.19","Ручная уборка территорий в летний период неусовершенствованных покрытий: поливка территории","Единица измерения","055","Квадратный метр","**"]
[null,null,null,"Предельная цена за 1 кв. м",383,"Рубль","**"]
[817,"81.29.19","Ручная уборка территорий в летний период газонов: уборка газонов от мусора","Единица измерения","055","Квадратный метр","**"]
[null,null,null,"Предельная цена за 1 кв. м",383,"Рубль","**"]
[818,"81.29.19","Ручная уборка территорий в летний период газонов: выкашивание газонов, уборка, погрузка и вывоз скошенной травы","Единица измерения","055","Квадратный метр","**"]
[null,null,null,"Предельная цена за 1 кв. м",383,"Рубль","**"]
[819,"81.29.19","Ручная уборка территорий в летний период газонов: очистка газонов от опавших листьев (сгребание граблями листьев, сучьев и другого мусора, относка за пределы газона, транспортировка мусора в установленное место)","Единица измерения","055","Квадратный метр","**"]
[null,null,null,"Предельная цена за 1 кв. м",383,"Рубль","**"]
[820,"81.29.19","Механизированная уборка территорий в летний период усовершенствованных покрытий: подметание территории (с одновременным увлажнением)","Единица измерения","055","Квадратный метр","**"]
[null,null,null,"Предельная цена за 1 кв. м",383,"Рубль","**"]
[821,"81.29.19","Механизированная уборка территорий в летний период усовершенствованных покрытий: мойка территории","Единица измерения","055","Квадратный метр","**"]
[null,null,null,"Предельная цена за 1 кв. м",383,"Рубль","**"]
[822,"81.29.19","Механизированная уборка территорий в летний период усовершенствованных покрытий: поливка территории","Единица измерения","055","Квадратный метр","**"]
[null,null,null,"Предельная цена за 1 кв. м",383,"Рубль","**"]
[823,"81.29.19","Механизированная уборка территорий в летний период неусовершенствованных покрытий: подметание территории (с одновременным увлажнением)","Единица измерения","055","Квадратный метр","**"]
[null,null,null,"Предельная цена за 1 кв. м",383,"Рубль","**"]
[824,"81.29.19","Механизированная уборка территорий в летний период неусовершенствованных покрытий: мойка территории","Единица измерения","055","Квадратный метр","**"]
[null,null,null,"Предельная цена за 1 кв. м",383,"Рубль","**"]
[825,"81.29.19","Механизированная уборка территорий в летний период неусовершенствованных покрытий: поливка территории","Единица измерения","055","Квадратный метр","**"]
[null,null,null,"Предельная цена за 1 кв. м",383,"Рубль","**"]
[826,"81.29.19","Механизированная уборка в летний период газонов: выкашивание газонов, уборка, погрузка и вывоз скошенной травы","Единица измерения","055","Квадратный метр","**"]
[null,null,null,"Предельная цена за 1 кв. м",383,"Рубль","**"]
[827,"81.29.19","Прочие работы в летний период: расчистка крышек люков и амбразур патрубков дождевой канализации от смета, листвы и мусора без сброса листьев и смета в колодцы ливневой канализации, другие водоприемные устройства, а также в реки, каналы и другие водоемы","Единица измерения",796,"Штука","**"]
[null,null,null,"Предельная цена за 1 штуку",383,"Рубль","**"]
[828,"81.29.19","Прочие работы в летний период: прореживание и формовка кроны кустарников","Единица измерения",796,"Штука","**"]
[null,null,null,"Предельная цена за 1 штуку",383,"Рубль","**"]
[829,"81.29.19","Прочие работы в летний период: очистка урн от мусора","Единица измерения",796,"Штука","**"]
[null,null,null,"Предельная цена за 1 штуку",383,"Рубль","**"]
[830,"81.29.19","Прочие работы в летний период: промывка урн","Единица измерения",796,"Штука","**"]
[null,null,null,"Предельная цена за 1 штуку",383,"Рубль","**"]
[831,"81.29.19","Уборка территорий контейнерных площадок, специальных площадок для складирования крупногабаритных отходов: ежедневная уборка территорий контейнерных площадок, специальных площадок для складирования крупногабаритных отходов, а также в случае загрязнения отходами из контейнеров прилегающей к ней территории","Единица измерения","055","Квадратный метр","**"]
[null,null,null,"Предельная цена за 1 кв. м",383,"Рубль","**"]
[832,"81.29.19","Уборка территорий контейнерных площадок, специальных площадок для складирования крупногабаритных отходов: мойка и дезинфекция территорий контейнерных площадок, специальных площадок для складирования крупногабаритных отходов в летний период с 16 апреля по 15 октября по мере необходимости, но не реже одного раза в неделю","Единица измерения","055","Квадратный метр","**"]
[null,null,null,"Предельная цена за 1 кв. м",383,"Рубль","**"]
[833,"81.29.19","Уборка территорий контейнерных площадок, специальных площадок для складирования крупногабаритных отходов: дезинфекция территорий контейнерных площадок, специальных площадок для складирования крупногабаритных отходов в зимний период с 16 октября по 15 апреля по мере необходимости","Единица измерения","055","Квадратный метр","**"]
[null,null,null,"Предельная цена за 1 кв. м",383,"Рубль","**"]
[834,"81.29.19","Уборка территорий контейнерных площадок, специальных площадок для складирования крупногабаритных отходов: дератизация территорий контейнерных площадок, специальных площадок для складирования крупногабаритных отходов по мере необходимости, но не реже двух раз в год в весенний и осенний периоды","Единица измерения","055","Квадратный метр","**"]
[null,null,null,"Предельная цена за 1 кв. м",383,"Рубль","**"]
[835,"81.29.19","Уборка территорий контейнерных площадок, специальных площадок для складирования крупногабаритных отходов: уборка мусора, просыпавшегося из контейнеров, кроме случаев просыпания мусора при погрузочно-разгрузочных работах в ходе вывоза отходов","Единица измерения","055","Квадратный метр","**"]
[null,null,null,"Предельная цена за 1 кв. м",383,"Рубль","**"]
["2.9. Перечень товарных позиций части «Здания социальной инфраструктуры»"]
[836,"41.20.20","Здания нежилые. Пояснение по требуемой продукции: отдельно стоящие нежилые здания с бассейном для размещения дошкольных образовательных организаций на 100 мест","Мощность",698,"Место",100]
[null,null,null,"Конструктивные особенности","-","-","Возможные значения: кирпично-монолитное здание, панельное здание"]
[null,null,null,"Предельная цена за место",383,"Рубль","Не более 3 948 430,76"]
[837,"41.20.20","Здания нежилые. Пояснение по требуемой продукции: отдельно стоящие нежилые здания с бассейном для размещения дошкольных образовательных организаций на 105 мест","Мощность",698,"Место",105,null,120]
[null,null,null,"Конструктивные особенности","-","-","Возможные значения: кирпично-монолитное здание, панельное здание"]
[null,null,null,"Предельная цена за место",383,"Рубль","Не более 3 890 561,52"]
[838,"41.20.20","Здания нежилые. Пояснение по требуемой продукции: отдельно стоящие нежилые здания с бассейном для размещения дошкольных образовательных организаций на 110 мест","Мощность",698,"Место",110,null,120]
[null,null,null,"Конструктивные особенности","-","-","Возможные значения: кирпично-монолитное здание, панельное здание"]
[null,null,null,"Предельная цена за место",383,"Рубль","Не более 3 832 478,40"]
[839,"41.20.20","Здания нежилые. Пояснение по требуемой продукции: отдельно стоящие нежилые здания с бассейном для размещения дошкольных образовательных организаций на 120 мест","Мощность",698,"Место",120,null,120]
[null,null,null,"Конструктивные особенности","-","-","Возможные значения: кирпично-монолитное здание, панельное здание"]
[null,null,null,"Предельная цена за место",383,"Рубль","Не более 3 769 067,03"]
[840,"41.20.20","Здания нежилые. Пояснение по требуемой продукции: отдельно стоящие нежилые здания для размещения дошкольных образовательных организаций на 125 мест","Мощность",698,"Место",125,null,120]
[null,null,null,"Конструктивные особенности","-","-","Возможные значения: кирпично-монолитное здание, панельное здание"]
[null,null,null,"Предельная цена за место",383,"Рубль","Не более 3 099 051,61"]
["840-1","41.20.20","Здания нежилые. Пояснение по требуемой продукции: отдельно стоящие нежилые здания с бассейном для размещения дошкольных образовательных организаций на 130 мест","Мощность",698,"Место",130,null,120]
[null,null,null,"Конструктивные особенности","-","-","Возможные значения: кирпично-монолитное здание, панельное здание"]
[null,null,null,"Предельная цена за место",383,"Рубль","Не более 3 718 379,85"]
[841,"41.20.20","Здания нежилые. Пояснение по требуемой продукции: отдельно стоящие нежилые здания с бассейном для размещения дошкольных образовательных организаций на 140 мест","Мощность",698,"Место",140,null,120]
[null,null,null,"Конструктивные особенности","-","-","Возможные значения: кирпично-монолитное здание, панельное здание"]
[null,null,null,"Предельная цена за место",383,"Рубль","Не более 3 667 692,66"]
[842,"41.20.20","Здания нежилые. Пояснение по требуемой продукции: отдельно стоящие нежилые здания для размещения дошкольных образовательных организаций на 140 мест","Мощность",698,"Место",140,null,120]
[null,null,null,"Конструктивные особенности","-","-","Возможные значения: кирпично-монолитное здание, панельное здание"]
[null,null,null,"Предельная цена за место",383,"Рубль","Не более 3 055 665,82"]
[843,"41.20.20","Здания нежилые. Пояснение по требуемой продукции: отдельно стоящие нежилые здания с бассейном для размещения дошкольных образовательных организаций на 160 мест","Мощность",698,"Место",160,null,120]
[null,null,null,"Конструктивные особенности","-","-","Возможные значения: кирпично-монолитное здание, панельное здание"]
[null,null,null,"Предельная цена за место",383,"Рубль","Не более 3 451 906,07"]
[844,"41.20.20","Здания нежилые. Пояснение по требуемой продукции: отдельно стоящие нежилые здания для размещения дошкольных образовательных организаций на 160 мест","Мощность",698,"Место",160,null,120]
[null,null,null,"Конструктивные особенности","-","-","Возможные значения: кирпично-монолитное здание, панельное здание"]
[null,null,null,"Предельная цена за место",383,"Рубль","Не более 2 872 357,22"]
[845,"41.20.20","Здания нежилые. Пояснение по требуемой продукции: отдельно стоящие нежилые здания с бассейном для размещения дошкольных образовательных организаций на 170 мест","Мощность",698,"Место",170,null,120]
[null,null,null,"Конструктивные особенности","-","-","Возможные значения: кирпично-монолитное здание, панельное здание"]
[null,null,null,"Предельная цена за место",383,"Рубль","Не более 3 343 584,11"]
[846,"41.20.20","Здания нежилые. Пояснение по требуемой продукции: отдельно стоящие нежилые здания с бассейном для размещения дошкольных образовательных организаций на 180 мест","Мощность",698,"Место",180,null,120]
[null,null,null,"Конструктивные особенности","-","-","Возможные значения: кирпично-монолитное здание, панельное здание"]
[null,null,null,"Предельная цена за место",383,"Рубль","Не более 3 218 929,19"]
[847,"41.20.20","Здания нежилые. Пояснение по требуемой продукции: отдельно стоящие нежилые здания для размещения дошкольных образовательных организаций на 180 мест","Мощность",698,"Место",180,null,120]
[null,null,null,"Конструктивные особенности","-","-","Возможные значения: кирпично-монолитное здание, панельное здание"]
[null,null,null,"Предельная цена за место",383,"Рубль","Не более 2 676 191,28"]
[848,"41.20.20","Здания нежилые. Пояснение по требуемой продукции: отдельно стоящие нежилые здания с бассейном для размещения дошкольных образовательных организаций на 190 мест","Мощность",698,"Место",190,null,120]
[null,null,null,"Конструктивные особенности","-","-","Возможные значения: кирпично-монолитное здание, панельное здание"]
[null,null,null,"Предельная цена за место",383,"Рубль","Не более 3 126 310,27"]
[849,"41.20.20","Здания нежилые. Пояснение по требуемой продукции: отдельно стоящие нежилые здания для размещения дошкольных образовательных организаций на 190 мест","Мощность",698,"Место",190,null,120]
[null,null,null,"Конструктивные особенности","-","-","Возможные значения: кирпично-монолитное здание, панельное здание"]
[null,null,null,"Предельная цена за место",383,"Рубль","Не более 2 598 675,69"]
[850,"41.20.20","Здания нежилые. Пояснение по требуемой продукции: отдельно стоящие нежилые здания с бассейном для размещения дошкольных образовательных организаций на 200 мест","Мощность",698,"Место",200,null,120]
[null,null,null,"Конструктивные особенности","-","-","Возможные значения: кирпично-монолитное здание, панельное здание"]
[null,null,null,"Предельная цена за место",383,"Рубль","Не более 3 023 831,39"]
[851,"41.20.20","Здания нежилые. Пояснение по требуемой продукции: отдельно стоящие нежилые здания с бассейном для размещения дошкольных образовательных организаций на 220 мест","Мощность",698,"Место",220,null,120]
[null,null,null,"Конструктивные особенности","-","-","Возможные значения: кирпично-монолитное здание, панельное здание"]
[null,null,null,"Предельная цена за место",383,"Рубль","Не более 2 815 956,61"]
[852,"41.20.20","Здания нежилые. Пояснение по требуемой продукции: отдельно стоящие нежилые здания с бассейном для размещения дошкольных образовательных организаций на 240 мест","Мощность",698,"Место",240,null,120]
[null,null,null,"Конструктивные особенности","-","-","Возможные значения: кирпично-монолитное здание, панельное здание"]
[null,null,null,"Предельная цена за место",383,"Рубль","Не более 2 661 235,45"]
[853,"41.20.20","Здания нежилые. Пояснение по требуемой продукции: отдельно стоящие нежилые здания для размещения дошкольных образовательных организаций на 240 мест","Мощность",698,"Место",240,null,120]
[null,null,null,"Конструктивные особенности","-","-","Возможные значения: кирпично-монолитное здание, панельное здание"]
[null,null,null,"Предельная цена за место",383,"Рубль","Не более 2 213 762,51"]
[854,"41.20.20","Здания нежилые. Пояснение по требуемой продукции: отдельно стоящие нежилые здания с бассейном для размещения дошкольных образовательных организаций на 250 мест","Мощность",698,"Место",250,null,120]
[null,null,null,"Конструктивные особенности","-","-","Возможные значения: кирпично-монолитное здание, панельное здание"]
[null,null,null,"Предельная цена за место",383,"Рубль","Не более 2 567 926,60"]
[855,"41.20.20","Здания нежилые. Пояснение по требуемой продукции: отдельно стоящие нежилые здания для размещения дошкольных образовательных организаций на 250 мест","Мощность",698,"Место",250,null,120]
[null,null,null,"Конструктивные особенности","-","-","Возможные значения: кирпично-монолитное здание, панельное здание"]
[null,null,null,"Предельная цена за место",383,"Рубль","Не более 2 133 139,66"]
[856,"41.20.20","Здания нежилые. Пояснение по требуемой продукции: отдельно стоящие нежилые здания с бассейном для размещения дошкольных образовательных организаций на 280 мест","Мощность",698,"Место",280,null,120]
[null,null,null,"Конструктивные особенности","-","-","Возможные значения: кирпично-монолитное здание, панельное здание"]
[null,null,null,"Предельная цена за место",383,"Рубль","Не более 2 549 352,85"]
[857,"41.20.20","Здания нежилые. Пояснение по требуемой продукции: отдельно стоящие нежилые здания с бассейном для размещения дошкольных образовательных организаций на 295 мест","Мощность",698,"Место",295,null,120]
[null,null,null,"Конструктивные особенности","-","-","Возможные значения: кирпично-монолитное здание, панельное здание"]
[null,null,null,"Предельная цена за место",383,"Рубль","Не более 2 540 065,98"]
[858,"41.20.20","Здания нежилые. Пояснение по требуемой продукции: отдельно стоящие нежилые здания с бассейном для размещения дошкольных образовательных организаций на 300 мест","Мощность",698,"Место",300,null,120]
[null,null,null,"Конструктивные особенности","-","-","Возможные значения: кирпично-монолитное здание, панельное здание"]
[null,null,null,"Предельная цена за место",383,"Рубль","Не более 2 503 339,60"]
[859,"41.20.20","Здания нежилые. Пояснение по требуемой продукции: отдельно стоящие нежилые здания с бассейном для размещения дошкольных образовательных организаций на 320 мест","Мощность",698,"Место",320,null,120]
[null,null,null,"Конструктивные особенности","-","-","Возможные значения: кирпично-монолитное здание, панельное здание"]
[null,null,null,"Предельная цена за место",383,"Рубль","Не более 2 356 337,99"]
[860,"41.20.20","Здания нежилые. Пояснение по требуемой продукции: отдельно стоящие нежилые здания с бассейном для размещения дошкольных образовательных организаций на 415 мест","Мощность",698,"Место",415,null,120]
[null,null,null,"Конструктивные особенности","-","-","Возможные значения: кирпично-монолитное здание, панельное здание"]
[null,null,null,"Предельная цена за место",383,"Рубль","Не более 2 085 746,14"]
["860-1","41.20.20","Здания нежилые. Пояснение по требуемой продукции: отдельно стоящие нежилые здания с бассейном для размещения общеобразовательных организаций на 440 мест","Мощность",698,"Место",440,null,120]
[null,null,null,"Конструктивные особенности","-","-","Возможные значения: кирпично-монолитное здание, панельное здание"]
[null,null,null,"Предельная цена за место",383,"Рубль","Не более 2 014 537,76"]
["860-2","41.20.20","Здания нежилые. Пояснение по требуемой продукции: отдельно стоящие нежилые здания с бассейном для размещения общеобразовательных организаций на 375 мест","Мощность",698,"Место",375,null,120]
[null,null,null,"Конструктивные особенности","-","-","Возможные значения: кирпично-монолитное здание, панельное здание"]
[null,null,null,"Предельная цена за место",383,"Рубль","Не более 3 372 747,22"]
[861,"41.20.20","Здания нежилые. Пояснение по требуемой продукции: отдельно стоящие нежилые здания с бассейнами для размещения общеобразовательных организаций на 450 мест","Мощность",698,"Место",450,null,120]
[null,null,null,"Наличие бассейна",796,"Штука","Не менее двух"]
[null,null,null,"Конструктивные особенности","-","-","Возможные значения: кирпично-монолитное здание, панельное здание"]
[null,null,null,"Предельная цена за место",383,"Рубль","Не более 3 378 475,57"]
[862,"41.20.20","Здания нежилые. Пояснение по требуемой продукции: отдельно стоящие нежилые здания с бассейнами для размещения общеобразовательных организаций на 550 мест","Мощность",698,"Место",550,null,120]
[null,null,null,"Наличие бассейна",796,"Штука","Не менее двух"]
[null,null,null,"Конструктивные особенности","-","-","Возможные значения: кирпично-монолитное здание, панельное здание"]
[null,null,null,"Предельная цена за место",383,"Рубль","Не более 3 099 071,05"]
[863,"41.20.20","Здания нежилые. Пояснение по требуемой продукции: отдельно стоящие нежилые здания с бассейнами для размещения общеобразовательных организаций на 685 мест","Мощность",698,"Место",685,null,120]
[null,null,null,"Наличие бассейна",796,"Штука","Не менее двух"]
[null,null,null,"Конструктивные особенности","-","-","Возможные значения: кирпично-монолитное здание, панельное здание"]
[null,null,null,"Предельная цена за место",383,"Рубль","Не более 2 721 874,94"]
[864,"41.20.20","Здания нежилые. Пояснение по требуемой продукции: отдельно стоящие нежилые здания с бассейнами для размещения общеобразовательных организаций на 700 мест","Мощность",698,"Место",700,null,120]
[null,null,null,"Наличие бассейна",796,"Штука","Не менее двух"]
[null,null,null,"Конструктивные особенности","-","-","Возможные значения: кирпично-монолитное здание, панельное здание"]
[null,null,null,"Предельная цена за место",383,"Рубль","Не более 2 679 964,26"]
[865,"41.20.20","Здания нежилые. Пояснение по требуемой продукции: отдельно стоящие нежилые здания с бассейнами для размещения общеобразовательных организаций на 825 мест","Мощность",698,"Место",825,null,120]
[null,null,null,"Наличие бассейна",796,"Штука","Не менее двух"]
[null,null,null,"Конструктивные особенности","-","-","Возможные значения: кирпично-монолитное здание, панельное здание"]
[null,null,null,"Предельная цена за место",383,"Рубль","Не более 2 330 708,61"]
[866,"41.20.20","Здания нежилые. Пояснение по требуемой продукции: отдельно стоящие нежилые здания для размещения общеобразовательных организаций на 825 мест","Мощность",698,"Место",825,null,120]
[null,null,null,"Конструктивные особенности","-","-","Возможные значения: кирпично-монолитное здание, панельное здание"]
[null,null,null,"Предельная цена за место",383,"Рубль","Не более 1 931 423,24"]
[867,"41.20.20","Здания нежилые. Пояснение по требуемой продукции: отдельно стоящие нежилые здания с бассейнами для размещения общеобразовательных организаций на 975 мест","Мощность",698,"Место",975,null,120]
[null,null,null,"Наличие бассейна",796,"Штука","Не менее двух"]
[null,null,null,"Конструктивные особенности","-","-","Возможные значения: кирпично-монолитное здание, панельное здание"]
[null,null,null,"Предельная цена за место",383,"Рубль","Не более 2 280 059,39"]
[868,"41.20.20","Здания нежилые. Пояснение по требуемой продукции: отдельно стоящие нежилые здания с бассейнами для размещения общеобразовательных организаций на 1100 мест","Мощность",698,"Место",1100,null,120]
[null,null,null,"Наличие бассейна",796,"Штука","Не менее двух"]
[null,null,null,"Конструктивные особенности","-","-","Возможные значения: кирпично-монолитное здание, панельное здание"]
[null,null,null,"Предельная цена за место",383,"Рубль","Не более 2 237 851,71"]
[869,"41.20.20","Здания нежилые. Пояснение по требуемой продукции: отдельно стоящие нежилые здания с бассейнами для размещения общеобразовательных организаций на 1125 мест","Мощность",698,"Место",1125,null,120]
[null,null,null,"Наличие бассейна",796,"Штука","Не менее двух"]
[null,null,null,"Конструктивные особенности","-","-","Возможные значения: кирпично-монолитное здание, панельное здание"]
[null,null,null,"Предельная цена за место",383,"Рубль","Не более 2 229 410,17"]
[870,"41.20.20","Здания нежилые. Пояснение по требуемой продукции: отдельно стоящие нежилые здания с бассейнами для размещения общеобразовательных организаций на 1200 мест","Мощность",698,"Место",1200,null,120]
[null,null,null,"Наличие бассейна",796,"Штука","Не менее двух"]
[null,null,null,"Конструктивные особенности","-","-","Возможные значения: кирпично-монолитное здание, панельное здание"]
[null,null,null,"Предельная цена за место",383,"Рубль","Не более 2 204 085,56"]
[871,"41.20.20","Здания нежилые. Пояснение по требуемой продукции: отдельно стоящие нежилые здания с бассейнами для размещения общеобразовательных организаций на 1375 мест","Мощность",698,"Место",1375,null,120]
[null,null,null,"Наличие бассейна",796,"Штука","Не менее двух"]
[null,null,null,"Конструктивные особенности","-","-","Возможные значения: кирпично-монолитное здание, панельное здание"]
[null,null,null,"Предельная цена за место",383,"Рубль","Не более 2 144 994,81"]
[872,"41.20.20","Здания нежилые. Пояснение по требуемой продукции: отдельно стоящие нежилые здания с бассейнами для размещения общеобразовательных организаций на 1550 мест","Мощность",698,"Место",1550,null,120]
[null,null,null,"Наличие бассейна",796,"Штука","Не менее двух"]
[null,null,null,"Конструктивные особенности","-","-","Возможные значения: кирпично-монолитное здание, панельное здание"]
[null,null,null,"Предельная цена за место",383,"Рубль","Не более 2 085 904,05"]
[873,"41.20.20","Здания нежилые. Пояснение по требуемой продукции: отдельно стоящие нежилые здания с бассейнами для размещения общеобразовательных организаций на 1650 мест","Мощность",698,"Место",1650,null,120]
[null,null,null,"Наличие бассейна",796,"Штука","Не менее двух"]
[null,null,null,"Конструктивные особенности","-","-","Возможные значения: кирпично-монолитное здание, панельное здание"]
[null,null,null,"Предельная цена за место",383,"Рубль","Не более 2 052 137,90"]
["873-1","41.20.20","Здания нежилые. Пояснение по требуемой продукции: отдельно стоящие нежилые здания с бассейнами для размещения общеобразовательных организаций на 1750 мест","Мощность",698,"Место",1750,null,120]
[null,null,null,"Наличие бассейна",796,"Штука","Не менее двух"]
[null,null,null,"Конструктивные особенности","-","-","Возможные значения: кирпично-монолитное здание, панельное здание"]
[null,null,null,"Предельная цена за место",383,"Рубль","Не более 2 018 371,75"]
[874,"41.20.20","Здания нежилые. Пояснение по требуемой продукции: отдельно стоящие нежилые здания с бассейнами для размещения общеобразовательных организаций на 1925 мест","Мощность",698,"Место",1925,null,120]
[null,null,null,"Наличие бассейна",796,"Штука","Не менее двух"]
[null,null,null,"Конструктивные особенности","-","-","Возможные значения: кирпично-монолитное здание, панельное здание"]
[null,null,null,"Предельная цена за место",383,"Рубль","Не более 1 959 280,99"]
["2.10. Перечень товарных позиций части «Жилые помещения (квартиры)»"]
[875,"41.20.10","Здания жилые. Пояснение по требуемой продукции: жилые помещения (квартиры) общей площадью жилого помещения (квартиры) не более 42,00 кв. м, за исключением жилых помещений (квартир), в отношении которых установлены требования к доступности жилого помещения и общего имущества в многоквартирном доме для инвалида, приобретаемые путем участия \nСанкт-Петербурга в долевом строительстве многоквартирных домов со сроком ввода в эксплуатацию не позднее 31.12.2023","Конструктивные особенности","-","-","Возможные значения: панельное здание, кирпичное здание, блочное здание, кирпично-монолитное здание, монолитное здание",null,120]
[null,null,null,"Общая площадь жилого помещения (квартиры)","055","Квадратный метр","Не более 42,00"]
[null,null,null,"Предельная цена за 1 кв. м",383,"Рубль","Не более 177 634,91"]
[876,"41.20.10","Здания жилые. Пояснение по требуемой продукции: жилые помещения (квартиры) общей площадью жилого помещения (квартиры) не менее 42,01 кв. м и не более 67,00 кв. м, за исключением жилых помещений (квартир), в отношении которых установлены требования к доступности жилого помещения и общего имущества в многоквартирном доме для инвалида, приобретаемые путем участия Санкт-Петербурга в долевом строительстве многоквартирных домов со сроком ввода в эксплуатацию не позднее 31.12.2023","Конструктивные особенности","-","-","Возможные значения: панельное здание, кирпичное здание, блочное здание, кирпично-монолитное здание, монолитное здание",null,120]
[null,null,null,"Общая площадь жилого помещения (квартиры)","055","Квадратный метр","Не менее 42,01 и не более 67,00"]
[null,null,null,"Предельная цена за 1 кв. м",383,"Рубль","Не более 167 427,01"]
[877,"41.20.10","Здания жилые. Пояснение по требуемой продукции: жилые помещения (квартиры) общей площадью жилого помещения (квартиры) более 67,00 кв. м, за исключением жилых помещений (квартир), в отношении которых установлены требования к доступности жилого помещения и общего имущества в многоквартирном: доме для инвалида, приобретаемые путем участия \nСанкт-Петербурга в долевом строительстве многоквартирных домов со сроком ввода в эксплуатацию не позднее 31.12.2023","Конструктивные особенности","-","-","Возможные значения: панельное здание, кирпичное здание, блочное здание, кирпично-монолитное здание, монолитное здание",null,120]
[null,null,null,"Общая площадь жилого помещения (квартиры)","055","Квадратный метр","Более 67,00"]
[null,null,null,"Предельная цена за 1 кв. м",383,"Рубль","Не более 159 629,28"]
[878,"41.20.10","Здания жилые. Пояснение по требуемой продукции; жилые помещения (квартиры) общей площадью жилого помещения (квартиры) не более 42,00 кв. м, за исключением жилых помещений (квартир), в отношении которых установлены требования к доступности жилого помещения и общего имущества в многоквартирном доме для инвалида, приобретаемые путем участия Санкт-Петербурга в долевом строительстве многоквартирных домов со сроком ввода в эксплуатацию не позднее 31.12.2024","Конструктивные особенности","-","-","Возможные значения: панельное здание, кирпичное здание, блочное здание, кирпично-монолитное здание, монолитное здание",null,120]
[null,null,null,"Общая площадь жилого помещения (квартиры)","055","Квадратный метр","Не более 42,00"]
[null,null,null,"Предельная цена за 1 кв. м",383,"Рубль","Не более 169 162,35"]
[879,"41.20.10","Здания жилые. Пояснение по требуемой продукции: жилые помещения (квартиры) общей площадью жилого помещения (квартиры) не менее 42,01 кв. м и не более 67,00 кв. м, за исключением жилых помещений (квартир), в отношении которых установлены требования к доступности жилого помещения и общего имущества в многоквартирном доме для инвалида, приобретаемые путем участия Санкт-Петербурга в долевом строительстве многоквартирных домов со сроком ввода в эксплуатацию не позднее 31.12.2024","Конструктивные особенности","-","-","Возможные значения: панельное здание, кирпичное здание, блочное здание, кирпично-монолитное здание, монолитное здание",null,120]
[null,null,null,"Общая площадь жилого помещения (квартиры)","055","Квадратный метр","Не менее 42,01 и не более 67,00"]
[null,null,null,"Предельная цена за 1 кв. м",383,"Рубль","Не более 159 441,33"]
[880,"41.20.10","Здания жилые. Пояснение по требуемой продукции: жилые помещения (квартиры) общей площадью жилого помещения (квартиры) более 67,00 кв. м, за исключением жилых помещений (квартир), в отношении которых установлены требования к доступности жилого помещения и общего имущества в многоквартирном доме для инвалида, приобретаемые путем участия \nСанкт-Петербурга в долевом строительстве многоквартирных домов со сроком ввода в эксплуатацию не позднее 31.12.2024","Конструктивные особенности","-","-","Возможные значения: панельное здание, кирпичное здание, блочное здание, кирпично-монолитное здание, монолитное здание",null,120]
[null,null,null,"Общая площадь жилого помещения (квартиры)","055","Квадратный метр","Более 67,00"]
[null,null,null,"Предельная цена за 1 кв. м",383,"Рубль","Не более 152 015,53"]
[881,"41.20.10","Здания жилые. Пояснение по требуемой продукции: жилые помещения (квартиры) общей площадью жилого помещения (квартиры) не более 42,00 кв. м, за исключением жилых помещений (квартир), в отношении которых установлены требования к доступности жилого помещения и общего имущества в многоквартирном доме для инвалида, приобретаемые путем участия \nСанкт-Петербурга в долевом строительстве многоквартирных домов со сроком ввода в эксплуатацию не позднее 31.12.2025","Конструктивные особенности","-","-","Возможные значения: панельное здание, кирпичное здание, блочное здание, кирпично-монолитное здание, монолитное здание",null,120]
[null,null,null,"Общая площадь жилого помещения (квартиры)","055","Квадратный метр","Не более 42,00"]
[null,null,null,"Предельная цена за 1 кв. м",383,"Рубль","Не более 160 087,51"]
[882,"41.20.10","Здания жилые. Пояснение по требуемой продукции: жилые помещения (квартиры) общей площадью жилого помещения (квартиры) не менее 42,01 кв. м и не более 67,00 кв. м, за исключением жилых помещений (квартир), в отношении которых установлены требования к доступности жилого помещения и общего имущества в многоквартирном доме для инвалида, приобретаемые путем участия Санкт-Петербурга в долевом строительстве многоквартирных домов со сроком ввода в эксплуатацию не позднее 31.12.2025","Конструктивные особенности","-","-","Возможные значения: панельное здание, кирпичное здание, блочное здание, кирпично-монолитное здание, монолитное здание",null,120]
[null,null,null,"Общая площадь жилого помещения (квартиры)","055","Квадратный метр","Не менее 42,01 и не более 67,00"]
[null,null,null,"Предельная цена за 1 кв. м",383,"Рубль","Не более 150 887,98"]
[883,"41.20.10","Здания жилые. Пояснение по требуемой продукции: жилые помещения (квартиры) общей площадью жилого помещения (квартиры) более 67,00 кв. м, за исключением жилых помещений (квартир), в отношении которых установлены требования к доступности жилого помещения и общего имущества в многоквартирном доме для инвалида, приобретаемые путем участия Санкт-Петербурга в долевом строительстве многоквартирных домов со сроком ввода в эксплуатацию не позднее 31.12.2025","Конструктивные особенности","-","-","Возможные значения: панельное здание, кирпичное здание, блочное здание, кирпично-монолитное здание, монолитное здание",null,120]
[null,null,null,"Общая площадь жилого помещения (квартиры)","055","Квадратный метр","Более 67,00"]
[null,null,null,"Предельная цена за 1 кв. м",383,"Рубль","Не более 143 860,55"]
["2.11. Перечень услуг по покупке и продаже жилых зданий и занимаемых ими земельных участков"]
[884,"68.10.11","Услуги по покупке и продаже жилых зданий и занимаемых ими земельных участков. Пояснение по требуемым услугам: услуги по покупке и продаже жилых помещений (квартир) в многоквартирных домах общей площадью жилого помещения (квартиры) не более 42,00 кв. м, за исключением жилых помещений (квартир), в отношении которых установлены требования к доступности жилого помещения и общего имущества в многоквартирном доме для инвалида","Конструктивные особенности зданий, в которых приобретаются жилые помещения (квартиры)","-","-","Возможные значения: панельное здание, кирпичное здание, блочное здание, кирпично-монолитное здание, монолитное здание",null,120]
[null,null,null,"Общая площадь жилого помещения (квартиры)","055","Квадратный метр","Не более 42,00"]
[null,null,null,"Предельная цена за 1 кв. м",383,"Рубль","Не более 177 634,91"]
[null,null,null,"Предельная цена за 1 кв. м",383,"Рубль","Не более 177 634,91"]
[885,"68.10.11","Услуги по покупке и продаже жилых зданий и занимаемых ими земельных участков. Пояснение по требуемым услугам: услуги по покупке и продаже жилых помещений (квартир) в многоквартирных домах общей площадью жилого помещения (квартиры) не менее 42,01 кв. м и не более 67,00 кв. м, за исключением жилых помещений (квартир), в отношении которых установлены требования к доступности жилого помещения и общего имущества в многоквартирном доме для инвалида","Конструктивные особенности зданий, в которых приобретаются жилые помещения (квартиры)","-","-","Возможные значения: панельное здание, кирпичное здание, блочное здание, кирпично-монолитное здание, монолитное здание",null,120]
[null,null,null,"Общая площадь жилого помещения (квартиры)","055","Квадратный метр","Не менее 42,01 и не более 67,00"]
[null,null,null,"Предельная цена за 1 кв. м",383,"Рубль","Не более 167 427,01"]
[886,"68.10.11","Услуги по покупке и продаже жилых зданий и занимаемых ими земельных участков. Пояснение по требуемым услугам: услуги по покупке и продаже жилых помещений (квартир) в многоквартирных домах общей площадью жилого помещения (квартиры) более 67,00 кв. м, за исключением жилых помещений (квартир), в отношении которых установлены требования к доступности жилого помещения и общего имущества в многоквартирном доме для инвалида","Конструктивные особенности зданий, в которых приобретаются жилые помещения (квартиры)","-","-","Возможные значения: панельное здание, кирпичное здание, блочное здание, кирпично-монолитное здание, монолитное здание",null,120]
[null,null,null,"Общая площадь жилого помещения (квартиры)","055","Квадратный метр","Более 67,00"]
[null,null,null,"Предельная цена за 1 кв. м",383,"Рубль","Не более 159 629,28"]
["2.12. Перечень работ по уборке помещений объектов образования и здравоохранения"]
[887,"81.21.10","Уборка внутренних помещений: мытье пола в помещениях, свободных от мебели","Единица измерения","055","Квадратный метр","**"]
[null,null,null,"Предельная цена за 1 кв. м",383,"Рубль","**"]
[{"$f":"MAX($A$2816:A2817)+1","v":888},"81.21.10","Уборка внутренних помещений: мытье пола с мебелью ","Единица измерения","055","Квадратный метр","**"]
[null,null,null,"Предельная цена за 1 кв. м",383,"Рубль","**"]
[{"$f":"MAX($A$2816:A2819)+1","v":889},"81.21.10","Уборка внутренних помещений: мытье стен, дверей","Единица измерения","055","Квадратный метр","**"]
[null,null,null,"Предельная цена за 1 кв. м",383,"Рубль","**"]
[{"$f":"MAX($A$2816:A2821)+1","v":890},"81.21.10","Уборка внутренних помещений: влажная вакуумная обработка пола поломоечной машиной","Единица измерения","055","Квадратный метр","**"]
[null,null,null,"Предельная цена за 1 кв. м",383,"Рубль","**"]
[{"$f":"MAX($A$2816:A2823)+1","v":891},"81.21.10","Уборка внутренних помещений: влажная протирка пола в помещениях, свободных от мебели","Единица измерения","055","Квадратный метр","**"]
[null,null,null,"Предельная цена за 1 кв. м",383,"Рубль","**"]
[{"$f":"MAX($A$2816:A2825)+1","v":892},"81.21.10","Уборка внутренних помещений: влажная протирка пола с мебелью","Единица измерения","055","Квадратный метр","**"]
[null,null,null,"Предельная цена за 1 кв. м",383,"Рубль","**"]
[{"$f":"MAX($A$2816:A2827)+1","v":893},"81.21.10","Уборка внутренних помещений: чистка напольных ковровых покрытий","Единица измерения","055","Квадратный метр","**"]
[null,null,null,"Предельная цена за 1 кв. м",383,"Рубль","**"]
[{"$f":"MAX($A$2816:A2829)+1","v":894},"81.21.10","Уборка внутренних помещений: чистка и дезинфекция керамической плитки пола","Единица измерения","055","Квадратный метр","**"]
[null,null,null,"Предельная цена за 1 кв. м",383,"Рубль","**"]
[{"$f":"MAX($A$2816:A2831)+1","v":895},"81.21.10","Уборка внутренних помещений: чистка и дезинфекция керамической плитки стен","Единица измерения","055","Квадратный метр","**"]
[null,null,null,"Предельная цена за 1 кв. м",383,"Рубль","**"]
[{"$f":"MAX($A$2816:A2833)+1","v":896},"81.29.19","Уборка внутренних помещений: чистка и дезинфекция раковин, унитазов, писсуаров","Единица измерения",796,"Штука","**"]
[null,null,null,"Предельная цена за 1 штуку",383,"Рубль","**"]
[{"$f":"MAX($A$2816:A2835)+1","v":897},"81.21.10","Уборка внутренних помещений: чистка зеркал и стеклянных поверхностей","Единица измерения","055","Квадратный метр","**"]
[null,null,null,"Предельная цена за 1 кв. м",383,"Рубль","**"]
[{"$f":"MAX($A$2816:A2837)+1","v":898},"81.21.10","Уборка внутренних помещений: влажная протирка вентиляционных решеток","Единица измерения","055","Квадратный метр","**"]
[null,null,null,"Предельная цена за 1 кв. м",383,"Рубль","**"]
[{"$f":"MAX($A$2816:A2839)+1","v":899},"81.21.10","Уборка внутренних помещений: влажная протирка стен","Единица измерения","055","Квадратный метр","**"]
[null,null,null,"Предельная цена за 1 кв. м",383,"Рубль","**"]
[{"$f":"MAX($A$2816:A2841)+1","v":900},"81.21.10","Уборка внутренних помещений: влажная протирка дверей","Единица измерения","055","Квадратный метр","**"]
[null,null,null,"Предельная цена за 1 кв. м",383,"Рубль","**"]
[{"$f":"MAX($A$2816:A2843)+1","v":901},"81.29.19","Уборка внутренних помещений: влажная протирка приборов (радиаторов) отопительных","Единица измерения",796,"Штука","**"]
[null,null,null,"Предельная цена за 1 штуку",383,"Рубль","**"]
[{"$f":"MAX($A$2816:A2845)+1","v":902},"81.29.19","Уборка внутренних помещений: влажная протирка столов","Единица измерения",796,"Штука","**"]
[null,null,null,"Предельная цена за 1 штуку",383,"Рубль","**"]
[{"$f":"MAX($A$2816:A2847)+1","v":903},"81.21.10","Уборка внутренних помещений: влажная протирка плинтусов","Единица измерения","055","Квадратный метр","**"]
[null,null,null,"Предельная цена за 1 кв. м",383,"Рубль","**"]
[{"$f":"MAX($A$2816:A2849)+1","v":904},"81.21.10","Уборка внутренних помещений: влажная протирка открытых поверхностей мебели, стеллажей","Единица измерения","055","Квадратный метр","**"]
[null,null,null,"Предельная цена за 1 кв. м",383,"Рубль","**"]
[{"$f":"MAX($A$2816:A2851)+1","v":905},"81.21.10","Уборка внутренних помещений: влажная протирка стендов","Единица измерения","055","Квадратный метр","**"]
[null,null,null,"Предельная цена за 1 кв. м",383,"Рубль","**"]
[{"$f":"MAX($A$2816:A2853)+1","v":906},"81.29.19","Уборка внутренних помещений: влажная протирка шкафов","Единица измерения",796,"Штука","**"]
[null,null,null,"Предельная цена за 1 штуку",383,"Рубль","**"]
[{"$f":"MAX($A$2816:A2855)+1","v":907},"81.29.19","Уборка внутренних помещений: влажная протирка диванов","Единица измерения",796,"Штука","**"]
[null,null,null,"Предельная цена за 1 штуку",383,"Рубль","**"]
[{"$f":"MAX($A$2816:A2857)+1","v":908},"81.21.10","Уборка внутренних помещений: сухая протирка стендов, панелей и т.д.","Единица измерения","055","Квадратный метр","**"]
[null,null,null,"Предельная цена за 1 кв. м",383,"Рубль","**"]
[{"$f":"MAX($A$2816:A2859)+1","v":909},"81.29.19","Уборка внутренних помещений: сухая протирка столов, шкафов","Единица измерения",796,"Штука","**"]
[null,null,null,"Предельная цена за 1 штуку",383,"Рубль","**"]
[{"$f":"MAX($A$2816:A2861)+1","v":910},"81.29.19","Уборка внутренних помещений: очистка мусорных корзин от мусора","Единица измерения",796,"Штука","**"]
[null,null,null,"Предельная цена за 1 штуку",383,"Рубль","**"]
[{"$f":"MAX($A$2816:A2863)+1","v":911},"81.21.10","Уборка внутренних помещений лестничных клеток: влажное подметание лестничных площадок и маршей без оборудования нижних трех этажей","Единица измерения","055","Квадратный метр","**"]
[null,null,null,"Предельная цена за 1 кв. м",383,"Рубль","**"]
[{"$f":"MAX($A$2816:A2865)+1","v":912},"81.21.10","Уборка внутренних помещений лестничных клеток: влажное подметание лестничных площадок и маршей без оборудования выше третьего этажа","Единица измерения","055","Квадратный метр","**"]
[null,null,null,"Предельная цена за 1 кв. м",383,"Рубль","**"]
[{"$f":"MAX($A$2816:A2867)+1","v":913},"81.21.10","Уборка внутренних помещений лестничных клеток: влажное подметание лестничных площадок и маршей оборудованных лифтами нижних трех этажей","Единица измерения","055","Квадратный метр","**"]
[null,null,null,"Предельная цена за 1 кв. м",383,"Рубль","**"]
[{"$f":"MAX($A$2816:A2869)+1","v":914},"81.21.10","Уборка внутренних помещений лестничных клеток: влажное подметание лестничных площадок и маршей оборудованных лифтами выше третьего этажа","Единица измерения","055","Квадратный метр","**"]
[null,null,null,"Предельная цена за 1 кв. м",383,"Рубль","**"]
[{"$f":"MAX($A$2816:A2871)+1","v":915},"81.21.10","Уборка внутренних помещений лестничных клеток: влажное подметание лестничных площадок и маршей оборудованных лифтами и мусоропроводом нижних трех этажей","Единица измерения","055","Квадратный метр","**"]
[null,null,null,"Предельная цена за 1 кв. м",383,"Рубль","**"]
[{"$f":"MAX($A$2816:A2873)+1","v":916},"81.21.10","Уборка внутренних помещений лестничных клеток: влажное подметание лестничных площадок и маршей оборудованных лифтами и мусоропроводом выше третьего этажа","Единица измерения","055","Квадратный метр","**"]
[null,null,null,"Предельная цена за 1 кв. м",383,"Рубль","**"]
[{"$f":"MAX($A$2816:A2875)+1","v":917},"81.21.10","Уборка внутренних помещений лестничных клеток: мытье лестничных площадок и маршей без оборудования нижних трех этажей","Единица измерения","055","Квадратный метр","**"]
[null,null,null,"Предельная цена за 1 кв. м",383,"Рубль","**"]
[{"$f":"MAX($A$2816:A2877)+1","v":918},"81.21.10","Уборка внутренних помещений лестничных клеток: мытье лестничных площадок и маршей без оборудования выше третьего этажа","Единица измерения","055","Квадратный метр","**"]
[null,null,null,"Предельная цена за 1 кв. м",383,"Рубль","**"]
[{"$f":"MAX($A$2816:A2879)+1","v":919},"81.21.10","Уборка внутренних помещений лестничных клеток: мытье лестничных площадок и маршей оборудованных лифтами нижних трех этажей","Единица измерения","055","Квадратный метр","**"]
[null,null,null,"Предельная цена за 1 кв. м",383,"Рубль","**"]
[{"$f":"MAX($A$2816:A2881)+1","v":920},"81.21.10","Уборка внутренних помещений лестничных клеток: мытье лестничных площадок и маpшей оборудованных лифтами выше третьего этажа","Единица измерения","055","Квадратный метр","**"]
[null,null,null,"Предельная цена за 1 кв. м",383,"Рубль","**"]
[{"$f":"MAX($A$2816:A2883)+1","v":921},"81.21.10","Уборка внутренних помещений лестничных клеток: обметание пыли с потолков","Единица измерения","055","Квадратный метр","**"]
[null,null,null,"Предельная цена за 1 кв. м",383,"Рубль","**"]
[{"$f":"MAX($A$2816:A2885)+1","v":922},"81.21.10","Уборка внутренних помещений лестничных клеток: влажная уборка стен","Единица измерения","055","Квадратный метр","**"]
[null,null,null,"Предельная цена за 1 кв. м",383,"Рубль","**"]
[{"$f":"MAX($A$2816:A2887)+1","v":923},"81.21.10","Уборка внутренних помещений лестничных клеток: влажная протирка дверей","Единица измерения","055","Квадратный метр","**"]
[null,null,null,"Предельная цена за 1 кв. м",383,"Рубль","**"]
[{"$f":"MAX($A$2816:A2889)+1","v":924},"81.21.10","Уборка внутренних помещений лестничных клеток: влажная протирка подоконников","Единица измерения","055","Квадратный метр","**"]
[null,null,null,"Предельная цена за 1 кв. м",383,"Рубль","**"]
[{"$f":"MAX($A$2816:A2891)+1","v":925},"81.21.10","Уборка внутренних помещений лестничных клеток: влажная протирка оконных ограждений","Единица измерения","055","Квадратный метр","**"]
[null,null,null,"Предельная цена за 1 кв. м",383,"Рубль","**"]
[{"$f":"MAX($A$2816:A2893)+1","v":926},"81.29.19","Уборка внутренних помещений лестничных клеток: влажная протирка шкафов для щитов и слаботочных устройств","Единица измерения",796,"Штука","**"]
[null,null,null,"Предельная цена за 1 штуку",383,"Рубль","**"]
[{"$f":"MAX($A$2816:A2895)+1","v":927},"81.21.10","Уборка внутренних помещений лестничных клеток: влажная протирка приборов (радиаторов) отопительных","Единица измерения","055","Квадратный метр","**"]
[null,null,null,"Предельная цена за 1 кв. м",383,"Рубль","**"]
[{"$f":"MAX($A$2816:A2897)+1","v":928},"81.21.10","Уборка внутренних помещений лестничных клеток: влажная протирка перил","Единица измерения","055","Квадратный метр","**"]
[null,null,null,"Предельная цена за 1 кв. м",383,"Рубль","**"]
[{"$f":"MAX($A$2816:A2899)+1","v":929},"81.29.19","Уборка внутренних помещений лестничных клеток: влажная протирка плафонов с периодической заменой воды и моющего раствора","Единица измерения",796,"Штука","**"]
[null,null,null,"Предельная цена за 1 штуку",383,"Рубль","**"]
[{"$f":"MAX($A$2816:A2901)+1","v":930},"81.21.10","Уборка внутренних помещений лестничных клеток: влажная протирка чердачных лестниц","Единица измерения","055","Квадратный метр","**"]
[null,null,null,"Предельная цена за 1 кв. м",383,"Рубль","**"]
[{"$f":"MAX($A$2816:A2903)+1","v":931},"81.21.10","Уборка внутренних помещений лестничных клеток: уборка лифтовых кабин","Единица измерения","055","Квадратный метр","**"]
[null,null,null,"Предельная цена за 1 кв. м",383,"Рубль","**"]
[{"$f":"MAX($A$2816:A2905)+1","v":932},"81.22.11","Уборка внутренних помещений и лестничных клеток: мытье окон","Единица измерения","055","Квадратный метр","**"]
[null,null,null,"Предельная цена за 1 кв. м",383,"Рубль","**"]
["2.13. Перечень предметов обихода для оборудования квартир, предоставляемых детям-сиротам по договорам найма специализированного жилищного фонда Санкт-Петербурга"]
[null,null,null,"В соответствии с кодом конечного каталожного наименования (ККН)",null,null,"Предельная цена (руб. с НДС)"]
[933,"25.99.29","Изделия прочие из недрагоценных металлов, не включенные в другие группировки. Пояснение по требуемой продукции: карниз для ванной","25.99.29.190-024",796,"Штука","**"]
[934,"22.29.23","Посуда столовая и кухонная, прочие предметы домашнего обихода и предметы туалета пластмассовые. Пояснение по требуемой продукции: ведро мусорное","22.29.23.120-041",796,"Штука","**"]
[{"$f":"MAX($A$2910:A2911)+1","v":935},"32.91.11","Метлы и щетки для домашней уборки. Пояснение по требуемой продукции: комплект для уборки (набор для уборки совок и щетка)","32.91.11.000-012",839,"Комплект","**"]
[{"$f":"MAX($A$2910:A2912)+1","v":936},"22.29.23","Посуда столовая и кухонная, прочие предметы домашнего обихода и предметы туалета пластмассовые. Пояснение по требуемой продукции: штора для ванной","22.29.23.120-031",796,"Штука","**"]
[{"$f":"MAX($A$2910:A2913)+1","v":937},"31.09.11","Мебель металлическая, не включенная в другие группировки. Пояснение по требуемой продукции: доска гладильная","31.09.11.190-032",796,"Штука","**"]
[{"$f":"MAX($A$2910:A2914)+1","v":938},"25.99.29","Изделия прочие из недрагоценных металлов, не включенные в другие группировки. Пояснение по требуемой продукции: сушилка для белья","25.99.29.190-016",796,"Штука","**"]
[{"$f":"MAX($A$2910:A2915)+1","v":939},"25.99.29","Изделия из недрагоценных металлов прочие, не включенные в другие группировки. Пояснение по требуемой продукции: карниз","25.99.29.190-025",796,"Штука","**"]
[null,null,null,"25.99.29.190-026",796,"Штука","**"]
[{"$f":"MAX($A$2910:A2917)+1","v":940},"31.09.11","Мебель металлическая, не включенная в другие группировки. Пояснение по требуемой продукции: вешалка металлическая","31.09.11.120-007",796,"Штука","**"]
[{"$f":"MAX($A$2910:A2918)+1","v":941},"23.12.13","Зеркала стеклянные, изделия из стекла изолирующие многослойные. Пояснение по требуемой продукции: зеркало","23.12.13.119-001",796,"Штука","**"]
[{"$f":"MAX($A$2910:A2919)+1","v":942},"31.02.10","Мебель кухонная. Пояснение по требуемой продукции: мебель кухонная (набор)","31.02.10.140-001",796,"Штука","**"]
[{"$f":"MAX($A$2910:A2920)+1","v":943},"31.02.10","Мебель кухонная. Пояснение по требуемой продукции: стол обеденный","31.02.10.110-001",796,"Штука","**"]
[{"$f":"MAX($A$2910:A2921)+1","v":944},"31.01.11","Мебель металлическая для офисов. Пояснение по требуемой продукции: табурет","31.01.11.150-051",796,"Штука","**"]
[{"$f":"MAX($A$2910:A2922)+1","v":945},"31.09.12","Мебель деревянная для спальни, столовой и гостиной. Пояснение по требуемой продукции: диван","31.09.12.119-001",796,"Штука","**"]
[{"$f":"MAX($A$2910:A2923)+1","v":946},"31.09.12","Мебель деревянная для спальни, столовой и гостиной. Пояснение по требуемой продукции: комод","31.09.12.129-002",796,"Штука","**"]
[{"$f":"MAX($A$2910:A2924)+1","v":947},"31.01.12","Мебель деревянная для офисов. Пояснение по требуемой продукции: стул на деревянном каркасе","31.01.12.160-004",796,"Штука","**"]
[{"$f":"MAX($A$2910:A2925)+1","v":948},"31.01.12","Мебель деревянная для офисов. Пояснение по требуемой продукции: шкаф для одежды деревянный","31.01.12.131-001",796,"Штука","**"]
[{"$f":"MAX($A$2910:A2926)+1","v":949},"31.09.13","Мебель деревянная, не включенная в другие группировки. Пояснение по требуемой продукции: шкаф для ванной комнаты","31.09.13.110-002",796,"Штука","**"]
[{"$f":"MAX($A$2910:A2927)+1","v":950},"27.51.11","Холодильники и морозильники бытовые. Пояснение по требуемой продукции: холодильник бытовой","27.51.11.110-002",796,"Штука","**"]
[{"$f":"MAX($A$2910:A2928)+1","v":951},"27.51.13","Машины стиральные бытовые и машины для сушки одежды. Пояснение по требуемой продукции: машина стиральная бытовая","27.51.13.110-001",796,"Штука","**"]
[{"$f":"MAX($A$2910:A2929)+1","v":952},"27.51.23","Приборы электротермические для укладки волос или для сушки рук; электрические утюги. Пояснение по требуемой продукции: утюг электрический бытовой","27.51.23.130-001",796,"Штука","**"]
[{"$f":"MAX($A$2910:A2930)+1","v":953},"27.51.24","Приборы электронагревательные прочие. Пояснение по требуемой продукции: электрочайник бытовой","27.51.24.110-001",796,"Штука","**"]
[]
[]
["--------------------------------"]
["* Заполняется в соответствии с пунктом 2 Правил определения требований к закупаемым государственными органами Санкт-Петербурга, органом управления территориальным государственным внебюджетным фондом "]
["и подведомственными  им казенными учреждениями, бюджетными учреждениями и государственными унитарными предприятиями отдельным видам товаров, работ, услуг (в том числе предельных цен товаров, работ, услуг)"]
[", утвержденных настоящим постановлением."]
["** Устанавливается правовым актом Комитета по государственному заказу Санкт-Петербурга в соответствии с пунктом 3-1  постановления Правительства_Санкт-Петербурга_от_22.04.2024_№_239"]
["*** Устанавливается в соответствии с постановлением Правительства Санкт-Петербурга о стоимости питания в государственных образовательных учреждениях на соответствующий год."]
[]
["Принятые сокращения:"]
["МОП - многоразовая насадка для флаундера (швабры)"]
["НДС - налог на добавленную стоимость"]
["ОКПД2 - ОК 034-2014 Общероссийский классификатор продукции по видам экономической деятельности"]
["ОКЕИ - Общероссийский классификатор единиц измерения"]
["Сеть «Интернет» - информационно-телекоммуникационная сеть «Интернет»"]